{"text_format":"1","workbook":"xlsx","n_sheets":21,"sheets":["⇒記入必須シート","設定申込書","リスト","⇒これより右は【詳細申込】がある場合のみ記載","詳細申込書","【別紙１】ポートの詳細設定","【別紙2】DHCP詳細設定","【別紙3】ダッシュボード上のNW名変更設定","【別紙4】ギガらくWi-FiとのVPN","【別紙5】リモートアクセス設定","【別紙6】L3ファイアウォール・通信速度制限","【別紙7】L7ファイアウォール設定","【別紙8】スタティックルート","【別紙9】ポート・VLAN設定","【別紙10】ポートスケジュール","欠番2","【別紙12】ダッシュボード統合設定","【別紙13】拡張サポートオプション","【別紙15】アラート設定","【別紙99】その他特殊設定","⇒複数スイッチ設定有りの場合はこれより右にシート作成願います"],"not_rendered":{"charts":0,"images":2,"macros":1,"external_links":0,"defined_names":14,"comments":0,"pivot_tables":0},"unopened":[],"bounds":{"document_bytes":16777216,"sheet_cells":100000,"rows_first":2000,"rows_last":500,"rows_between":2000,"halvings":0,"cell_chars":16384,"cell_head_chars":4096},"cells_cut":0,"cells_raw":0,"read":"whole","date_system":"1900"}

{"sheet":"⇒記入必須シート","index":0,"n_rows":0,"n_cols":0,"rows_kept":0,"cut":false,"hidden":false,"merged":[]}

{"sheet":"設定申込書","index":1,"n_rows":97,"n_cols":71,"rows_kept":97,"cut":false,"hidden":false,"merged":[[35,70,35,77],[36,55,36,77],[32,55,32,63],[32,64,32,69],[32,70,32,77],[33,55,33,63],[33,64,33,69],[33,70,33,77],[34,55,34,63],[34,64,34,69],[34,70,34,77],[35,55,35,63],[35,64,35,69],[28,55,28,77],[29,55,29,63],[29,64,29,69],[29,70,29,77],[30,55,30,63],[30,64,30,69],[30,70,30,77],[31,55,31,63],[31,64,31,69],[31,70,31,77],[17,17,17,28],[19,17,19,28],[12,1,12,52],[26,41,26,47],[26,1,26,11],[19,29,19,43],[17,1,17,12],[25,25,25,37],[25,39,25,47],[26,39,26,40],[26,25,26,35],[26,36,26,37],[13,1,13,18],[14,1,14,20],[13,21,14,52],[17,29,17,43],[26,12,26,13],[17,13,17,14],[13,19,13,20],[19,1,19,12],[22,1,23,52],[25,1,25,24],[19,13,19,14],[70,14,71,52],[32,10,32,15],[34,29,34,52],[29,33,29,52],[30,29,30,32],[29,29,29,32],[73,47,73,50],[45,1,45,24],[53,1,53,16],[54,1,54,11],[54,12,54,13],[42,1,42,24],[44,1,44,4],[48,1,49,52],[62,1,62,11],[62,12,62,13],[65,1,68,52],[43,1,43,4],[43,5,43,24],[44,5,44,24],[50,24,50,46],[50,1,50,23],[33,10,33,15],[51,12,51,13],[27,1,27,24],[36,29,36,32],[36,33,36,52],[28,1,28,23],[29,1,29,9],[31,16,31,23],[39,1,40,52],[33,16,33,23],[34,1,34,9],[31,1,31,9],[31,10,31,15],[33,1,33,9],[27,25,27,51],[34,10,34,15],[35,16,35,23],[36,1,36,23],[30,1,30,9],[34,16,34,23],[35,29,35,52],[30,33,30,52],[32,16,32,23],[32,1,32,9],[35,1,35,9],[35,10,35,15],[96,1,97,8],[96,9,97,52],[93,27,93,34],[93,35,93,52],[94,1,94,8],[94,9,94,26],[95,1,95,8],[95,9,95,52],[93,1,93,8],[93,9,93,26],[94,27,94,52],[79,1,80,52],[82,1,87,52],[72,14,72,16],[72,17,72,31],[72,32,74,37],[73,14,74,31],[73,39,73,41],[73,43,73,45],[75,1,76,8],[75,9,75,13],[75,14,75,52],[0,0,0,13],[11,1,11,8],[11,9,11,28],[11,29,11,36],[11,37,11,52],[7,1,9,8],[7,9,7,11],[7,12,7,52],[8,9,9,52],[10,1,10,8],[10,9,10,28],[10,29,10,36],[10,37,10,38],[10,39,10,43],[10,45,10,47],[10,49,10,51],[1,1,3,52],[92,1,92,8],[92,9,92,26],[92,27,92,34],[92,35,92,52],[76,9,76,52],[72,9,74,13],[29,10,29,15],[28,29,28,52],[31,29,31,52],[29,16,29,23],[30,16,30,23],[30,10,30,15],[51,24,51,34],[51,35,51,36],[55,17,55,51],[51,1,51,11],[54,17,54,53],[91,27,91,34],[91,35,91,52],[70,1,74,8],[70,9,71,13],[89,1,90,52],[91,1,91,8],[91,9,91,26]]}
["【注意】マクロを必ず有効にしてください"]
[null,"【様式8C】ギガらくルーター・スイッチ 設定変更申込書"]
[]
[]
[]
[null,null,null,null,null,null,null,null,null,null,null,null,null,null,null,null,null,null,null,null,null,null,null,null,null,null,null,null,null,null,null,null,null,null,null,null,null,null,null,null,null,null,null,null,"Ver5.0(2026.3.1～)"]
[]
[null,"ご契約者名\n（法人名）",null,null,null,null,null,null,null,"フリガナ"]
[]
[]
[null,"契約ID",null,null,null,null,null,null,null,null,null,null,null,null,null,null,null,null,null,null,null,null,null,null,null,null,null,null,null,"設定変更希望日※１",null,null,null,null,null,null,null,"西暦",null,null,null,null,null,null,"年",null,null,null,"月",null,null,null,"日"]
[null,"申込担当者名※2",null,null,null,null,null,null,null,null,null,null,null,null,null,null,null,null,null,null,null,null,null,null,null,null,null,null,null,"連絡先電話番号※2"]
[null,"※1 設定変更希望日の指定をする場合、様式送付日から一週間以内の日付で指定いただきますようお願いします　\n　　　例：4/3様式送付→4/10までの間で日にち指定可能(4/11以降の指定は不可)\n　　　ご希望に添えない場合、ネットワーク機器サポートセンタより相談の連絡をさせていただくことがございます\n※2 ご依頼内容に対し不明な点があった際、ネットワーク機器サポートセンタより連絡先電話番号へ連絡させていただくことがございます"]
[null,"ダッシュボード統合設定有無",null,null,null,null,null,null,null,null,null,null,null,null,null,null,null,null,null,"□",null,"ご利用中のギガらくルーター/スイッチのダッシュボードに別拠点でご利用中のギガらくルーター・スイッチ・Wi-Fi（ハイエンド/6/EX)を追加して１つのダッシュボードで登録・管理したい方は\nチェック(\"■\")を入れてください。【別紙12】が表示されますので、記入をお願い致します。"]
[null,"「【別紙12】ダッシュボード統合設定」シートへ記載願います"]
[]
[]
[null,"ギガらくルーターの申込み有無",null,null,null,null,null,null,null,null,null,null,null,"□",null,null,null,"ギガらくルーターの契約ID"]
[]
[null,"ギガらくスイッチの申込み有無",null,null,null,null,null,null,null,null,null,null,null,"□",null,null,null,"ギガらくスイッチの契約ID"]
[]
[]
[null,"基本項目（ギガらくルーター）"]
[]
[]
[null,"■インターネットVPNの利用（複数拠点での利用）",null,null,null,null,null,null,null,null,null,null,null,null,null,null,null,null,null,null,null,null,null,null,null,"■閉域回線終端利用",null,null,null,null,null,null,null,null,null,null,null,null,null,"閉域種別：VPNワイド/プライオ"]
[null,"利用有無",null,null,null,null,null,null,null,null,null,null,"□",null,null,null,null,null,null,null,null,null,null,null,null,"利用有無",null,null,null,null,null,null,null,null,null,null,"無",null,null,"種別"]
[null,"【様式9C】ギガらくルーター_インターネットVPN設定申込書の提出が必須です。\nルータ設定(LAN)の記載は本様式では必要ありません\n（【様式9C】で記載いただきます）",null,null,null,null,null,null,null,null,null,null,null,null,null,null,null,null,null,null,null,null,null,null,null,"ギガらくルーター機器同士で拠点間VPNを使用し、同機器WAN側で\n閉域回線終端する場合は利用有無を\"有\"にしてください。(単拠点利用は不可)\nWAN1(閉域側　※プライオ時はCPEと接続)　WAN2(PPPoE(ISPアカウント要))と\nなります。"]
[null,"■ルータの基本設定(LAN)",null,null,null,null,null,null,null,null,null,null,null,null,null,null,null,null,null,null,null,null,null,null,null,null,null,null,null,"■デフォルト設定",null,null,null,null,null,null,null,null,null,null,null,null,null,null,null,null,null,null,null,null,null,null,null,null,null,"■ルータの基本設定(LAN)"]
[null,"サブネット",null,null,null,null,null,null,null,null,"VLAN ID",null,null,null,null,null,"本装置のIP",null,null,null,null,null,null,null,null,null,null,null,null,"・DHCP",null,null,null,"各VLAN毎に稼働",null,null,null,null,null,null,null,null,null,null,null,null,null,null,null,null,null,null,null,null,null,"サブネット",null,null,null,null,null,null,null,null,"VLAN ID",null,null,null,null,null,"本装置のIP"]
[null,"例　192.168.128.0/24",null,null,null,null,null,null,null,null,null,null,null,null,null,null,"192.168.128.1",null,null,null,null,null,null,null,null,null,null,null,null,"・L3FW",null,null,null,"外⇒内のDeny設定",null,null,null,null,null,null,null,null,null,null,null,null,null,null,null,null,null,null,null,null,null,"例　192.168.128.0/24",null,null,null,null,null,null,null,null,null,null,null,null,null,null,"192.168.128.1"]
[null,null,null,null,null,null,null,null,null,null,null,null,null,null,null,null,null,null,null,null,null,null,null,null,null,null,null,null,null,"※デフォルト値から設定変更したい場合、別紙【詳細申込書】へ記載願います"]
[]
[]
[]
[null,null,null,null,null,null,null,null,null,null,null,null,null,null,null,null,null,null,null,null,null,null,null,null,null,null,null,null,null,"■LTEプラン利用時　SIM APN設定の変更"]
[null,"※サブネットが１つの場合はVLAN IDの記載は必要有りません\n※特に指定がない場合192.168.128.1/24で設定させていただきます",null,null,null,null,null,null,null,null,null,null,null,null,null,null,null,null,null,null,null,null,null,null,null,null,null,null,null,"APN名",null,null,null,null,null,null,null,null,null,null,null,null,null,null,null,null,null,null,null,null,null,null,null,null,null,"※サブネットが１つの場合はVLAN IDの記載は必要有りません\n※特に指定がない場合192.168.128.1/24で設定させていただきます"]
[]
[]
[null,"基本項目（ギガらくスイッチ）"]
[]
[]
[null,"■デフォルト設定"]
[null,"・VLAN",null,null,null,"設定無し"]
[null,"・PoE",null,null,null,"設定有り"]
[null,"※デフォルト値から設定変更したい場合は別紙【詳細申込書】へ記載願います"]
[]
[]
[null,"その他設定"]
[]
[null,"■詳細設定の有無（詳細申込書の記入）",null,null,null,null,null,null,null,null,null,null,null,null,null,null,null,null,null,null,null,null,null,null,"■拡張サポートオプション（別紙13の記入）"]
[null,"詳細設定有無",null,null,null,null,null,null,null,null,null,null,"□",null,null,null,null,null,null,null,null,null,null,null,"設定変更・追加有無",null,null,null,null,null,null,null,null,null,null,"□"]
[]
[null,"■PPPoE情報の変更（訪問修理オプション）"]
[null,"設定変更有無",null,null,null,null,null,null,null,null,null,null,"□",null,null,null,null,"「ルータ基本設定」シートへPPPoE情報等を記載してください"]
[]
[]
[]
[]
[]
[]
[]
[null,"全項目表示",null,null,null,null,null,null,null,null,null,null,"□"]
[]
[]
[null,"連絡先の変更"]
[]
[]
[]
[]
[null,"変更後の\n弊社からの連絡先",null,null,null,null,null,null,null,"部署名"]
[]
[null,null,null,null,null,null,null,null,null,"氏名",null,null,null,null,"フリガナ",null,null,null,null,null,null,null,null,null,null,null,null,null,null,null,null,null,"日中の連絡先\n電話番号"]
[null,null,null,null,null,null,null,null,null,null,null,null,null,null,null,null,null,null,null,null,null,null,null,null,null,null,null,null,null,null,null,null,null,null,null,null,null,null,"（",null,null,null,"）",null,null,null,"－"]
[]
[null,"弊社からサポート\n情報を送付する\nメールアドレス",null,null,null,null,null,null,null,"フリガナ",null,null,null,null,{"$f":"alphanumeric(J77)","v":""}]
[]
[]
[]
[null,"自由記述欄"]
[]
[]
[]
[]
[]
[]
[]
[]
[]
[null,"------------------------------------　　以下弊社記入欄　　------------------------------------"]
[]
[null,"支社・支店",null,null,null,null,null,null,null,null,null,null,null,null,null,null,null,null,null,null,null,null,null,null,null,null,null,"部"]
[null,"部門",null,null,null,null,null,null,null,null,null,null,null,null,null,null,null,null,null,null,null,null,null,null,null,null,null,"販売ｃｈコード"]
[null,"担当者名",null,null,null,null,null,null,null,null,null,null,null,null,null,null,null,null,null,null,null,null,null,null,null,null,null,"社員コード"]
[null,"連絡先TEL"]
[null,"連絡先\nメールアドレス"]
[null,"連絡欄"]

{"sheet":"リスト","index":2,"n_rows":618,"n_cols":28,"rows_kept":618,"cut":false,"hidden":true,"merged":[]}
["機種名","設置場所","サブネットマスク","Application List","Sub category","メインカテゴリ",{"$f":"TRANSPOSE(_xlfn.UNIQUE(D2:D619))","v":"Advertising"},"Blogging","Business_management","Databases_cloud_services","Email","File sharing","Gaming","Health_care","News","Online_backup","Peer_to_peer_P2P","Productivity","Remote_monitoring_management","Security","Social_web_photo_sharing","Software_anti_virus_updates","Sports","Video_music","VoIP_video_conferencing","Web_file_sharing","Web_payments",0]
["　",null,"選択","Advertising","All Advertising","サブカテゴリF14",{"$f":"IFERROR(TRANSPOSE(_xlfn.UNIQUE(_xlfn._xlws.FILTER($E$2:$E$618,$D$2:$D$618=【別紙7】L7ファイアウォール設定!F14))),\"←対象ジャンルを指定してください\")","v":"←対象ジャンルを指定してください"}]
["VPN機器 (MX64)","平置き","255.0.0.0(/8)","Advertising","Adcash","サブカテゴリF15",{"$f":"IFERROR(TRANSPOSE(_xlfn.UNIQUE(_xlfn._xlws.FILTER($E$2:$E$618,$D$2:$D$618=【別紙7】L7ファイアウォール設定!F15))),\"←対象ジャンルを指定してください\")","v":"←対象ジャンルを指定してください"}]
["VPN機器 (MX67C)","壁掛け","255.128.0.0(/9)","Advertising","Advertising.com","サブカテゴリF16",{"$f":"IFERROR(TRANSPOSE(_xlfn.UNIQUE(_xlfn._xlws.FILTER($E$2:$E$618,$D$2:$D$618=【別紙7】L7ファイアウォール設定!F16))),\"←対象ジャンルを指定してください\")","v":"←対象ジャンルを指定してください"}]
["VPN機器 (MX84)","ラック設置※4","255.192.0.0(/10)","Advertising","AppNexus","サブカテゴリF17",{"$f":"IFERROR(TRANSPOSE(_xlfn.UNIQUE(_xlfn._xlws.FILTER($E$2:$E$618,$D$2:$D$618=【別紙7】L7ファイアウォール設定!F17))),\"←対象ジャンルを指定してください\")","v":"←対象ジャンルを指定してください"}]
["スイッチ (MS120-8FP)",null,"255.224.0.0(/11)","Advertising","Backpage.com","サブカテゴリF18",{"$f":"IFERROR(TRANSPOSE(_xlfn.UNIQUE(_xlfn._xlws.FILTER($E$2:$E$618,$D$2:$D$618=【別紙7】L7ファイアウォール設定!F18))),\"←対象ジャンルを指定してください\")","v":"←対象ジャンルを指定してください"}]
["スイッチ (MS120-24)",null,"255.240.0.0(/12)","Advertising","Brightroll","サブカテゴリF19",{"$f":"IFERROR(TRANSPOSE(_xlfn.UNIQUE(_xlfn._xlws.FILTER($E$2:$E$618,$D$2:$D$618=【別紙7】L7ファイアウォール設定!F19))),\"←対象ジャンルを指定してください\")","v":"←対象ジャンルを指定してください"}]
[null,null,"255.248.0.0(/13)","Advertising","DoubleVerify","サブカテゴリF20",{"$f":"IFERROR(TRANSPOSE(_xlfn.UNIQUE(_xlfn._xlws.FILTER($E$2:$E$618,$D$2:$D$618=【別紙7】L7ファイアウォール設定!F20))),\"←対象ジャンルを指定してください\")","v":"←対象ジャンルを指定してください"}]
[null,null,"255.252.0.0(/14)","Advertising","Google advertising","サブカテゴリF21",{"$f":"IFERROR(TRANSPOSE(_xlfn.UNIQUE(_xlfn._xlws.FILTER($E$2:$E$618,$D$2:$D$618=【別紙7】L7ファイアウォール設定!F21))),\"←対象ジャンルを指定してください\")","v":"←対象ジャンルを指定してください"}]
[null,null,"255.254.0.0(/15)","Advertising","Integral Ad Science","サブカテゴリF22",{"$f":"IFERROR(TRANSPOSE(_xlfn.UNIQUE(_xlfn._xlws.FILTER($E$2:$E$618,$D$2:$D$618=【別紙7】L7ファイアウォール設定!F22))),\"←対象ジャンルを指定してください\")","v":"←対象ジャンルを指定してください"}]
[null,null,"255.255.0.0(/16)","Advertising","LKQD","サブカテゴリF23",{"$f":"IFERROR(TRANSPOSE(_xlfn.UNIQUE(_xlfn._xlws.FILTER($E$2:$E$618,$D$2:$D$618=【別紙7】L7ファイアウォール設定!F23))),\"←対象ジャンルを指定してください\")","v":"←対象ジャンルを指定してください"}]
[null,null,"255.255.128.0(/17)","Advertising","moatads","サブカテゴリF24",{"$f":"IFERROR(TRANSPOSE(_xlfn.UNIQUE(_xlfn._xlws.FILTER($E$2:$E$618,$D$2:$D$618=【別紙7】L7ファイアウォール設定!F24))),\"←対象ジャンルを指定してください\")","v":"←対象ジャンルを指定してください"}]
[null,null,"255.255.192.0(/18)","Advertising","mopub","サブカテゴリF25",{"$f":"IFERROR(TRANSPOSE(_xlfn.UNIQUE(_xlfn._xlws.FILTER($E$2:$E$618,$D$2:$D$618=【別紙7】L7ファイアウォール設定!F25))),\"←対象ジャンルを指定してください\")","v":"←対象ジャンルを指定してください"}]
[null,null,"255.255.224.0(/19)","Advertising","OpenX","サブカテゴリF26",{"$f":"IFERROR(TRANSPOSE(_xlfn.UNIQUE(_xlfn._xlws.FILTER($E$2:$E$618,$D$2:$D$618=【別紙7】L7ファイアウォール設定!F26))),\"←対象ジャンルを指定してください\")","v":"←対象ジャンルを指定してください"}]
[null,null,"255.255.240.0(/20)","Advertising","Outbrain","サブカテゴリF27",{"$f":"IFERROR(TRANSPOSE(_xlfn.UNIQUE(_xlfn._xlws.FILTER($E$2:$E$618,$D$2:$D$618=【別紙7】L7ファイアウォール設定!F27))),\"←対象ジャンルを指定してください\")","v":"←対象ジャンルを指定してください"}]
[null,null,"255.255.248.0(/21)","Advertising","Pubmatic","サブカテゴリF28",{"$f":"IFERROR(TRANSPOSE(_xlfn.UNIQUE(_xlfn._xlws.FILTER($E$2:$E$618,$D$2:$D$618=【別紙7】L7ファイアウォール設定!F28))),\"←対象ジャンルを指定してください\")","v":"←対象ジャンルを指定してください"}]
[null,null,"255.255.252.0(/22)","Advertising","SpringServe","サブカテゴリF29",{"$f":"IFERROR(TRANSPOSE(_xlfn.UNIQUE(_xlfn._xlws.FILTER($E$2:$E$618,$D$2:$D$618=【別紙7】L7ファイアウォール設定!F29))),\"←対象ジャンルを指定してください\")","v":"←対象ジャンルを指定してください"}]
[null,null,"255.255.254.0(/23)","Blogging","All Blogging","サブカテゴリF30",{"$f":"IFERROR(TRANSPOSE(_xlfn.UNIQUE(_xlfn._xlws.FILTER($E$2:$E$618,$D$2:$D$618=【別紙7】L7ファイアウォール設定!F30))),\"←対象ジャンルを指定してください\")","v":"←対象ジャンルを指定してください"}]
[null,null,"255.255.255.0(/24)","Blogging","Ameba","サブカテゴリF31",{"$f":"IFERROR(TRANSPOSE(_xlfn.UNIQUE(_xlfn._xlws.FILTER($E$2:$E$618,$D$2:$D$618=【別紙7】L7ファイアウォール設定!F31))),\"←対象ジャンルを指定してください\")","v":"←対象ジャンルを指定してください"}]
[null,null,"255.255.255.128(/25)","Blogging","Blogger","サブカテゴリF32",{"$f":"IFERROR(TRANSPOSE(_xlfn.UNIQUE(_xlfn._xlws.FILTER($E$2:$E$618,$D$2:$D$618=【別紙7】L7ファイアウォール設定!F32))),\"←対象ジャンルを指定してください\")","v":"←対象ジャンルを指定してください"}]
[null,null,"255.255.255.192(/26)","Blogging","Destructoid","サブカテゴリF33",{"$f":"IFERROR(TRANSPOSE(_xlfn.UNIQUE(_xlfn._xlws.FILTER($E$2:$E$618,$D$2:$D$618=【別紙7】L7ファイアウォール設定!F33))),\"←対象ジャンルを指定してください\")","v":"←対象ジャンルを指定してください"}]
[null,null,"255.255.255.224(/27)","Blogging","FC2","サブカテゴリF34 追加行用",{"$f":"IFERROR(TRANSPOSE(_xlfn.UNIQUE(_xlfn._xlws.FILTER($E$2:$E$618,$D$2:$D$618=【別紙7】L7ファイアウォール設定!F34))),\"←対象ジャンルを指定してください\")","v":"←対象ジャンルを指定してください"}]
[null,null,"255.255.255.240(/28)","Blogging","Jimdo","サブカテゴリF35 追加行用",{"$f":"IFERROR(TRANSPOSE(_xlfn.UNIQUE(_xlfn._xlws.FILTER($E$2:$E$618,$D$2:$D$618=【別紙7】L7ファイアウォール設定!F35))),\"←対象ジャンルを指定してください\")","v":"←対象ジャンルを指定してください"}]
[null,null,"255.255.255.248(/29)","Blogging","Sina Weibo","サブカテゴリF36 追加行用",{"$f":"IFERROR(TRANSPOSE(_xlfn.UNIQUE(_xlfn._xlws.FILTER($E$2:$E$618,$D$2:$D$618=【別紙7】L7ファイアウォール設定!F36))),\"←対象ジャンルを指定してください\")","v":"←対象ジャンルを指定してください"}]
[null,null,"255.255.255.252(/30)","Blogging","Tianya","サブカテゴリF37 追加行用",{"$f":"IFERROR(TRANSPOSE(_xlfn.UNIQUE(_xlfn._xlws.FILTER($E$2:$E$618,$D$2:$D$618=【別紙7】L7ファイアウォール設定!F37))),\"←対象ジャンルを指定してください\")","v":"←対象ジャンルを指定してください"}]
[null,null,"255.255.255.254(/31)","Blogging","TypePad","サブカテゴリF38 追加行用",{"$f":"IFERROR(TRANSPOSE(_xlfn.UNIQUE(_xlfn._xlws.FILTER($E$2:$E$618,$D$2:$D$618=【別紙7】L7ファイアウォール設定!F38))),\"←対象ジャンルを指定してください\")","v":"←対象ジャンルを指定してください"}]
[null,null,null,"Blogging","WordPress","サブカテゴリF39 追加行用",{"$f":"IFERROR(TRANSPOSE(_xlfn.UNIQUE(_xlfn._xlws.FILTER($E$2:$E$618,$D$2:$D$618=【別紙7】L7ファイアウォール設定!F39))),\"←対象ジャンルを指定してください\")","v":"←対象ジャンルを指定してください"}]
[null,null,null,"Business_management","All Business management","サブカテゴリF40 追加行用",{"$f":"IFERROR(TRANSPOSE(_xlfn.UNIQUE(_xlfn._xlws.FILTER($E$2:$E$618,$D$2:$D$618=【別紙7】L7ファイアウォール設定!F40))),\"←対象ジャンルを指定してください\")","v":"←対象ジャンルを指定してください"}]
[null,null,null,"Business_management","Concur","サブカテゴリF41 追加行用",{"$f":"IFERROR(TRANSPOSE(_xlfn.UNIQUE(_xlfn._xlws.FILTER($E$2:$E$618,$D$2:$D$618=【別紙7】L7ファイアウォール設定!F41))),\"←対象ジャンルを指定してください\")","v":"←対象ジャンルを指定してください"}]
[null,null,null,"Business_management","Deltek Axium","サブカテゴリF42 追加行用",{"$f":"IFERROR(TRANSPOSE(_xlfn.UNIQUE(_xlfn._xlws.FILTER($E$2:$E$618,$D$2:$D$618=【別紙7】L7ファイアウォール設定!F42))),\"←対象ジャンルを指定してください\")","v":"←対象ジャンルを指定してください"}]
[null,null,null,"Business_management","IFS","サブカテゴリF43 追加行用",{"$f":"IFERROR(TRANSPOSE(_xlfn.UNIQUE(_xlfn._xlws.FILTER($E$2:$E$618,$D$2:$D$618=【別紙7】L7ファイアウォール設定!F43))),\"←対象ジャンルを指定してください\")","v":"←対象ジャンルを指定してください"}]
[null,null,null,"Business_management","Intacct","サブカテゴリF44 追加行用",{"$f":"IFERROR(TRANSPOSE(_xlfn.UNIQUE(_xlfn._xlws.FILTER($E$2:$E$618,$D$2:$D$618=【別紙7】L7ファイアウォール設定!F44))),\"←対象ジャンルを指定してください\")","v":"←対象ジャンルを指定してください"}]
[null,null,null,"Business_management","IQMS","サブカテゴリF45 追加行用",{"$f":"IFERROR(TRANSPOSE(_xlfn.UNIQUE(_xlfn._xlws.FILTER($E$2:$E$618,$D$2:$D$618=【別紙7】L7ファイアウォール設定!F45))),\"←対象ジャンルを指定してください\")","v":"←対象ジャンルを指定してください"}]
[null,null,null,"Business_management","Microsoft Dynamics 365","サブカテゴリF46 追加行用",{"$f":"IFERROR(TRANSPOSE(_xlfn.UNIQUE(_xlfn._xlws.FILTER($E$2:$E$618,$D$2:$D$618=【別紙7】L7ファイアウォール設定!F46))),\"←対象ジャンルを指定してください\")","v":"←対象ジャンルを指定してください"}]
[null,null,null,"Business_management","NetSuite","サブカテゴリF47 追加行用",{"$f":"IFERROR(TRANSPOSE(_xlfn.UNIQUE(_xlfn._xlws.FILTER($E$2:$E$618,$D$2:$D$618=【別紙7】L7ファイアウォール設定!F47))),\"←対象ジャンルを指定してください\")","v":"←対象ジャンルを指定してください"}]
[null,null,null,"Business_management","Priority ERP","サブカテゴリF48 追加行用",{"$f":"IFERROR(TRANSPOSE(_xlfn.UNIQUE(_xlfn._xlws.FILTER($E$2:$E$618,$D$2:$D$618=【別紙7】L7ファイアウォール設定!F48))),\"←対象ジャンルを指定してください\")","v":"←対象ジャンルを指定してください"}]
[null,null,null,"Business_management","salesforce.com","サブカテゴリF49 追加行用",{"$f":"IFERROR(TRANSPOSE(_xlfn.UNIQUE(_xlfn._xlws.FILTER($E$2:$E$618,$D$2:$D$618=【別紙7】L7ファイアウォール設定!F49))),\"←対象ジャンルを指定してください\")","v":"←対象ジャンルを指定してください"}]
[null,null,null,"Business_management","SICOM Restaurant Management","サブカテゴリF50 追加行用",{"$f":"IFERROR(TRANSPOSE(_xlfn.UNIQUE(_xlfn._xlws.FILTER($E$2:$E$618,$D$2:$D$618=【別紙7】L7ファイアウォール設定!F50))),\"←対象ジャンルを指定してください\")","v":"←対象ジャンルを指定してください"}]
[null,null,null,"Business_management","SugarCRM","サブカテゴリF51 追加行用",{"$f":"IFERROR(TRANSPOSE(_xlfn.UNIQUE(_xlfn._xlws.FILTER($E$2:$E$618,$D$2:$D$618=【別紙7】L7ファイアウォール設定!F51))),\"←対象ジャンルを指定してください\")","v":"←対象ジャンルを指定してください"}]
[null,null,null,"Business_management","Workday","サブカテゴリF52 追加行用",{"$f":"IFERROR(TRANSPOSE(_xlfn.UNIQUE(_xlfn._xlws.FILTER($E$2:$E$618,$D$2:$D$618=【別紙7】L7ファイアウォール設定!F52))),\"←対象ジャンルを指定してください\")","v":"←対象ジャンルを指定してください"}]
[null,null,null,"Databases_cloud_services","All Databases & cloud services","サブカテゴリF53 追加行用",{"$f":"IFERROR(TRANSPOSE(_xlfn.UNIQUE(_xlfn._xlws.FILTER($E$2:$E$618,$D$2:$D$618=【別紙7】L7ファイアウォール設定!F53))),\"←対象ジャンルを指定してください\")","v":"←対象ジャンルを指定してください"}]
[null,null,null,"Databases_cloud_services","Amazon Cloudfront"]
[null,null,null,"Databases_cloud_services","Amazon RDS"]
[null,null,null,"Databases_cloud_services","Amazon Redshift"]
[null,null,null,"Databases_cloud_services","Amazon S3"]
[null,null,null,"Databases_cloud_services","Amazon Web Services"]
[null,null,null,"Databases_cloud_services","Azure"]
[null,null,null,"Databases_cloud_services","Cassandra"]
[null,null,null,"Databases_cloud_services","DB service"]
[null,null,null,"Databases_cloud_services","dBase"]
[null,null,null,"Databases_cloud_services","DDM Distributed File management"]
[null,null,null,"Databases_cloud_services","DDM-Remote Relational Database Access"]
[null,null,null,"Databases_cloud_services","Domino Domain Monitor database - Remote DB Access Using Secure Sockets"]
[null,null,null,"Databases_cloud_services","GDS DataBase"]
[null,null,null,"Databases_cloud_services","IBM Cloud"]
[null,null,null,"Databases_cloud_services","IBM Informix SQL Interface"]
[null,null,null,"Databases_cloud_services","IBM-DB2"]
[null,null,null,"Databases_cloud_services","Ingres/Net"]
[null,null,null,"Databases_cloud_services","Microsoft OLAP"]
[null,null,null,"Databases_cloud_services","Microsoft SQL Monitor"]
[null,null,null,"Databases_cloud_services","Microsoft SQL Server"]
[null,null,null,"Databases_cloud_services","mongo"]
[null,null,null,"Databases_cloud_services","mySQL"]
[null,null,null,"Databases_cloud_services","oracle"]
[null,null,null,"Databases_cloud_services","Oracle Business Intelligence"]
[null,null,null,"Databases_cloud_services","Oracle coauthor"]
[null,null,null,"Databases_cloud_services","Oracle Names"]
[null,null,null,"Databases_cloud_services","Oracle Net8 Cman"]
[null,null,null,"Databases_cloud_services","Oracle Net8 CMan Admin"]
[null,null,null,"Databases_cloud_services","Oracle Remote Data Base"]
[null,null,null,"Databases_cloud_services","Oracle TCP/IP Listener"]
[null,null,null,"Databases_cloud_services","Plus Fives MUMPS"]
[null,null,null,"Databases_cloud_services","postgresql"]
[null,null,null,"Databases_cloud_services","REAL SQL Server"]
[null,null,null,"Databases_cloud_services","Remote Database Access"]
[null,null,null,"Databases_cloud_services","SAP Cloud Platform"]
[null,null,null,"Databases_cloud_services","SAP Hana"]
[null,null,null,"Databases_cloud_services","SQL Service"]
[null,null,null,"Databases_cloud_services","SQL*NET"]
[null,null,null,"Databases_cloud_services","SQL-NET"]
[null,null,null,"Databases_cloud_services","Sqli"]
[null,null,null,"Databases_cloud_services","Sybase"]
[null,null,null,"Databases_cloud_services","VVPS-Qua"]
[null,null,null,"Databases_cloud_services","Z39.50"]
[null,null,null,"Email","All Email"]
[null,null,null,"Email","Groupwise"]
[null,null,null,"Email","Host-based email (POP3/IMAP/SMTP)"]
[null,null,null,"Email","Hotmail"]
[null,null,null,"Email","Interactive Mail Support Protocol"]
[null,null,null,"Email","Internet Message Access Protocol over TLS/SSL"]
[null,null,null,"Email","Internet Message Access Protocol version 4"]
[null,null,null,"Email","Mail Submission Agent"]
[null,null,null,"Email","Mail.ru"]
[null,null,null,"Email","MailChimp"]
[null,null,null,"Email","MAILQ"]
[null,null,null,"Email","Messaging Application Programming Interface"]
[null,null,null,"Email","Microsoft Exchange"]
[null,null,null,"Email","MS Exchange Routing"]
[null,null,null,"Email","Netix Message Posting Protocol"]
[null,null,null,"Email","NI MAIL"]
[null,null,null,"Email","On-Demand Mail Relay"]
[null,null,null,"Email","Post Office Protocol - Version 2"]
[null,null,null,"Email","Post Office Protocol 3"]
[null,null,null,"Email","Post Office Protocol 3 over TLS"]
[null,null,null,"Email","Quick Mail Queuing Protocol"]
[null,null,null,"Email","Quick Mail Transfer Protocol"]
[null,null,null,"Email","Rackspace Hosted Exchange"]
[null,null,null,"Email","Remote Mail Checking Protocol"]
[null,null,null,"Email","Secure Simple Mail Transfer Protocol"]
[null,null,null,"Email","SEND"]
[null,null,null,"Email","Simple Mail Transfer Protocol"]
[null,null,null,"Email","Web based email"]
[null,null,null,"Email","Windows Live Hotmail and Outlook"]
[null,null,null,"Email","XNS mail"]
[null,null,null,"Email","Yahoo Mail"]
[null,null,null,"File sharing","All File sharing"]
[null,null,null,"File sharing","Apple file sharing"]
[null,null,null,"File sharing","Box"]
[null,null,null,"File sharing","Dropbox"]
[null,null,null,"File sharing","File Transfer [Default Data]"]
[null,null,null,"File sharing","Financial Information eXchange"]
[null,null,null,"File sharing","ftp protocol  control  over TLS/SSL"]
[null,null,null,"File sharing","Globus GridFTP"]
[null,null,null,"File sharing","Google Talk File Transfer"]
[null,null,null,"File sharing","Grid FTP"]
[null,null,null,"File sharing","Hangouts File Transfer"]
[null,null,null,"File sharing","Mega"]
[null,null,null,"File sharing","Microsoft OneDrive"]
[null,null,null,"File sharing","Microsoft-DS"]
[null,null,null,"File sharing","Multisource File Transfer Protocol"]
[null,null,null,"File sharing","NetApp SnapMirror"]
[null,null,null,"File sharing","Network File System"]
[null,null,null,"File sharing","NI FTP"]
[null,null,null,"File sharing","OSCAR File Transfer"]
[null,null,null,"File sharing","PFTP"]
[null,null,null,"File sharing","Prospero Directory Service"]
[null,null,null,"File sharing","PutLocker.com"]
[null,null,null,"File sharing","RemoteFS"]
[null,null,null,"File sharing","rsync"]
[null,null,null,"File sharing","SCSI on ST"]
[null,null,null,"File sharing","Secure FTP Data"]
[null,null,null,"File sharing","Sender-Initiated/Unsolicited File Transfer"]
[null,null,null,"File sharing","Simple Asynchronous File Transfer"]
[null,null,null,"File sharing","Simple File Transfer Protocol"]
[null,null,null,"File sharing","Softros LAN Messenger and File Transfer"]
[null,null,null,"File sharing","Trivial File Transfer Protocol"]
[null,null,null,"File sharing","TusFiles"]
[null,null,null,"File sharing","UUCP Path Service"]
[null,null,null,"File sharing","Windows file sharing"]
[null,null,null,"Gaming","All Gaming"]
[null,null,null,"Gaming","Battle.net"]
[null,null,null,"Gaming","Big Fish Games"]
[null,null,null,"Gaming","Blizzard"]
[null,null,null,"Gaming","BNet"]
[null,null,null,"Gaming","Call of Duty"]
[null,null,null,"Gaming","DirectPlay"]
[null,null,null,"Gaming","DirectPlay8"]
[null,null,null,"Gaming","DOOM"]
[null,null,null,"Gaming","Game-spy Online Gaming"]
[null,null,null,"Gaming","GameSpot"]
[null,null,null,"Gaming","GREE"]
[null,null,null,"Gaming","IGN"]
[null,null,null,"Gaming","IPX network emulator for DOS and Windows"]
[null,null,null,"Gaming","Maplestory"]
[null,null,null,"Gaming","Miniclip"]
[null,null,null,"Gaming","Parsec Gameserver"]
[null,null,null,"Gaming","PlayStation"]
[null,null,null,"Gaming","Playstation Store"]
[null,null,null,"Gaming","pogo.com"]
[null,null,null,"Gaming","QQ-Games"]
[null,null,null,"Gaming","Secondlife"]
[null,null,null,"Gaming","Steam"]
[null,null,null,"Gaming","TeamSound"]
[null,null,null,"Gaming","World of Warcraft"]
[null,null,null,"Gaming","Xbox LIVE"]
[null,null,null,"Gaming","Xfire Instant Messaging Service"]
[null,null,null,"Gaming","Zynga"]
[null,null,null,"Health_care","All Health care"]
[null,null,null,"Health_care","Allscripts"]
[null,null,null,"Health_care","Cerner"]
[null,null,null,"Health_care","CureMD"]
[null,null,null,"Health_care","Digital Imaging and Communications in Medicine"]
[null,null,null,"Health_care","Epic EHR"]
[null,null,null,"Health_care","GE Healthcare"]
[null,null,null,"Health_care","Health Level 7"]
[null,null,null,"Health_care","McKesson"]
[null,null,null,"News","All News"]
[null,null,null,"News","ABC News"]
[null,null,null,"News","BBC"]
[null,null,null,"News","Business Insider"]
[null,null,null,"News","BuzzFeed"]
[null,null,null,"News","CBS"]
[null,null,null,"News","CNBC"]
[null,null,null,"News","CNET"]
[null,null,null,"News","CNN"]
[null,null,null,"News","Daily Mail"]
[null,null,null,"News","Drudge Report"]
[null,null,null,"News","E! Online"]
[null,null,null,"News","Feedly"]
[null,null,null,"News","Fox News"]
[null,null,null,"News","Gizmodo"]
[null,null,null,"News","Indiatimes"]
[null,null,null,"News","MSN"]
[null,null,null,"News","NBC News"]
[null,null,null,"News","New York Times"]
[null,null,null,"News","NY Daily News"]
[null,null,null,"News","Patch.com"]
[null,null,null,"News","People.com"]
[null,null,null,"News","Rediff.com"]
[null,null,null,"News","Reuters"]
[null,null,null,"News","SFGate"]
[null,null,null,"News","sina.com.cn"]
[null,null,null,"News","Sky.com"]
[null,null,null,"News","TechCrunch"]
[null,null,null,"News","The Atlantic"]
[null,null,null,"News","The Blaze"]
[null,null,null,"News","The Daily Beast"]
[null,null,null,"News","The Hollywood Reporter"]
[null,null,null,"News","The Huffington Post"]
[null,null,null,"News","The Telegraph"]
[null,null,null,"News","The Washington Post"]
[null,null,null,"News","The Xinhuanet"]
[null,null,null,"News","TMZ"]
[null,null,null,"News","turner.com"]
[null,null,null,"News","UOL"]
[null,null,null,"News","USA Today"]
[null,null,null,"News","Wall Street Journal"]
[null,null,null,"Online_backup","All Online backup"]
[null,null,null,"Online_backup","Backblaze"]
[null,null,null,"Online_backup","Backup service"]
[null,null,null,"Online_backup","Carbonite"]
[null,null,null,"Online_backup","Connected Backup"]
[null,null,null,"Online_backup","Crashplan"]
[null,null,null,"Online_backup","IBackup"]
[null,null,null,"Online_backup","iCloud"]
[null,null,null,"Online_backup","Mozy"]
[null,null,null,"Online_backup","NovaStor Backup"]
[null,null,null,"Online_backup","Tobit David Replica"]
[null,null,null,"Online_backup","Yosemite Tech Tapeware"]
[null,null,null,"Peer_to_peer_P2P","All Peer-to-peer (P2P)"]
[null,null,null,"Peer_to_peer_P2P","Ares"]
[null,null,null,"Peer_to_peer_P2P","BitTorrent"]
[null,null,null,"Peer_to_peer_P2P","BitTorrent Networking"]
[null,null,null,"Peer_to_peer_P2P","DC++"]
[null,null,null,"Peer_to_peer_P2P","Distributed Hash Table"]
[null,null,null,"Peer_to_peer_P2P","eDonkey"]
[null,null,null,"Peer_to_peer_P2P","eDonkey Static"]
[null,null,null,"Peer_to_peer_P2P","Encrypted Bittorrent"]
[null,null,null,"Peer_to_peer_P2P","Encrypted eMule (eDonkey and Kademlia)"]
[null,null,null,"Peer_to_peer_P2P","FastTrack"]
[null,null,null,"Peer_to_peer_P2P","Filetopia"]
[null,null,null,"Peer_to_peer_P2P","Gnutella"]
[null,null,null,"Peer_to_peer_P2P","GoBoogy"]
[null,null,null,"Peer_to_peer_P2P","Kazaa"]
[null,null,null,"Peer_to_peer_P2P","Konspire2b"]
[null,null,null,"Peer_to_peer_P2P","Manolito"]
[null,null,null,"Peer_to_peer_P2P","networking-gnutella"]
[null,null,null,"Peer_to_peer_P2P","Pando"]
[null,null,null,"Peer_to_peer_P2P","Perfect Dark"]
[null,null,null,"Peer_to_peer_P2P","poco"]
[null,null,null,"Peer_to_peer_P2P","Share"]
[null,null,null,"Peer_to_peer_P2P","Soulseek"]
[null,null,null,"Peer_to_peer_P2P","Tomatopang"]
[null,null,null,"Peer_to_peer_P2P","Waste"]
[null,null,null,"Peer_to_peer_P2P","Webthunder"]
[null,null,null,"Peer_to_peer_P2P","WinMX"]
[null,null,null,"Peer_to_peer_P2P","Winny"]
[null,null,null,"Peer_to_peer_P2P","xunlei"]
[null,null,null,"Productivity","All Productivity"]
[null,null,null,"Productivity","Active Directory"]
[null,null,null,"Productivity","ActiveSync"]
[null,null,null,"Productivity","Adobe Creative Cloud"]
[null,null,null,"Productivity","Amazon EC2"]
[null,null,null,"Productivity","Atlassian"]
[null,null,null,"Productivity","Automatic Data Processing"]
[null,null,null,"Productivity","Bitbucket"]
[null,null,null,"Productivity","Cisco SD-WAN IPSec"]
[null,null,null,"Productivity","Computer Resources Sharing Application"]
[null,null,null,"Productivity","Control And Provisioning of Wireless Access Points Data Protocol"]
[null,null,null,"Productivity","Coursera"]
[null,null,null,"Productivity","DameWare Mini Remote Control"]
[null,null,null,"Productivity","Demandware"]
[null,null,null,"Productivity","Distributed Compiler"]
[null,null,null,"Productivity","GitHub"]
[null,null,null,"Productivity","iPass"]
[null,null,null,"Productivity","Jira"]
[null,null,null,"Productivity","mDNS"]
[null,null,null,"Productivity","Microsoft Office Web Applications"]
[null,null,null,"Productivity","Microsoft Windows Live Services Authentication"]
[null,null,null,"Productivity","Mikogo"]
[null,null,null,"Productivity","MindTouch"]
[null,null,null,"Productivity","Office 365"]
[null,null,null,"Productivity","OpenVPN"]
[null,null,null,"Productivity","Oracle"]
[null,null,null,"Productivity","Oracle E-Business Suite - Un-encrypted Traffic"]
[null,null,null,"Productivity","PDL data streaming port"]
[null,null,null,"Productivity","Pearson Education"]
[null,null,null,"Productivity","Perforce"]
[null,null,null,"Productivity","Pocket"]
[null,null,null,"Productivity","Prezi"]
[null,null,null,"Productivity","Rational ClearCase"]
[null,null,null,"Productivity","remote access and desktop sharing"]
[null,null,null,"Productivity","Remote Desktop Protocol"]
[null,null,null,"Productivity","SAP"]
[null,null,null,"Productivity","Sharepoint"]
[null,null,null,"Productivity","Siebel CRM"]
[null,null,null,"Productivity","Simphony.NET"]
[null,null,null,"Productivity","Siri"]
[null,null,null,"Productivity","Slack"]
[null,null,null,"Productivity","Slack Media"]
[null,null,null,"Productivity","Stack Overflow"]
[null,null,null,"Productivity","Timbaktu Remote Control Software"]
[null,null,null,"Productivity","Virtual Network Computing"]
[null,null,null,"Productivity","Vmware Vmotion"]
[null,null,null,"Productivity","VNC over HTTP"]
[null,null,null,"Productivity","Windows Live Office"]
[null,null,null,"Productivity","X-Windows Remote Access"]
[null,null,null,"Productivity","Zendesk"]
[null,null,null,"Productivity","Zoho Services"]
[null,null,null,"Remote_monitoring_management","All Remote monitoring & management"]
[null,null,null,"Remote_monitoring_management","Apple Remote Desktop"]
[null,null,null,"Remote_monitoring_management","auvik"]
[null,null,null,"Remote_monitoring_management","Citrix Audio"]
[null,null,null,"Remote_monitoring_management","Citrix ICA"]
[null,null,null,"Remote_monitoring_management","Citrix Online"]
[null,null,null,"Remote_monitoring_management","Citrix Static"]
[null,null,null,"Remote_monitoring_management","GotoDevice"]
[null,null,null,"Remote_monitoring_management","Gotomypc"]
[null,null,null,"Remote_monitoring_management","LogMeIn"]
[null,null,null,"Remote_monitoring_management","Marconet"]
[null,null,null,"Remote_monitoring_management","MyRMM"]
[null,null,null,"Remote_monitoring_management","PCoIP"]
[null,null,null,"Remote_monitoring_management","Remote Admin"]
[null,null,null,"Remote_monitoring_management","Remote desktop"]
[null,null,null,"Remote_monitoring_management","Sflow Traffic Monitoring"]
[null,null,null,"Remote_monitoring_management","showmypc"]
[null,null,null,"Remote_monitoring_management","Vmware View"]
[null,null,null,"Security","All Security"]
[null,null,null,"Security","avast"]
[null,null,null,"Security","Cisco Cognitive Threat Analytics"]
[null,null,null,"Security","Cisco Stealthwatch"]
[null,null,null,"Security","cisco umbrella"]
[null,null,null,"Security","DigiCert"]
[null,null,null,"Security","McAfee Antivirus"]
[null,null,null,"Social_web_photo_sharing","All Social web & photo sharing"]
[null,null,null,"Social_web_photo_sharing","Badoo"]
[null,null,null,"Social_web_photo_sharing","Douban"]
[null,null,null,"Social_web_photo_sharing","Facebook"]
[null,null,null,"Social_web_photo_sharing","Facebook Audio Streaming"]
[null,null,null,"Social_web_photo_sharing","Facebook Media Streaming"]
[null,null,null,"Social_web_photo_sharing","Facebook Video Streaming"]
[null,null,null,"Social_web_photo_sharing","Flickr"]
[null,null,null,"Social_web_photo_sharing","Google Talk"]
[null,null,null,"Social_web_photo_sharing","Google Talk Chat"]
[null,null,null,"Social_web_photo_sharing","Hangouts"]
[null,null,null,"Social_web_photo_sharing","Hangouts Audio"]
[null,null,null,"Social_web_photo_sharing","Hangouts Chat"]
[null,null,null,"Social_web_photo_sharing","HootSuite"]
[null,null,null,"Social_web_photo_sharing","ICQ"]
[null,null,null,"Social_web_photo_sharing","ImageShack"]
[null,null,null,"Social_web_photo_sharing","img.ly"]
[null,null,null,"Social_web_photo_sharing","imgur.com"]
[null,null,null,"Social_web_photo_sharing","Instagram"]
[null,null,null,"Social_web_photo_sharing","IP Messenger"]
[null,null,null,"Social_web_photo_sharing","Jabber"]
[null,null,null,"Social_web_photo_sharing","Kakao-Services"]
[null,null,null,"Social_web_photo_sharing","Kakao-Talk"]
[null,null,null,"Social_web_photo_sharing","Line"]
[null,null,null,"Social_web_photo_sharing","Mashable"]
[null,null,null,"Social_web_photo_sharing","Mixi"]
[null,null,null,"Social_web_photo_sharing","MySpace"]
[null,null,null,"Social_web_photo_sharing","photobucket.com"]
[null,null,null,"Social_web_photo_sharing","Picasa"]
[null,null,null,"Social_web_photo_sharing","Pinterest"]
[null,null,null,"Social_web_photo_sharing","QQ Instant Messenger"]
[null,null,null,"Social_web_photo_sharing","Shutterstock"]
[null,null,null,"Social_web_photo_sharing","smugmug"]
[null,null,null,"Social_web_photo_sharing","Snapchat"]
[null,null,null,"Social_web_photo_sharing","Tagged"]
[null,null,null,"Social_web_photo_sharing","Taringa"]
[null,null,null,"Social_web_photo_sharing","theCHIVE"]
[null,null,null,"Social_web_photo_sharing","twitpic"]
[null,null,null,"Social_web_photo_sharing","Twitter"]
[null,null,null,"Social_web_photo_sharing","VKontakte"]
[null,null,null,"Social_web_photo_sharing","WeChat"]
[null,null,null,"Social_web_photo_sharing","WhatsApp"]
[null,null,null,"Social_web_photo_sharing","Yahoo Messenger"]
[null,null,null,"Social_web_photo_sharing","Yelp"]
[null,null,null,"Social_web_photo_sharing","yfrog"]
[null,null,null,"Software_anti_virus_updates","All Software & anti-virus updates"]
[null,null,null,"Software_anti_virus_updates","adobe updates"]
[null,null,null,"Software_anti_virus_updates","Android Updates"]
[null,null,null,"Software_anti_virus_updates","Antivirus updates"]
[null,null,null,"Software_anti_virus_updates","Apple App Store"]
[null,null,null,"Software_anti_virus_updates","Apple iOS updates"]
[null,null,null,"Software_anti_virus_updates","Apple Updates"]
[null,null,null,"Software_anti_virus_updates","AppleTV updates"]
[null,null,null,"Software_anti_virus_updates","bitdefender"]
[null,null,null,"Software_anti_virus_updates","eset"]
[null,null,null,"Software_anti_virus_updates","Google Downloads Services"]
[null,null,null,"Software_anti_virus_updates","Google Play"]
[null,null,null,"Software_anti_virus_updates","Java Update"]
[null,null,null,"Software_anti_virus_updates","kaspersky"]
[null,null,null,"Software_anti_virus_updates","MAC OS X updates"]
[null,null,null,"Software_anti_virus_updates","Microsoft Windows Store"]
[null,null,null,"Software_anti_virus_updates","Microsoft Windows Update Service"]
[null,null,null,"Software_anti_virus_updates","Software updates"]
[null,null,null,"Software_anti_virus_updates","sophos"]
[null,null,null,"Software_anti_virus_updates","symantec"]
[null,null,null,"Software_anti_virus_updates","webrootcloudav.com"]
[null,null,null,"Sports","All Sports"]
[null,null,null,"Sports","Bleacher Report"]
[null,null,null,"Sports","CBS Sports"]
[null,null,null,"Sports","ESPN"]
[null,null,null,"Sports","ESPN video streaming"]
[null,null,null,"Sports","foxsports.com"]
[null,null,null,"Sports","mlb.com"]
[null,null,null,"Sports","nhl.com"]
[null,null,null,"Sports","Nike"]
[null,null,null,"Video_music","All Video & music"]
[null,null,null,"Video_music","AirPlay"]
[null,null,null,"Video_music","Apple QuickTime"]
[null,null,null,"Video_music","BBC iPlayer"]
[null,null,null,"Video_music","blip.tv"]
[null,null,null,"Video_music","BrightTalk"]
[null,null,null,"Video_music","Dailymotion"]
[null,null,null,"Video_music","DirecTV Data Catalog"]
[null,null,null,"Video_music","DirecTV Webcasting"]
[null,null,null,"Video_music","Disney"]
[null,null,null,"Video_music","Flash Video"]
[null,null,null,"Video_music","Flash Yahoo"]
[null,null,null,"Video_music","Food Network"]
[null,null,null,"Video_music","grooveshark.com"]
[null,null,null,"Video_music","Gyao"]
[null,null,null,"Video_music","HBO GO"]
[null,null,null,"Video_music","hulu.com"]
[null,null,null,"Video_music","iTunes"]
[null,null,null,"Video_music","iTunes Media"]
[null,null,null,"Video_music","iTunes-audio"]
[null,null,null,"Video_music","iTunes-video"]
[null,null,null,"Video_music","KeyHoleTV"]
[null,null,null,"Video_music","Kuro"]
[null,null,null,"Video_music","last.fm"]
[null,null,null,"Video_music","LeTV"]
[null,null,null,"Video_music","LiveStation"]
[null,null,null,"Video_music","megavideo.com"]
[null,null,null,"Video_music","Microsoft Stream"]
[null,null,null,"Video_music","Miscellaneous audio"]
[null,null,null,"Video_music","Miscellaneous video"]
[null,null,null,"Video_music","MPEG-2 Transport Stream"]
[null,null,null,"Video_music","MTV"]
[null,null,null,"Video_music","Napster"]
[null,null,null,"Video_music","Netflix"]
[null,null,null,"Video_music","Niconico"]
[null,null,null,"Video_music","Pandora"]
[null,null,null,"Video_music","PPstream"]
[null,null,null,"Video_music","PPTV"]
[null,null,null,"Video_music","Public Broadcasting Service"]
[null,null,null,"Video_music","QQLive"]
[null,null,null,"Video_music","rdio.com"]
[null,null,null,"Video_music","Real Data Transport"]
[null,null,null,"Video_music","Real Time Messaging Protocol Encrypted"]
[null,null,null,"Video_music","Real Time Messaging Protocol Tunneled"]
[null,null,null,"Video_music","RealMedia Traffic"]
[null,null,null,"Video_music","Rhapsody"]
[null,null,null,"Video_music","Sling"]
[null,null,null,"Video_music","SopCast"]
[null,null,null,"Video_music","Soribada"]
[null,null,null,"Video_music","soundcloud.com"]
[null,null,null,"Video_music","Spotify"]
[null,null,null,"Video_music","TED"]
[null,null,null,"Video_music","Tudou"]
[null,null,null,"Video_music","TwitchTV"]
[null,null,null,"Video_music","ustream.tv"]
[null,null,null,"Video_music","Vimeo"]
[null,null,null,"Video_music","Xfinity TV"]
[null,null,null,"Video_music","Xunlei Kankan"]
[null,null,null,"Video_music","Youku"]
[null,null,null,"Video_music","YouTube"]
[null,null,null,"Video_music","Zattoo"]
[null,null,null,"VoIP_video_conferencing","All VoIP & video conferencing"]
[null,null,null,"VoIP_video_conferencing","Audio Over HTTP"]
[null,null,null,"VoIP_video_conferencing","Cisco Collaboration Audio"]
[null,null,null,"VoIP_video_conferencing","Cisco Collaboration Control"]
[null,null,null,"VoIP_video_conferencing","Cisco Collaboration Media"]
[null,null,null,"VoIP_video_conferencing","Cisco Collaboration Video"]
[null,null,null,"VoIP_video_conferencing","Cisco Digital Media Player"]
[null,null,null,"VoIP_video_conferencing","Cisco IP Camera"]
[null,null,null,"VoIP_video_conferencing","Cisco IP SLA"]
[null,null,null,"VoIP_video_conferencing","Cisco Jabber Audio"]
[null,null,null,"VoIP_video_conferencing","Cisco Jabber Control"]
[null,null,null,"VoIP_video_conferencing","Cisco Jabber IM"]
[null,null,null,"VoIP_video_conferencing","Cisco Jabber Video"]
[null,null,null,"VoIP_video_conferencing","Cisco Media Audio"]
[null,null,null,"VoIP_video_conferencing","Cisco Media Video"]
[null,null,null,"VoIP_video_conferencing","Cisco NAC"]
[null,null,null,"VoIP_video_conferencing","Cisco Phone"]
[null,null,null,"VoIP_video_conferencing","Cisco Phone Audio"]
[null,null,null,"VoIP_video_conferencing","Cisco Phone Control"]
[null,null,null,"VoIP_video_conferencing","Cisco Phone Media"]
[null,null,null,"VoIP_video_conferencing","Cisco Phone Video"]
[null,null,null,"VoIP_video_conferencing","cisco smart probe"]
[null,null,null,"VoIP_video_conferencing","Cisco Spark"]
[null,null,null,"VoIP_video_conferencing","Cisco Spark Audio"]
[null,null,null,"VoIP_video_conferencing","Cisco Spark Media"]
[null,null,null,"VoIP_video_conferencing","Cisco Spark Video"]
[null,null,null,"VoIP_video_conferencing","Cisco TV"]
[null,null,null,"VoIP_video_conferencing","Conferencing"]
[null,null,null,"VoIP_video_conferencing","Conferencing Server"]
[null,null,null,"VoIP_video_conferencing","CRYPTOAdmin"]
[null,null,null,"VoIP_video_conferencing","Dropcam"]
[null,null,null,"VoIP_video_conferencing","Entrust Key Management Service Handler"]
[null,null,null,"VoIP_video_conferencing","Facetime"]
[null,null,null,"VoIP_video_conferencing","Google Services Audio"]
[null,null,null,"VoIP_video_conferencing","Google Services Media"]
[null,null,null,"VoIP_video_conferencing","Google Services Video"]
[null,null,null,"VoIP_video_conferencing","Google Talk Video"]
[null,null,null,"VoIP_video_conferencing","Google Talk Voice"]
[null,null,null,"VoIP_video_conferencing","GoToMeeting"]
[null,null,null,"VoIP_video_conferencing","H.225"]
[null,null,null,"VoIP_video_conferencing","H.245"]
[null,null,null,"VoIP_video_conferencing","H.323"]
[null,null,null,"VoIP_video_conferencing","Hangouts Media"]
[null,null,null,"VoIP_video_conferencing","Hangouts Video"]
[null,null,null,"VoIP_video_conferencing","Inter-Asterisk eXchange"]
[null,null,null,"VoIP_video_conferencing","Internet Security Association and Key Management Protocol"]
[null,null,null,"VoIP_video_conferencing","Internet video conference system"]
[null,null,null,"VoIP_video_conferencing","Jabber Audio"]
[null,null,null,"VoIP_video_conferencing","Jabber Video"]
[null,null,null,"VoIP_video_conferencing","Jive Software"]
[null,null,null,"VoIP_video_conferencing","Lifesize"]
[null,null,null,"VoIP_video_conferencing","Media Gateway Control Protocol"]
[null,null,null,"VoIP_video_conferencing","Microsoft Teams"]
[null,null,null,"VoIP_video_conferencing","MS Teams App Sharing"]
[null,null,null,"VoIP_video_conferencing","MS Teams Audio"]
[null,null,null,"VoIP_video_conferencing","MS Teams Media"]
[null,null,null,"VoIP_video_conferencing","MS Teams Video"]
[null,null,null,"VoIP_video_conferencing","Philips Video-Conferencing"]
[null,null,null,"VoIP_video_conferencing","Real-Time Transport Control Protocol"]
[null,null,null,"VoIP_video_conferencing","Real-time Transport Protocol"]
[null,null,null,"VoIP_video_conferencing","Real-time Transport Protocol Audio"]
[null,null,null,"VoIP_video_conferencing","Real-time Transport Protocol Video"]
[null,null,null,"VoIP_video_conferencing","RingCentral"]
[null,null,null,"VoIP_video_conferencing","Ringcentral Audio"]
[null,null,null,"VoIP_video_conferencing","Ringcentral Control"]
[null,null,null,"VoIP_video_conferencing","Ringcentral Media"]
[null,null,null,"VoIP_video_conferencing","Ringcentral Video"]
[null,null,null,"VoIP_video_conferencing","RTSPS"]
[null,null,null,"VoIP_video_conferencing","SCCP (Skinny Call Control Protocol)"]
[null,null,null,"VoIP_video_conferencing","Secure Data Network System Key Management Protocol"]
[null,null,null,"VoIP_video_conferencing","Secure SIP"]
[null,null,null,"VoIP_video_conferencing","SIP (Voice)"]
[null,null,null,"VoIP_video_conferencing","Skype"]
[null,null,null,"VoIP_video_conferencing","Skype for Business (MS-Lync)"]
[null,null,null,"VoIP_video_conferencing","Skype for Business (MS-Lync) Audio"]
[null,null,null,"VoIP_video_conferencing","Skype for Business (MS-Lync) Control"]
[null,null,null,"VoIP_video_conferencing","Skype for Business (MS-Lync) Video"]
[null,null,null,"VoIP_video_conferencing","Teamspeak"]
[null,null,null,"VoIP_video_conferencing","Telepresence Audio"]
[null,null,null,"VoIP_video_conferencing","Telepresence Control"]
[null,null,null,"VoIP_video_conferencing","Telepresence Media"]
[null,null,null,"VoIP_video_conferencing","Ventrilo"]
[null,null,null,"VoIP_video_conferencing","Viber"]
[null,null,null,"VoIP_video_conferencing","Video Over HTTP"]
[null,null,null,"VoIP_video_conferencing","Vocera"]
[null,null,null,"VoIP_video_conferencing","Web conferencing solution for web meetings"]
[null,null,null,"VoIP_video_conferencing","WebEx"]
[null,null,null,"VoIP_video_conferencing","Webex Application Sharing"]
[null,null,null,"VoIP_video_conferencing","Webex Audio"]
[null,null,null,"VoIP_video_conferencing","WebEx Control"]
[null,null,null,"VoIP_video_conferencing","WebEx Meeting"]
[null,null,null,"VoIP_video_conferencing","Webex Video"]
[null,null,null,"VoIP_video_conferencing","WebRTC"]
[null,null,null,"VoIP_video_conferencing","WebRTC Audio"]
[null,null,null,"VoIP_video_conferencing","WebRTC Video"]
[null,null,null,"VoIP_video_conferencing","Wi-Fi Calling"]
[null,null,null,"VoIP_video_conferencing","Yahoo Messenger Video"]
[null,null,null,"VoIP_video_conferencing","Yahoo VoIP Messenger"]
[null,null,null,"VoIP_video_conferencing","Yahoo VoIP over SIP"]
[null,null,null,"VoIP_video_conferencing","Zoom Meetings"]
[null,null,null,"Web_file_sharing","All Web file sharing"]
[null,null,null,"Web_file_sharing","4shared.com"]
[null,null,null,"Web_file_sharing","Binary over HTTP"]
[null,null,null,"Web_file_sharing","download.com"]
[null,null,null,"Web_file_sharing","Easynews"]
[null,null,null,"Web_file_sharing","easyshare.com"]
[null,null,null,"Web_file_sharing","filefactory.com"]
[null,null,null,"Web_file_sharing","filefront.com"]
[null,null,null,"Web_file_sharing","filer.com"]
[null,null,null,"Web_file_sharing","filestube.com"]
[null,null,null,"Web_file_sharing","gigeshare.com"]
[null,null,null,"Web_file_sharing","hotfile.com"]
[null,null,null,"Web_file_sharing","massmirror.com"]
[null,null,null,"Web_file_sharing","mediafire.com"]
[null,null,null,"Web_file_sharing","megashare.com"]
[null,null,null,"Web_file_sharing","megaupload.com"]
[null,null,null,"Web_file_sharing","RapidShare"]
[null,null,null,"Web_file_sharing","rapidshare.com"]
[null,null,null,"Web_file_sharing","SourceForge"]
[null,null,null,"Web_file_sharing","thepiratebay.org"]
[null,null,null,"Web_file_sharing","torrentz.com"]
[null,null,null,"Web_file_sharing","ultrashare.de"]
[null,null,null,"Web_file_sharing","upload.com"]
[null,null,null,"Web_file_sharing","WeTransfer"]
[null,null,null,"Web_file_sharing","Zippyshare"]
[null,null,null,"Web_file_sharing","zshare.net"]
[null,null,null,"Web_payments","All Web payments"]
[null,null,null,"Web_payments","Apple Pay"]
[null,null,null,"Web_payments","Bitcoin"]
[null,null,null,"Web_payments","Intuit"]
[null,null,null,"Web_payments","Lightspeed Retail POS"]
[null,null,null,"Web_payments","LivePOS"]
[null,null,null,"Web_payments","Mondex"]
[null,null,null,"Web_payments","PayPal"]
[null,null,null,"Web_payments","PayU"]
[null,null,null,"Web_payments","ShopKeep"]
[null,null,null,"Web_payments","Square"]
[null,null,null,"Web_payments","Stripe"]

{"sheet":"⇒これより右は【詳細申込】がある場合のみ記載","index":3,"n_rows":0,"n_cols":0,"rows_kept":0,"cut":false,"hidden":true,"merged":[]}

{"sheet":"詳細申込書","index":4,"n_rows":32,"n_cols":43,"rows_kept":32,"cut":false,"hidden":true,"merged":[[24,1,24,13],[23,14,23,24],[23,29,23,41],[23,42,23,52],[25,14,25,24],[25,29,25,41],[25,42,25,52],[24,14,24,24],[24,29,24,41],[24,42,24,52],[23,1,23,13],[17,1,17,13],[17,14,17,24],[15,14,15,24],[16,1,16,13],[16,14,16,24],[1,1,4,52],[8,1,9,52],[14,1,14,13],[14,14,14,24],[13,29,13,41],[13,42,13,52],[14,29,14,41],[11,1,11,13],[11,14,11,24],[11,29,11,41],[11,42,11,52],[12,1,12,13],[12,14,12,24],[13,1,13,13],[13,14,13,24],[14,42,14,52],[31,1,31,11],[31,12,31,13],[26,14,26,24],[26,29,26,41],[26,1,26,13],[28,29,28,41],[27,1,27,13],[27,14,27,24],[5,1,5,52],[30,1,30,52],[29,29,29,52],[17,29,17,41],[17,42,17,52],[28,42,28,52],[26,42,26,52],[25,1,25,13],[20,1,21,52],[12,29,12,41],[12,42,12,52],[16,29,16,41],[16,42,16,52],[15,29,15,41],[15,42,15,52],[15,1,15,13]]}
[]
[null,"【様式8C】ギガらくルーター・スイッチ 設定変更申込書"]
[]
[]
[]
[null,"詳細申込書"]
[]
[]
[null,"詳細設定項目（ギガらくルーター）"]
[]
[]
[null,"設定項目",null,null,null,null,null,null,null,null,null,null,null,null,"設定内容",null,null,null,null,null,null,null,null,null,null,null,null,null,null,"セキュリティ・制御設定項目",null,null,null,null,null,null,null,null,null,null,null,null,"設定内容"]
[null,"ポートの詳細設定",null,null,null,null,null,null,null,null,null,null,null,null,"無し",null,null,null,null,null,null,null,null,null,null,null,null,null,null,"L3 ファイアウォール設定",null,null,null,null,null,null,null,null,null,null,null,null,"無し"]
[null,"DHCP詳細設定",null,null,null,null,null,null,null,null,null,null,null,null,"無し",null,null,null,null,null,null,null,null,null,null,null,null,null,null,"L7 ファイアウォール設定",null,null,null,null,null,null,null,null,null,null,null,null,"無し"]
[null,"ダッシュボード上のNW名変更",null,null,null,null,null,null,null,null,null,null,null,null,"無し",null,null,null,null,null,null,null,null,null,null,null,null,null,null,"ポートフォワーディング",null,null,null,null,null,null,null,null,null,null,null,null,"無し"]
[null,"ギガらくWi-FiとのVPN",null,null,null,null,null,null,null,null,null,null,null,null,"無し",null,null,null,null,null,null,null,null,null,null,null,null,null,null,"通信速度制限",null,null,null,null,null,null,null,null,null,null,null,null,"無し"]
[null,"リモートアクセス設定",null,null,null,null,null,null,null,null,null,null,null,null,"無し",null,null,null,null,null,null,null,null,null,null,null,null,null,null,"アラート設定",null,null,null,null,null,null,null,null,null,null,null,null,"無し"]
[null,"スタティックルート",null,null,null,null,null,null,null,null,null,null,null,null,"無し"]
[]
[]
[null,"詳細設定項目（ギガらくスイッチ）"]
[]
[]
[null,"設定項目",null,null,null,null,null,null,null,null,null,null,null,null,"設定内容",null,null,null,null,null,null,null,null,null,null,null,null,null,null,"設定項目",null,null,null,null,null,null,null,null,null,null,null,null,"設定内容"]
[null,"ポート・VLAN設定",null,null,null,null,null,null,null,null,null,null,null,null,"無し",null,null,null,null,null,null,null,null,null,null,null,null,null,null,"MTU最大値",null,null,null,null,null,null,null,null,null,null,null,null,"default:9578"]
[null,"ポートスケジュール",null,null,null,null,null,null,null,null,null,null,null,null,"無し",null,null,null,null,null,null,null,null,null,null,null,null,null,null,"スパニングツリー　(STP/RTSP)",null,null,null,null,null,null,null,null,null,null,null,null,"有効（default）"]
[null,"ダッシュボード上のNW名変更",null,null,null,null,null,null,null,null,null,null,null,null,"無し",null,null,null,null,null,null,null,null,null,null,null,null,null,null,"IGMP snooping",null,null,null,null,null,null,null,null,null,null,null,null,"有効（default）"]
[null,"アラート設定",null,null,null,null,null,null,null,null,null,null,null,null,"無し"]
[null,null,null,null,null,null,null,null,null,null,null,null,null,null,null,null,null,null,null,null,null,null,null,null,null,null,null,null,null,"変更後のMTU最大値"]
[null,null,null,null,null,null,null,null,null,null,null,null,null,null,null,null,null,null,null,null,null,null,null,null,null,null,null,null,null,"※MTU最大値は1500以上で設定願います。"]
[null,"※同一拠点で複数スイッチがありスイッチ毎の設定をする場合は下記にチェックを入れていただいた上で、各シートをコピーしていただき、\n　 各シート名+【装置番号】で作成をお願いします。\n　 その際、シートは一番うしろから追加いただくようお願いします（マクロに影響が出るため）"]
[null,"複数スイッチ設定有無",null,null,null,null,null,null,null,null,null,null,"□"]

{"sheet":"【別紙１】ポートの詳細設定","index":5,"n_rows":40,"n_cols":96,"rows_kept":40,"cut":false,"hidden":true,"merged":[[30,2,30,50],[12,2,12,51],[25,88,25,94],[25,95,25,102],[26,55,26,58],[26,59,26,63],[26,64,26,69],[26,70,26,87],[26,88,26,94],[26,95,26,102],[25,2,25,5],[25,6,25,10],[25,11,25,16],[25,17,25,34],[25,35,25,41],[25,42,25,49],[26,2,26,5],[26,6,26,10],[26,11,26,16],[26,17,26,34],[26,35,26,41],[26,42,26,49],[23,59,23,63],[23,64,23,69],[10,80,10,83],[25,55,25,58],[25,59,25,63],[25,64,25,69],[25,70,25,87],[21,95,21,102],[24,55,24,58],[24,59,24,63],[24,64,24,69],[24,70,24,87],[24,88,24,94],[24,95,24,102],[21,55,21,58],[21,59,21,63],[21,64,21,69],[21,70,21,87],[21,88,21,94],[22,55,22,58],[22,59,22,63],[22,64,22,69],[22,70,22,87],[22,88,22,94],[22,95,22,102],[23,55,23,58],[9,6,9,18],[9,59,9,71],[10,2,10,5],[10,6,10,18],[10,21,10,26],[10,27,10,30],[10,55,10,58],[10,59,10,71],[10,74,10,79],[5,43,5,44],[39,54,40,103],[41,54,48,103],[36,55,36,58],[36,59,36,69],[36,70,36,75],[36,76,36,85],[37,55,37,58],[37,59,37,69],[37,70,37,75],[37,76,37,85],[34,55,34,58],[34,59,34,69],[34,70,34,75],[34,76,34,85],[35,55,35,58],[35,59,35,69],[35,70,35,75],[35,76,35,85],[32,55,32,58],[32,59,32,69],[32,70,32,75],[32,76,32,85],[33,55,33,58],[33,59,33,69],[33,70,33,75],[33,76,33,85],[27,95,27,102],[28,55,28,58],[28,59,28,63],[28,64,28,69],[28,70,28,87],[28,88,28,94],[28,95,28,102],[27,55,27,58],[27,59,27,63],[27,64,27,69],[27,70,27,87],[27,88,27,94],[30,55,30,102],[23,70,23,87],[23,88,23,94],[23,95,23,102],[19,95,19,102],[20,55,20,58],[20,59,20,63],[20,64,20,69],[20,70,20,87],[20,88,20,94],[20,95,20,102],[19,55,19,58],[19,59,19,63],[19,64,19,69],[19,70,19,87],[19,88,19,94],[17,95,17,102],[18,55,18,58],[18,59,18,63],[18,64,18,69],[18,70,18,87],[18,88,18,94],[18,95,18,102],[17,55,17,58],[17,59,17,63],[17,64,17,69],[17,70,17,87],[17,88,17,94],[15,95,15,102],[16,55,16,58],[16,59,16,63],[16,64,16,69],[16,70,16,87],[16,88,16,94],[16,95,16,102],[15,55,15,58],[15,59,15,63],[15,64,15,69],[15,70,15,87],[15,88,15,94],[39,1,40,50],[41,1,48,50],[1,54,4,103],[5,95,5,96],[13,55,13,58],[13,59,13,63],[13,64,13,69],[13,70,13,87],[13,88,13,94],[13,95,13,102],[14,55,14,58],[14,59,14,63],[14,64,14,69],[14,70,14,87],[14,88,14,94],[14,95,14,102],[14,42,14,49],[1,1,4,50],[13,2,13,5],[13,6,13,10],[13,11,13,16],[13,17,13,34],[13,35,13,41],[13,42,13,49],[14,2,14,5],[14,6,14,10],[14,11,14,16],[14,17,14,34],[14,35,14,41],[16,42,16,49],[15,2,15,5],[15,6,15,10],[15,11,15,16],[15,17,15,34],[15,35,15,41],[15,42,15,49],[16,2,16,5],[16,6,16,10],[16,11,16,16],[16,17,16,34],[16,35,16,41],[18,42,18,49],[17,2,17,5],[17,6,17,10],[17,11,17,16],[17,17,17,34],[17,35,17,41],[17,42,17,49],[18,2,18,5],[18,6,18,10],[18,11,18,16],[18,17,18,34],[18,35,18,41],[20,42,20,49],[19,2,19,5],[19,6,19,10],[19,11,19,16],[19,17,19,34],[19,35,19,41],[19,42,19,49],[20,2,20,5],[20,6,20,10],[20,11,20,16],[20,17,20,34],[20,35,20,41],[24,42,24,49],[21,2,21,5],[21,6,21,10],[21,11,21,16],[21,17,21,34],[21,35,21,41],[21,42,21,49],[24,2,24,5],[24,6,24,10],[24,11,24,16],[24,17,24,34],[24,35,24,41],[22,2,22,5],[22,6,22,10],[22,11,22,16],[22,17,22,34],[22,35,22,41],[22,42,22,49],[23,2,23,5],[23,6,23,10],[23,11,23,16],[23,17,23,34],[23,35,23,41],[23,42,23,49],[28,42,28,49],[27,2,27,5],[27,6,27,10],[27,11,27,16],[27,17,27,34],[27,35,27,41],[27,42,27,49],[28,2,28,5],[28,6,28,10],[28,11,28,16],[28,17,28,34],[28,35,28,41],[32,2,32,5],[32,6,32,16],[32,17,32,22],[32,23,32,32],[33,2,33,5],[33,6,33,16],[33,17,33,22],[33,23,33,32],[34,2,34,5],[34,6,34,16],[34,17,34,22],[34,23,34,32],[35,2,35,5],[35,6,35,16],[35,17,35,22],[35,23,35,32],[36,2,36,5],[36,6,36,16],[36,17,36,22],[36,23,36,32],[37,2,37,5],[37,6,37,16],[37,17,37,22],[37,23,37,32]]}
[]
[null,"【様式8C】ギガらくルーター・スイッチ 設定変更申込書\n【別紙1】ポートの詳細設定",null,null,null,null,null,null,null,null,null,null,null,null,null,null,null,null,null,null,null,null,null,null,null,null,null,null,null,null,null,null,null,null,null,null,null,null,null,null,null,null,null,null,null,null,null,null,null,null,null,null,null,null,"【様式8C】ギガらくルーター・スイッチ 設定変更申込書\n【別紙1】ポートの詳細設定"]
[]
[]
[]
[null,null,null,null,null,null,null,null,null,null,null,null,null,null,null,null,null,null,null,null,null,null,null,null,null,null,null,null,null,null,null,null,null,null,null,null,null,null,null,null,null,null,null,null,null,null,{"$f":"設定申込書!AS6","v":"Ver5.0(2026.3.1～)"}]
[]
[]
[null,null,"VLAN設定時、MXのLANポート設定を以下に記載",null,null,null,null,null,null,null,null,null,null,null,null,null,null,null,null,null,null,null,null,null,null,null,null,null,null,null,null,null,null,null,null,null,null,null,null,null,null,null,null,null,null,null,null,null,null,null,null,null,null,null,null,"上記でVLAN設定時、MXのLANポート設定を以下に記載"]
[null,null,null,null,null,null,"↓プランを選択してください↓",null,null,null,null,null,null,null,null,null,null,null,null,null,null,null,null,null,null,null,null,"↓プラン選択後、WAN2利用の有無を選択してください（エンタープライズプランType-Cを除く）",null,null,null,null,null,null,null,null,null,null,null,null,null,null,null,null,null,null,null,null,null,null,null,null,null,null,null,null,null,null,null,"↓プランを選択してください↓",null,null,null,null,null,null,null,null,null,null,null,null,null,null,null,null,null,null,null,null,"↓プラン選択後、WAN2利用の有無を選択してください（エンタープライズプランType-Cを除く）"]
[null,null,"プラン",null,null,null,null,null,null,null,null,null,null,null,null,null,null,null,null,null,null,"WAN2利用",null,null,null,null,null,null,null,null,null,null,null,null,null,null,null,null,null,null,null,null,null,null,null,null,null,null,null,null,null,null,null,null,null,"プラン",null,null,null,"ハイエンドプランType-C(MX67)",null,null,null,null,null,null,null,null,null,null,null,null,null,null,"WAN2利用",null,null,null,null,null,"なし"]
[]
[null,null,"ハイエンドプランType-C、ハイエンドLTEプランType-CにてWAN2を利用している場合、Port2にVLAN設定を入れることは出来ません。",null,null,null,null,null,null,null,null,null,null,null,null,null,null,null,null,null,null,null,null,null,null,null,null,null,null,null,null,null,null,null,null,null,null,null,null,null,null,null,null,null,null,null,null,null,null,null,null,null,null,null,null,"ハイエンドプランType-C、ハイエンドLTEプランType-CにてWAN2を利用している場合、Port2にVLAN設定を入れることは出来ません。"]
[null,null,"ポート",null,null,null,"Type",null,null,null,null,"Native VLAN",null,null,null,null,null,"VLAN or Allowed VLAN",null,null,null,null,null,null,null,null,null,null,null,null,null,null,null,null,null,"Access Policy",null,null,null,null,null,null,"Radius Server",null,null,null,null,null,null,null,null,null,null,null,null,"ポート",null,null,null,"Type",null,null,null,null,"Native VLAN",null,null,null,null,null,"VLAN or Allowed VLAN",null,null,null,null,null,null,null,null,null,null,null,null,null,null,null,null,null,"Access Policy",null,null,null,null,null,null,"Radius Server"]
[null,null,"例　1",null,null,null,"Access",null,null,null,null,"ー",null,null,null,null,null,1,null,null,null,null,null,null,null,null,null,null,null,null,null,null,null,null,null,"802.1x",null,null,null,null,null,null,"#1",null,null,null,null,null,null,null,null,null,null,null,null,"例　1",null,null,null,"Access",null,null,null,null,"ー",null,null,null,null,null,1,null,null,null,null,null,null,null,null,null,null,null,null,null,null,null,null,null,"802.1x",null,null,null,null,null,null,"#1"]
[null,null,1,null,null,null,"-",null,null,null,null,"-",null,null,null,null,null,"-",null,null,null,null,null,null,null,null,null,null,null,null,null,null,null,null,null,"-",null,null,null,null,null,null,"-",null,null,null,null,null,null,null,null,null,null,null,null,1]
[null,null,2,null,null,null,"-",null,null,null,null,"-",null,null,null,null,null,"-",null,null,null,null,null,null,null,null,null,null,null,null,null,null,null,null,null,"-",null,null,null,null,null,null,"-",null,null,null,null,null,null,null,null,null,null,null,null,2]
[null,null,3,null,null,null,"-",null,null,null,null,"-",null,null,null,null,null,"-",null,null,null,null,null,null,null,null,null,null,null,null,null,null,null,null,null,"-",null,null,null,null,null,null,"-",null,null,null,null,null,null,null,null,null,null,null,null,3]
[null,null,4,null,null,null,"-",null,null,null,null,"-",null,null,null,null,null,"-",null,null,null,null,null,null,null,null,null,null,null,null,null,null,null,null,null,"-",null,null,null,null,null,null,"-",null,null,null,null,null,null,null,null,null,null,null,null,4]
[null,null,5,null,null,null,"-",null,null,null,null,"-",null,null,null,null,null,"-",null,null,null,null,null,null,null,null,null,null,null,null,null,null,null,null,null,"-",null,null,null,null,null,null,"-",null,null,null,null,null,null,null,null,null,null,null,null,5]
[null,null,6,null,null,null,"-",null,null,null,null,"-",null,null,null,null,null,"-",null,null,null,null,null,null,null,null,null,null,null,null,null,null,null,null,null,"-",null,null,null,null,null,null,"-",null,null,null,null,null,null,null,null,null,null,null,null,6]
[null,null,7,null,null,null,"-",null,null,null,null,"-",null,null,null,null,null,"-",null,null,null,null,null,null,null,null,null,null,null,null,null,null,null,null,null,"-",null,null,null,null,null,null,"-",null,null,null,null,null,null,null,null,null,null,null,null,7]
[null,null,8,null,null,null,"-",null,null,null,null,"-",null,null,null,null,null,"-",null,null,null,null,null,null,null,null,null,null,null,null,null,null,null,null,null,"-",null,null,null,null,null,null,"-",null,null,null,null,null,null,null,null,null,null,null,null,8]
[null,null,9,null,null,null,"-",null,null,null,null,"-",null,null,null,null,null,"-",null,null,null,null,null,null,null,null,null,null,null,null,null,null,null,null,null,"-",null,null,null,null,null,null,"-",null,null,null,null,null,null,null,null,null,null,null,null,9]
[null,null,10,null,null,null,"-",null,null,null,null,"-",null,null,null,null,null,"-",null,null,null,null,null,null,null,null,null,null,null,null,null,null,null,null,null,"-",null,null,null,null,null,null,"-",null,null,null,null,null,null,null,null,null,null,null,null,10]
[null,null,11,null,null,null,"-",null,null,null,null,"-",null,null,null,null,null,"-",null,null,null,null,null,null,null,null,null,null,null,null,null,null,null,null,null,"-",null,null,null,null,null,null,"-",null,null,null,null,null,null,null,null,null,null,null,null,11]
[null,null,12,null,null,null,"-",null,null,null,null,"-",null,null,null,null,null,"-",null,null,null,null,null,null,null,null,null,null,null,null,null,null,null,null,null,"-",null,null,null,null,null,null,"-",null,null,null,null,null,null,null,null,null,null,null,null,12]
[null,null,13,null,null,null,"-",null,null,null,null,"-",null,null,null,null,null,"-",null,null,null,null,null,null,null,null,null,null,null,null,null,null,null,null,null,"-",null,null,null,null,null,null,"-",null,null,null,null,null,null,null,null,null,null,null,null,13]
[null,null,14,null,null,null,"-",null,null,null,null,"-",null,null,null,null,null,"-",null,null,null,null,null,null,null,null,null,null,null,null,null,null,null,null,null,"-",null,null,null,null,null,null,"-",null,null,null,null,null,null,null,null,null,null,null,null,14]
[]
[null,null,"上記でAccessPolicyを有効にした場合、RadiusServerの情報を以下に記載\n（本機能はエンタープライズプランType-C、拡張オプション機器ではご利用になれません）",null,null,null,null,null,null,null,null,null,null,null,null,null,null,null,null,null,null,null,null,null,null,null,null,null,null,null,null,null,null,null,null,null,null,null,null,null,null,null,null,null,null,null,null,null,null,null,null,null,null,null,null,"上記でAccessPolicyを有効にした場合、RadiusServerの情報を以下に記載\n（本機能はエンタープライズType-Cプラン、拡張オプション機器ではご利用になれません）"]
[]
[null,null,"No",null,null,null,"Radius Server IP",null,null,null,null,null,null,null,null,null,null,"Port",null,null,null,null,null,"Secret key",null,null,null,null,null,null,null,null,null,null,null,null,null,null,null,null,null,null,null,null,null,null,null,null,null,null,null,null,null,null,null,"No",null,null,null,"Radius Server IP",null,null,null,null,null,null,null,null,null,null,"Port",null,null,null,null,null,"Secret key"]
[null,null,"例：1",null,null,null,"192.168.10.249",null,null,null,null,null,null,null,null,null,null,1812,null,null,null,null,null,"xxxxxxxx",null,null,null,null,null,null,null,null,null,null,null,null,null,null,null,null,null,null,null,null,null,null,null,null,null,null,null,null,null,null,null,"例：1",null,null,null,"192.168.10.249",null,null,null,null,null,null,null,null,null,null,1812,null,null,null,null,null,"xxxxxxxx"]
[]
[]
[]
[]
[]
[null,"備考欄",null,null,null,null,null,null,null,null,null,null,null,null,null,null,null,null,null,null,null,null,null,null,null,null,null,null,null,null,null,null,null,null,null,null,null,null,null,null,null,null,null,null,null,null,null,null,null,null,null,null,null,null,"備考欄"]

{"sheet":"【別紙2】DHCP詳細設定","index":6,"n_rows":29,"n_cols":92,"rows_kept":29,"cut":false,"hidden":true,"merged":[[37,56,37,61],[37,62,37,67],[37,68,37,77],[37,78,37,92],[38,56,38,61],[38,62,38,67],[38,68,38,77],[38,78,38,92],[34,56,34,61],[34,62,34,67],[34,68,34,77],[34,78,34,92],[35,56,35,61],[35,62,35,67],[35,68,35,77],[35,78,35,92],[36,56,36,61],[36,62,36,67],[36,68,36,77],[36,78,36,92],[31,56,31,61],[31,62,31,67],[31,68,31,77],[31,78,31,92],[32,56,32,61],[32,62,32,67],[32,68,32,77],[32,78,32,92],[33,56,33,61],[33,62,33,67],[33,68,33,77],[33,78,33,92],[28,56,28,61],[28,62,28,67],[28,68,28,77],[28,78,28,92],[29,56,29,61],[29,62,29,67],[29,68,29,77],[29,78,29,92],[30,56,30,61],[30,62,30,67],[30,68,30,77],[30,78,30,92],[22,56,22,61],[22,62,22,67],[22,68,22,72],[22,73,22,77],[22,78,22,83],[22,84,22,90],[22,91,22,98],[24,56,24,76],[27,56,27,61],[27,62,27,67],[27,68,27,77],[27,78,27,92],[20,56,20,61],[20,62,20,67],[20,68,20,72],[20,73,20,77],[20,78,20,83],[20,84,20,90],[20,91,20,98],[21,56,21,61],[21,62,21,67],[21,68,21,72],[21,73,21,77],[21,78,21,83],[21,84,21,90],[21,91,21,98],[18,56,18,61],[18,62,18,67],[18,68,18,72],[18,73,18,77],[18,78,18,83],[18,84,18,90],[18,91,18,98],[19,56,19,61],[19,62,19,67],[19,68,19,72],[19,73,19,77],[19,78,19,83],[19,84,19,90],[19,91,19,98],[16,56,16,61],[16,62,16,67],[16,68,16,72],[16,73,16,77],[16,78,16,83],[16,84,16,90],[16,91,16,98],[17,56,17,61],[17,62,17,67],[17,68,17,72],[17,73,17,77],[17,78,17,83],[17,84,17,90],[17,91,17,98],[14,56,14,61],[14,62,14,67],[14,68,14,72],[14,73,14,77],[14,78,14,83],[14,84,14,90],[14,91,14,98],[15,56,15,61],[15,62,15,67],[15,68,15,72],[15,73,15,77],[15,78,15,83],[15,84,15,90],[15,91,15,98],[12,56,12,61],[12,62,12,67],[12,68,12,72],[12,73,12,77],[12,78,12,83],[12,84,12,90],[12,91,12,98],[13,56,13,61],[13,62,13,67],[13,68,13,72],[13,73,13,77],[13,78,13,83],[13,84,13,90],[13,91,13,98],[1,54,4,103],[5,95,5,96],[11,56,11,61],[11,62,11,67],[11,68,11,72],[11,73,11,77],[11,78,11,83],[11,84,11,90],[11,91,11,98],[1,1,4,50],[5,42,5,43],[11,3,11,8],[11,9,11,14],[11,15,11,19],[11,20,11,24],[11,25,11,30],[11,31,11,37],[11,38,11,45],[12,31,12,37],[12,38,12,45],[13,3,13,8],[13,9,13,14],[13,15,13,19],[13,20,13,24],[13,25,13,30],[13,31,13,37],[13,38,13,45],[12,3,12,8],[12,9,12,14],[12,15,12,19],[12,20,12,24],[12,25,12,30],[14,31,14,37],[14,38,14,45],[15,3,15,8],[15,9,15,14],[15,15,15,19],[15,20,15,24],[15,25,15,30],[15,31,15,37],[15,38,15,45],[14,3,14,8],[14,9,14,14],[14,15,14,19],[14,20,14,24],[14,25,14,30],[16,31,16,37],[16,38,16,45],[17,3,17,8],[17,9,17,14],[17,15,17,19],[17,20,17,24],[17,25,17,30],[17,31,17,37],[17,38,17,45],[16,3,16,8],[16,9,16,14],[16,15,16,19],[16,20,16,24],[16,25,16,30],[18,31,18,37],[18,38,18,45],[19,3,19,8],[19,9,19,14],[19,15,19,19],[19,20,19,24],[19,25,19,30],[19,31,19,37],[19,38,19,45],[18,3,18,8],[18,9,18,14],[18,15,18,19],[18,20,18,24],[18,25,18,30],[20,31,20,37],[20,38,20,45],[21,3,21,8],[21,9,21,14],[21,15,21,19],[21,20,21,24],[21,25,21,30],[21,31,21,37],[21,38,21,45],[20,3,20,8],[20,9,20,14],[20,15,20,19],[20,20,20,24],[20,25,20,30],[22,31,22,37],[22,38,22,45],[22,3,22,8],[22,9,22,14],[22,15,22,19],[22,20,22,24],[22,25,22,30],[24,3,24,23],[27,3,27,8],[25,4,25,45],[27,9,27,20],[27,21,27,30],[27,31,27,45],[30,3,30,8],[31,3,31,8],[28,3,28,8],[29,3,29,8],[28,9,28,20],[28,21,28,30],[28,31,28,45],[29,9,29,20],[29,21,29,30],[29,31,29,45],[30,9,30,20],[30,21,30,30],[30,31,30,45],[31,9,31,20],[31,21,31,30],[31,31,31,45],[34,3,34,8],[35,3,35,8],[32,3,32,8],[33,3,33,8],[34,9,34,20],[34,21,34,30],[34,31,34,45],[35,9,35,20],[35,21,35,30],[35,31,35,45],[32,9,32,20],[32,21,32,30],[32,31,32,45],[33,9,33,20],[33,21,33,30],[33,31,33,45],[38,3,38,8],[36,3,36,8],[37,3,37,8],[36,9,36,20],[36,21,36,30],[36,31,36,45],[37,9,37,20],[37,21,37,30],[37,31,37,45],[38,9,38,20],[38,21,38,30],[38,31,38,45]]}
[]
[null,"【様式8C】ギガらくルーター・スイッチ 設定変更申込書\n【別紙2】DHCP詳細設定",null,null,null,null,null,null,null,null,null,null,null,null,null,null,null,null,null,null,null,null,null,null,null,null,null,null,null,null,null,null,null,null,null,null,null,null,null,null,null,null,null,null,null,null,null,null,null,null,null,null,null,null,"【様式8C】ギガらくルーター・スイッチ 設定変更申込書\n【別紙2】DHCP詳細設定"]
[]
[]
[]
[null,null,null,null,null,null,null,null,null,null,null,null,null,null,null,null,null,null,null,null,null,null,null,null,null,null,null,null,null,null,null,null,null,null,null,null,null,null,null,null,null,null,null,null,null,null,{"$f":"設定申込書!AS6","v":"Ver5.0(2026.3.1～)"}]
[]
[]
[null,null,null,"DHCP Relayを選択する場合は、備考欄に DHCP Server IPを記入してください。",null,null,null,null,null,null,null,null,null,null,null,null,null,null,null,null,null,null,null,null,null,null,null,null,null,null,null,null,null,null,null,null,null,null,null,null,null,null,null,null,null,null,null,null,null,null,null,null,null,null,null,null,"DHCP Relayを選択する場合は、備考欄に DHCP Server IPを記入してください。"]
[]
[]
[null,null,null,"DHCP種別",null,null,null,null,null,"VLAN",null,null,null,null,null,"Lease Time",null,null,null,null,"DNS",null,null,null,null,"払出除外IPの範囲",null,null,null,null,null,"固定IP払い出し有無",null,null,null,null,null,null,"備考",null,null,null,null,null,null,null,null,null,null,null,null,null,null,null,null,null,"DHCP種別",null,null,null,null,null,"VLAN",null,null,null,null,null,"Lease Time",null,null,null,null,"DNS",null,null,null,null,"払出除外IPの範囲",null,null,null,null,null,"固定IP払い出し有無",null,null,null,null,null,null,"備考"]
[null,null,null,"DHCP稼働",null,null,null,null,null,10,null,null,null,null,null,"1日(default)",null,null,null,null,null,null,null,null,null,"192.168.10.200～230",null,null,null,null,null,"有",null,null,null,null,null,null,"設定例",null,null,null,null,null,null,null,null,null,null,null,null,null,null,null,null,null,"DHCP稼働",null,null,null,null,null,10,null,null,null,null,null,"1日(default)",null,null,null,null,null,null,null,null,null,"192.168.10.200～230",null,null,null,null,null,"有"]
[]
[]
[]
[]
[]
[]
[]
[]
[]
[]
[]
[null,null,null,"クライアント毎へIP固定払い出しの設定",null,null,null,null,null,null,null,null,null,null,null,null,null,null,null,null,null,null,null,null,null,null,null,null,null,null,null,null,null,null,null,null,null,null,null,null,null,null,null,null,null,null,null,null,null,null,null,null,null,null,null,null,"クライアント毎へIP固定払い出しの設定"]
[null,null,null,null,"設定件数が多い場合は \"クライアント名,MACアドレス,IPアドレス\"を1行とし、CSVファイルを作成し本様式とセットで提出してください。（以下の記入欄”備考”にCSVファイル名を記入してください。）",null,null,null,null,null,null,null,null,null,null,null,null,null,null,null,null,null,null,null,null,null,null,null,null,null,null,null,null,null,null,null,null,null,null,null,null,null,null,null,null,null,null,null,null,null,null,null,null,null,null,null,null,"設定件数が多い場合は \"クライアント名,MACアドレス,IPアドレス\"を1行とし、CSVファイルを作成してください。"]
[]
[null,null,null,"クライアント名",null,null,null,null,null,"MACアドレス",null,null,null,null,null,null,null,null,null,null,null,"固定IPアドレス",null,null,null,null,null,null,null,null,null,"備考",null,null,null,null,null,null,null,null,null,null,null,null,null,null,null,null,null,null,null,null,null,null,null,null,"クライアント名",null,null,null,null,null,"MACアドレス",null,null,null,null,null,"固定IPアドレス",null,null,null,null,null,null,null,null,null,"備考"]
[null,null,null,"例:dell pc",null,null,null,null,null,"xx:xx:xx:xx:xx:xx",null,null,null,null,null,null,null,null,null,null,null,"192.168.10.201",null,null,null,null,null,null,null,null,null,"設定例",null,null,null,null,null,null,null,null,null,null,null,null,null,null,null,null,null,null,null,null,null,null,null,null,"例:dell pc",null,null,null,null,null,"xx:xx:xx:xx:xx:xx",null,null,null,null,null,"192.168.10.201"]

{"sheet":"【別紙3】ダッシュボード上のNW名変更設定","index":7,"n_rows":62,"n_cols":85,"rows_kept":62,"cut":false,"hidden":true,"merged":[[61,49,61,50],[52,49,52,50],[53,49,53,50],[54,49,54,50],[55,49,55,50],[56,49,56,50],[57,49,57,50],[58,49,58,50],[59,49,59,50],[60,49,60,50],[60,17,60,31],[60,34,60,39],[60,40,60,48],[61,17,61,31],[61,34,61,39],[61,40,61,48],[58,17,58,31],[58,34,58,39],[58,40,58,48],[59,17,59,31],[59,34,59,39],[59,40,59,48],[49,51,49,56],[49,57,49,65],[49,34,49,39],[49,40,49,48],[56,1,56,16],[56,17,56,31],[56,34,56,39],[56,40,56,48],[57,17,57,31],[57,34,57,39],[57,40,57,48],[54,17,54,31],[54,34,54,39],[54,40,54,48],[55,17,55,31],[55,34,55,39],[55,40,55,48],[52,17,52,31],[52,34,52,39],[52,40,52,48],[53,17,53,31],[53,34,53,39],[53,40,53,48],[52,51,52,56],[1,1,4,50],[6,44,6,50],[10,1,10,16],[10,17,10,31],[10,34,10,39],[10,40,10,48],[6,18,6,30],[49,1,49,16],[49,17,49,31],[27,1,28,39],[8,2,8,48],[13,32,13,33],[14,32,14,33],[15,32,15,33],[16,32,16,33],[17,32,17,33],[18,32,18,33],[19,32,19,33],[20,32,20,33],[21,32,21,33],[9,34,9,48],[13,84,13,89],[13,90,13,98],[14,17,14,31],[14,34,14,39],[14,40,14,48],[14,67,14,81],[14,84,14,89],[14,90,14,98],[13,17,13,31],[13,34,13,39],[13,40,13,48],[13,67,13,81],[13,82,13,83],[14,82,14,83],[15,84,15,89],[15,90,15,98],[16,17,16,31],[16,34,16,39],[16,40,16,48],[16,67,16,81],[16,84,16,89],[16,90,16,98],[15,17,15,31],[15,34,15,39],[15,40,15,48],[15,67,15,81],[15,82,15,83],[16,82,16,83],[17,84,17,89],[17,90,17,98],[18,17,18,31],[18,34,18,39],[18,40,18,48],[18,67,18,81],[18,84,18,89],[18,90,18,98],[17,1,17,16],[17,17,17,31],[17,34,17,39],[17,40,17,48],[17,51,17,66],[17,67,17,81],[17,82,17,83],[18,82,18,83],[19,84,19,89],[19,90,19,98],[20,17,20,31],[20,34,20,39],[20,40,20,48],[20,67,20,81],[20,84,20,89],[20,90,20,98],[19,17,19,31],[19,34,19,39],[19,40,19,48],[19,67,19,81],[19,82,19,83],[20,82,20,83],[21,84,21,89],[21,90,21,98],[22,17,22,31],[22,34,22,39],[22,40,22,48],[22,67,22,81],[22,84,22,89],[22,90,22,98],[21,17,21,31],[21,34,21,39],[21,40,21,48],[21,67,21,81],[22,32,22,33],[21,82,21,83],[22,82,22,83],[52,57,52,65],[53,51,53,56],[53,57,53,65],[54,51,54,56],[54,57,54,65],[55,51,55,56],[55,57,55,65],[56,51,56,56],[56,57,56,65],[57,51,57,56],[57,57,57,65],[58,51,58,56],[58,57,58,65],[59,51,59,56],[59,57,59,65],[60,51,60,56],[60,57,60,65],[61,51,61,56],[61,57,61,65]]}
[]
[null,"【様式8C】ギガらくルーター・スイッチ 設定変更申込書\n【別紙3】ダッシュボード上のNW名変更設定"]
[]
[]
[]
[null,null,null,null,null,null,null,null,null,null,null,null,null,null,null,null,null,null,null,null,null,null,null,null,null,null,null,null,null,null,null,null,null,null,null,null,null,null,null,null,null,null,null,null,{"$f":"設定申込書!AS6","v":"Ver5.0(2026.3.1～)"}]
[]
[]
[null,null,"ダッシュボード上のネットワーク名はお客様から指定がない場合は\"0001\"から連番で設定されます。\n表示をわかりやすい名前(拠点名など）に変更されたい場合は、本設定シートで変更したい名前を指定してください。\n"]
[null,"（例）",null,null,null,null,null,null,null,null,null,null,null,null,null,null,null,"ネットワーク名を変更したい拠点の契約IDまたはネットワーク名",null,null,null,null,null,null,null,null,null,null,null,null,null,null,null,null,"変更後ダッシュボードで表示されるネットワーク名(拠点名)"]
[null,"ネットワーク名、またはサービスの契約IDを指定",null,null,null,null,null,null,null,null,null,null,null,null,null,null,null,"HGI9990000001",null,null,null,null,null,null,null,null,null,null,null,null,null,null,null,null,"変更したい名前",null,null,null,null,null,"Osaka"]
[null,null,null,null,null,null,null,null,null,null,null,null,null,null,null,null,null,null,null,null,null,null,null,null,null,null,null,null,null,null,null,null,null,null,"※入力可能文字：半角英数及び記号（. @ # _ -）"]
[]
[null,null,null,null,null,null,null,null,null,null,null,null,null,null,null,null,null,null,null,null,null,null,null,null,null,null,null,null,null,null,null,null,"→",null,"変更したい名前",null,null,null,null,null,null,null,null,null,null,null,null,null,null,null,null,null,null,null,null,null,null,null,null,null,null,null,null,null,null,null,null,null,null,null,null,null,null,null,null,null,null,null,null,null,null,null,"→",null,"変更したい名前"]
[null,null,null,null,null,null,null,null,null,null,null,null,null,null,null,null,null,null,null,null,null,null,null,null,null,null,null,null,null,null,null,null,"→",null,"変更したい名前",null,null,null,null,null,null,null,null,null,null,null,null,null,null,null,null,null,null,null,null,null,null,null,null,null,null,null,null,null,null,null,null,null,null,null,null,null,null,null,null,null,null,null,null,null,null,null,"→",null,"変更したい名前"]
[null,null,null,null,null,null,null,null,null,null,null,null,null,null,null,null,null,null,null,null,null,null,null,null,null,null,null,null,null,null,null,null,"→",null,"変更したい名前",null,null,null,null,null,null,null,null,null,null,null,null,null,null,null,null,null,null,null,null,null,null,null,null,null,null,null,null,null,null,null,null,null,null,null,null,null,null,null,null,null,null,null,null,null,null,null,"→",null,"変更したい名前"]
[null,null,null,null,null,null,null,null,null,null,null,null,null,null,null,null,null,null,null,null,null,null,null,null,null,null,null,null,null,null,null,null,"→",null,"変更したい名前",null,null,null,null,null,null,null,null,null,null,null,null,null,null,null,null,null,null,null,null,null,null,null,null,null,null,null,null,null,null,null,null,null,null,null,null,null,null,null,null,null,null,null,null,null,null,null,"→",null,"変更したい名前"]
[null,"ネットワーク名\nまたはサービスの契約IDを指定",null,null,null,null,null,null,null,null,null,null,null,null,null,null,null,null,null,null,null,null,null,null,null,null,null,null,null,null,null,null,"→",null,"変更したい名前",null,null,null,null,null,null,null,null,null,null,null,null,null,null,null,null,"ネットワーク名\nまたはサービスの契約IDを指定",null,null,null,null,null,null,null,null,null,null,null,null,null,null,null,null,null,null,null,null,null,null,null,null,null,null,null,null,null,null,"→",null,"変更したい名前"]
[null,null,null,null,null,null,null,null,null,null,null,null,null,null,null,null,null,null,null,null,null,null,null,null,null,null,null,null,null,null,null,null,"→",null,"変更したい名前",null,null,null,null,null,null,null,null,null,null,null,null,null,null,null,null,null,null,null,null,null,null,null,null,null,null,null,null,null,null,null,null,null,null,null,null,null,null,null,null,null,null,null,null,null,null,null,"→",null,"変更したい名前"]
[null,null,null,null,null,null,null,null,null,null,null,null,null,null,null,null,null,null,null,null,null,null,null,null,null,null,null,null,null,null,null,null,"→",null,"変更したい名前",null,null,null,null,null,null,null,null,null,null,null,null,null,null,null,null,null,null,null,null,null,null,null,null,null,null,null,null,null,null,null,null,null,null,null,null,null,null,null,null,null,null,null,null,null,null,null,"→",null,"変更したい名前"]
[null,null,null,null,null,null,null,null,null,null,null,null,null,null,null,null,null,null,null,null,null,null,null,null,null,null,null,null,null,null,null,null,"→",null,"変更したい名前",null,null,null,null,null,null,null,null,null,null,null,null,null,null,null,null,null,null,null,null,null,null,null,null,null,null,null,null,null,null,null,null,null,null,null,null,null,null,null,null,null,null,null,null,null,null,null,"→",null,"変更したい名前"]
[null,null,null,null,null,null,null,null,null,null,null,null,null,null,null,null,null,null,null,null,null,null,null,null,null,null,null,null,null,null,null,null,"→",null,"変更したい名前",null,null,null,null,null,null,null,null,null,null,null,null,null,null,null,null,null,null,null,null,null,null,null,null,null,null,null,null,null,null,null,null,null,null,null,null,null,null,null,null,null,null,null,null,null,null,null,"→",null,"変更したい名前"]
[null,null,null,null,null,null,null,null,null,null,null,null,null,null,null,null,null,null,null,null,null,null,null,null,null,null,null,null,null,null,null,null,"→",null,"変更したい名前",null,null,null,null,null,null,null,null,null,null,null,null,null,null,null,null,null,null,null,null,null,null,null,null,null,null,null,null,null,null,null,null,null,null,null,null,null,null,null,null,null,null,null,null,null,null,null,"→",null,"変更したい名前"]
[]
[]
[]
[]
[null,"備考欄"]
[]
[]
[]
[]
[]
[]
[]
[]
[]
[]
[]
[]
[]
[]
[]
[]
[null,null,null,null,null,null,null,null,null,null,null,null,null,null,null,null,null,"NW名または契約IDは、ダッシュボードのNetwork名または変更したい機器がある拠点の契約IDを記入"]
[null,null,null,null,null,null,null,null,null,null,null,null,null,null,null,null,null,"機器シリアルNoは本体箱側面、または機器背面のS/N(N/S)に記載の12文字を記入"]
[null,null,null,null,null,null,null,null,null,null,null,null,null,null,null,null,null,"変更したい名前に機器につける名前を指定してください。"]
[]
[null,"（例）",null,null,null,null,null,null,null,null,null,null,null,null,null,null,null,"変更したい機器が設置されている契約IDまたはネットワーク名",null,null,null,null,null,null,null,null,null,null,null,null,null,null,null,null,"名前を変更したいVPN・スイッチ機器のシリアル番号",null,null,null,null,null,null,null,null,null,null,null,null,null,null,null,null,"変更後ダッシュボードで表示されるネットワーク機器名"]
[null,"NW名、また拠点で契約しているサービスの契約ID",null,null,null,null,null,null,null,null,null,null,null,null,null,null,null,"HGI9990000001",null,null,null,null,null,null,null,null,null,null,null,null,null,null,null,null,"機器シリアルNo",null,null,null,null,null,"Q2XX-XXXX-XXXX",null,null,null,null,null,null,null,null,null,null,"変更したい名前",null,null,null,null,null,"Osaka-VPNRT-001"]
[null,null,null,null,null,null,null,null,null,null,null,null,null,null,null,null,null,null,null,null,null,null,null,null,null,null,null,null,null,null,null,null,null,null,null,null,null,null,null,null,null,null,null,null,null,null,null,null,null,null,null,"※入力可能文字：半角英数及び記号（. @ # _ -）"]
[]
[null,null,null,null,null,null,null,null,null,null,null,null,null,null,null,null,null,null,null,null,null,null,null,null,null,null,null,null,null,null,null,null,null,null,"機器シリアルNo",null,null,null,null,null,null,null,null,null,null,null,null,null,null,"→",null,"変更したい名前"]
[null,null,null,null,null,null,null,null,null,null,null,null,null,null,null,null,null,null,null,null,null,null,null,null,null,null,null,null,null,null,null,null,null,null,"機器シリアルNo",null,null,null,null,null,null,null,null,null,null,null,null,null,null,"→",null,"変更したい名前"]
[null,null,null,null,null,null,null,null,null,null,null,null,null,null,null,null,null,null,null,null,null,null,null,null,null,null,null,null,null,null,null,null,null,null,"機器シリアルNo",null,null,null,null,null,null,null,null,null,null,null,null,null,null,"→",null,"変更したい名前"]
[null,null,null,null,null,null,null,null,null,null,null,null,null,null,null,null,null,null,null,null,null,null,null,null,null,null,null,null,null,null,null,null,null,null,"機器シリアルNo",null,null,null,null,null,null,null,null,null,null,null,null,null,null,"→",null,"変更したい名前"]
[null,"ネットワーク名\nまたはサービスの契約IDを指定",null,null,null,null,null,null,null,null,null,null,null,null,null,null,null,null,null,null,null,null,null,null,null,null,null,null,null,null,null,null,null,null,"機器シリアルNo",null,null,null,null,null,null,null,null,null,null,null,null,null,null,"→",null,"変更したい名前"]
[null,null,null,null,null,null,null,null,null,null,null,null,null,null,null,null,null,null,null,null,null,null,null,null,null,null,null,null,null,null,null,null,null,null,"機器シリアルNo",null,null,null,null,null,null,null,null,null,null,null,null,null,null,"→",null,"変更したい名前"]
[null,null,null,null,null,null,null,null,null,null,null,null,null,null,null,null,null,null,null,null,null,null,null,null,null,null,null,null,null,null,null,null,null,null,"機器シリアルNo",null,null,null,null,null,null,null,null,null,null,null,null,null,null,"→",null,"変更したい名前"]
[null,null,null,null,null,null,null,null,null,null,null,null,null,null,null,null,null,null,null,null,null,null,null,null,null,null,null,null,null,null,null,null,null,null,"機器シリアルNo",null,null,null,null,null,null,null,null,null,null,null,null,null,null,"→",null,"変更したい名前"]
[null,null,null,null,null,null,null,null,null,null,null,null,null,null,null,null,null,null,null,null,null,null,null,null,null,null,null,null,null,null,null,null,null,null,"機器シリアルNo",null,null,null,null,null,null,null,null,null,null,null,null,null,null,"→",null,"変更したい名前"]
[null,null,null,null,null,null,null,null,null,null,null,null,null,null,null,null,null,null,null,null,null,null,null,null,null,null,null,null,null,null,null,null,null,null,"機器シリアルNo",null,null,null,null,null,null,null,null,null,null,null,null,null,null,"→",null,"変更したい名前"]

{"sheet":"【別紙4】ギガらくWi-FiとのVPN","index":8,"n_rows":38,"n_cols":91,"rows_kept":38,"cut":false,"hidden":true,"merged":[[22,90,22,95],[37,54,38,89],[39,54,46,89],[22,54,22,55],[22,56,22,68],[22,69,22,76],[22,77,22,83],[22,84,22,89],[20,90,20,95],[21,54,21,55],[21,56,21,68],[21,69,21,76],[21,77,21,83],[21,84,21,89],[21,90,21,95],[20,54,20,55],[20,56,20,68],[20,69,20,76],[20,77,20,83],[20,84,20,89],[18,90,18,95],[19,54,19,55],[19,56,19,68],[19,69,19,76],[19,77,19,83],[19,84,19,89],[19,90,19,95],[18,54,18,55],[18,56,18,68],[18,69,18,76],[18,77,18,83],[18,84,18,89],[16,90,16,95],[17,54,17,55],[17,56,17,68],[17,69,17,76],[17,77,17,83],[17,84,17,89],[17,90,17,95],[16,54,16,55],[16,56,16,68],[16,69,16,76],[16,77,16,83],[16,84,16,89],[14,90,14,95],[15,54,15,55],[15,56,15,68],[15,69,15,76],[15,77,15,83],[15,84,15,89],[15,90,15,95],[14,54,14,55],[14,56,14,68],[14,69,14,76],[14,77,14,83],[14,84,14,89],[12,90,12,95],[13,54,13,55],[13,56,13,68],[13,69,13,76],[13,77,13,83],[13,84,13,89],[13,90,13,95],[12,54,12,55],[12,56,12,68],[12,69,12,76],[12,77,12,83],[12,84,12,89],[1,54,4,103],[5,95,5,96],[11,54,11,55],[11,56,11,68],[11,69,11,76],[11,77,11,83],[11,84,11,89],[11,90,11,95],[22,37,22,42],[17,37,17,42],[18,37,18,42],[19,37,19,42],[20,37,20,42],[21,37,21,42],[12,37,12,42],[13,37,13,42],[14,37,14,42],[15,37,15,42],[16,37,16,42],[1,1,4,50],[5,42,5,43],[11,1,11,2],[11,3,11,15],[11,16,11,23],[14,1,14,2],[14,3,14,15],[14,16,14,23],[14,24,14,30],[14,31,14,36],[11,24,11,30],[11,31,11,36],[11,37,11,42],[13,1,13,2],[13,3,13,15],[13,16,13,23],[13,24,13,30],[13,31,13,36],[12,1,12,2],[12,3,12,15],[12,16,12,23],[12,24,12,30],[12,31,12,36],[16,1,16,2],[16,3,16,15],[16,16,16,23],[16,24,16,30],[16,31,16,36],[15,1,15,2],[15,3,15,15],[15,16,15,23],[15,24,15,30],[15,31,15,36],[18,1,18,2],[18,3,18,15],[18,16,18,23],[18,24,18,30],[18,31,18,36],[17,1,17,2],[17,3,17,15],[17,16,17,23],[17,24,17,30],[17,31,17,36],[20,1,20,2],[20,3,20,15],[20,16,20,23],[20,24,20,30],[20,31,20,36],[19,1,19,2],[19,3,19,15],[19,16,19,23],[19,24,19,30],[19,31,19,36],[39,1,46,36],[22,1,22,2],[22,3,22,15],[22,16,22,23],[22,24,22,30],[22,31,22,36],[37,1,38,36],[21,1,21,2],[21,3,21,15],[21,16,21,23],[21,24,21,30],[21,31,21,36]]}
[]
[null,"【様式8C】ギガらくルーター・スイッチ 設定変更申込書\n【別紙4】ギガらくWi-FiとのVPN設定",null,null,null,null,null,null,null,null,null,null,null,null,null,null,null,null,null,null,null,null,null,null,null,null,null,null,null,null,null,null,null,null,null,null,null,null,null,null,null,null,null,null,null,null,null,null,null,null,null,null,null,null,"【様式8C】ギガらくルーター・スイッチ 設定変更申込書\n【別紙4】ギガらくWi-FiとのVPN設定"]
[]
[]
[]
[null,null,null,null,null,null,null,null,null,null,null,null,null,null,null,null,null,null,null,null,null,null,null,null,null,null,null,null,null,null,null,null,null,null,null,null,null,null,null,null,null,null,null,null,null,null,{"$f":"設定申込書!AS6","v":"Ver5.0(2026.3.1～)"}]
[]
[]
[null,null,null,"複数拠点のギガらくWi-FiにVPNを設定する場合は、以下に記載してください。",null,null,null,null,null,null,null,null,null,null,null,null,null,null,null,null,null,null,null,null,null,null,null,null,null,null,null,null,null,null,null,null,null,null,null,null,null,null,null,null,null,null,null,null,null,null,null,null,null,null,null,null,"複数拠点のギガらくWi-FiにVPNを設定する場合は、以下に記載してください。"]
[null,null,null,"Wi-Fi新設の場合、シリアルは空欄で構いません。備考欄に新設であることを記載して下さい",null,null,null,null,null,null,null,null,null,null,null,null,null,null,null,null,null,null,null,null,null,null,null,null,null,null,null,null,null,null,null,null,null,null,null,null,null,null,null,null,null,null,null,null,null,null,null,null,null,null,null,null,"Wi-Fi新設の場合、シリアルは空欄で構いません。備考欄に新設であることを記載して下さい"]
[]
[null,"No",null,"Access Point　シリアルナンバー",null,null,null,null,null,null,null,null,null,null,null,null,"SSID名",null,null,null,null,null,null,null,"WPA1/2 Password",null,null,null,null,null,null,"所属VLAN",null,null,null,null,null,"ローカル\nブレイクアウト",null,null,null,null,null,null,null,null,null,null,null,null,null,null,null,null,"No",null,"Access Point　シリアルナンバー",null,null,null,null,null,null,null,null,null,null,null,null,"SSID名",null,null,null,null,null,null,null,"WPA1/2 Password",null,null,null,null,null,null,"所属VLAN",null,null,null,null,null,"ローカル\nブレイクアウト"]
[null,null,null,"例：Q2KD-XXXX-XXXX",null,null,null,null,null,null,null,null,null,null,null,null,"Gyoumu-SSID",null,null,null,null,null,null,null,"xxxxxxxx",null,null,null,null,null,null,10,null,null,null,null,null,"しない",null,null,null,null,null,null,null,null,null,null,null,null,null,null,null,null,null,null,"例：Q2KD-XXXX-XXXX",null,null,null,null,null,null,null,null,null,null,null,null,"Gyoumu-SSID",null,null,null,null,null,null,null,"xxxxxxxx",null,null,null,null,null,null,10,null,null,null,null,null,"しない"]
[null,1,null,null,null,null,null,null,null,null,null,null,null,null,null,null,null,null,null,null,null,null,null,null,null,null,null,null,null,null,null,null,null,null,null,null,null,null,null,null,null,null,null,null,null,null,null,null,null,null,null,null,null,null,1]
[null,2,null,null,null,null,null,null,null,null,null,null,null,null,null,null,null,null,null,null,null,null,null,null,null,null,null,null,null,null,null,null,null,null,null,null,null,null,null,null,null,null,null,null,null,null,null,null,null,null,null,null,null,null,2]
[null,3,null,null,null,null,null,null,null,null,null,null,null,null,null,null,null,null,null,null,null,null,null,null,null,null,null,null,null,null,null,null,null,null,null,null,null,null,null,null,null,null,null,null,null,null,null,null,null,null,null,null,null,null,3]
[null,4,null,null,null,null,null,null,null,null,null,null,null,null,null,null,null,null,null,null,null,null,null,null,null,null,null,null,null,null,null,null,null,null,null,null,null,null,null,null,null,null,null,null,null,null,null,null,null,null,null,null,null,null,4]
[null,5,null,null,null,null,null,null,null,null,null,null,null,null,null,null,null,null,null,null,null,null,null,null,null,null,null,null,null,null,null,null,null,null,null,null,null,null,null,null,null,null,null,null,null,null,null,null,null,null,null,null,null,null,5]
[null,6,null,null,null,null,null,null,null,null,null,null,null,null,null,null,null,null,null,null,null,null,null,null,null,null,null,null,null,null,null,null,null,null,null,null,null,null,null,null,null,null,null,null,null,null,null,null,null,null,null,null,null,null,6]
[null,7,null,null,null,null,null,null,null,null,null,null,null,null,null,null,null,null,null,null,null,null,null,null,null,null,null,null,null,null,null,null,null,null,null,null,null,null,null,null,null,null,null,null,null,null,null,null,null,null,null,null,null,null,7]
[null,8,null,null,null,null,null,null,null,null,null,null,null,null,null,null,null,null,null,null,null,null,null,null,null,null,null,null,null,null,null,null,null,null,null,null,null,null,null,null,null,null,null,null,null,null,null,null,null,null,null,null,null,null,8]
[null,9,null,null,null,null,null,null,null,null,null,null,null,null,null,null,null,null,null,null,null,null,null,null,null,null,null,null,null,null,null,null,null,null,null,null,null,null,null,null,null,null,null,null,null,null,null,null,null,null,null,null,null,null,9]
[null,10,null,null,null,null,null,null,null,null,null,null,null,null,null,null,null,null,null,null,null,null,null,null,null,null,null,null,null,null,null,null,null,null,null,null,null,null,null,null,null,null,null,null,null,null,null,null,null,null,null,null,null,null,10]
[]
[null,"備考欄にVPN接続したいWi-Fi拠点の契約ID（CAF,COP,COW,ROW等)を記載して下さい。",null,null,null,null,null,null,null,null,null,null,null,null,null,null,null,null,null,null,null,null,null,null,null,null,null,null,null,null,null,null,null,null,null,null,null,null,null,null,null,null,null,null,null,null,null,null,null,null,null,null,null,null,"備考欄にVPN接続したいWi-Fi拠点の契約ID（CAF,COW,WOW等)を記載して下さい。"]
[null,"ローカルブレイクアウトする場合：Wi-Fi拠点からVPNサブネット、DNS通信以外のトラフィックは\nVPNトンネルを介さず直接インターネットに抜けます。",null,null,null,null,null,null,null,null,null,null,null,null,null,null,null,null,null,null,null,null,null,null,null,null,null,null,null,null,null,null,null,null,null,null,null,null,null,null,null,null,null,null,null,null,null,null,null,null,null,null,null,null,"ローカルブレイクアウトする場合：Wi-Fi拠点からVPNサブネット、DNS通信以外のトラフィックは\nVPNトンネルを介さず直接インターネットに抜けます。"]
[null,"ローカルブレイクアウトしない場合：対象SSIDに接続したクライアントの全ての通信がVPNトンネルを通ります。",null,null,null,null,null,null,null,null,null,null,null,null,null,null,null,null,null,null,null,null,null,null,null,null,null,null,null,null,null,null,null,null,null,null,null,null,null,null,null,null,null,null,null,null,null,null,null,null,null,null,null,null,"ローカルブレイクアウトしない場合：対象SSIDに接続したクライアントの全ての通信がVPNトンネルを通ります。"]
[]
[null,"所属VLANはWi-Fiクライアントがギガらくルーターで管理しているVLANのどのVLANに所属させたいか指定します。",null,null,null,null,null,null,null,null,null,null,null,null,null,null,null,null,null,null,null,null,null,null,null,null,null,null,null,null,null,null,null,null,null,null,null,null,null,null,null,null,null,null,null,null,null,null,null,null,null,null,null,null,"所属VLANはWi-Fiクライアントがギガらくルーターで管理しているVLANのどのVLANに所属させたいか指定します。"]
[null,"ギガらくルーター装置にVLANを設定していない場合、ギガらくルーター装置のLANアドレス帯に属します。",null,null,null,null,null,null,null,null,null,null,null,null,null,null,null,null,null,null,null,null,null,null,null,null,null,null,null,null,null,null,null,null,null,null,null,null,null,null,null,null,null,null,null,null,null,null,null,null,null,null,null,null,"ギガらくルーター装置にVLANを設定していない場合、ギガらくルーター装置のLANアドレス帯に属します。"]
[]
[null,"対象SSID(VPN用SSID)に接続したクライアントのIPアドレスは上記で指定したサブネットに属します。",null,null,null,null,null,null,null,null,null,null,null,null,null,null,null,null,null,null,null,null,null,null,null,null,null,null,null,null,null,null,null,null,null,null,null,null,null,null,null,null,null,null,null,null,null,null,null,null,null,null,null,null,"対象SSID(VPN用SSID)に接続したクライアントのIPアドレスは上記で指定したサブネットに属します。"]
[null,"但しAP本体のIPアドレスは設置環境のサブネットに属します。",null,null,null,null,null,null,null,null,null,null,null,null,null,null,null,null,null,null,null,null,null,null,null,null,null,null,null,null,null,null,null,null,null,null,null,null,null,null,null,null,null,null,null,null,null,null,null,null,null,null,null,null,"但しAP本体のIPアドレスは設置環境のサブネットに属します。"]
[null,"例）　本部VPN装置（Local Subnet:192.168.1.0/24) --- 拠点AP(Wi-Fi Client IP 192.168.1.xx)",null,null,null,null,null,null,null,null,null,null,null,null,null,null,null,null,null,null,null,null,null,null,null,null,null,null,null,null,null,null,null,null,null,null,null,null,null,null,null,null,null,null,null,null,null,null,null,null,null,null,null,null,"例）　本部VPN装置（Local Subnet:192.168.1.0/24) --- 拠点AP(Wi-Fi Client IP 192.168.1.xx)"]
[null,null,null,null,null,null,null,null,null,null,null,null,null,null,null,null,null,null,null,null,"拠点AP本体のIPアドレス(192.168.99.254)",null,null,null,null,null,null,null,null,null,null,null,null,null,null,null,null,null,null,null,null,null,null,null,null,null,null,null,null,null,null,null,null,null,null,null,null,null,null,null,null,null,null,null,null,null,null,null,null,null,null,null,null,"拠点AP本体のIPアドレス(192.168.99.254)"]
[]
[]
[null,"備考欄",null,null,null,null,null,null,null,null,null,null,null,null,null,null,null,null,null,null,null,null,null,null,null,null,null,null,null,null,null,null,null,null,null,null,null,null,null,null,null,null,null,null,null,null,null,null,null,null,null,null,null,null,"備考欄"]

{"sheet":"【別紙5】リモートアクセス設定","index":9,"n_rows":113,"n_cols":96,"rows_kept":113,"cut":false,"hidden":true,"merged":[[45,15,45,27],[45,31,45,43],[41,54,41,66],[41,83,41,95],[44,54,44,66],[44,67,44,79],[44,83,44,95],[45,54,45,66],[45,67,45,79],[45,83,45,95],[112,1,112,2],[112,3,112,17],[112,18,112,25],[112,26,112,27],[112,28,112,42],[112,43,112,50],[110,1,110,2],[110,3,110,17],[110,18,110,25],[110,26,110,27],[110,28,110,42],[110,43,110,50],[111,1,111,2],[111,3,111,17],[111,18,111,25],[111,26,111,27],[111,28,111,42],[111,43,111,50],[108,1,108,2],[108,3,108,17],[108,18,108,25],[108,26,108,27],[108,28,108,42],[108,43,108,50],[109,1,109,2],[109,3,109,17],[109,18,109,25],[109,26,109,27],[109,28,109,42],[109,43,109,50],[106,1,106,2],[106,3,106,17],[106,18,106,25],[106,26,106,27],[106,28,106,42],[106,43,106,50],[107,1,107,2],[107,3,107,17],[107,18,107,25],[107,26,107,27],[107,28,107,42],[107,43,107,50],[104,1,104,2],[104,3,104,17],[104,18,104,25],[104,26,104,27],[104,28,104,42],[104,43,104,50],[105,1,105,2],[105,3,105,17],[105,18,105,25],[105,26,105,27],[105,28,105,42],[105,43,105,50],[102,1,102,2],[102,3,102,17],[102,18,102,25],[102,26,102,27],[102,28,102,42],[102,43,102,50],[103,1,103,2],[103,3,103,17],[103,18,103,25],[103,26,103,27],[103,28,103,42],[103,43,103,50],[100,1,100,2],[100,3,100,17],[100,18,100,25],[100,26,100,27],[100,28,100,42],[100,43,100,50],[101,1,101,2],[101,3,101,17],[101,18,101,25],[101,26,101,27],[101,28,101,42],[101,43,101,50],[98,1,98,2],[98,3,98,17],[98,18,98,25],[98,26,98,27],[98,28,98,42],[98,43,98,50],[99,1,99,2],[99,3,99,17],[99,18,99,25],[99,26,99,27],[99,28,99,42],[99,43,99,50],[96,1,96,2],[96,3,96,17],[96,18,96,25],[96,26,96,27],[96,28,96,42],[96,43,96,50],[97,1,97,2],[97,3,97,17],[97,18,97,25],[97,26,97,27],[97,28,97,42],[97,43,97,50],[94,1,94,2],[94,3,94,17],[94,18,94,25],[94,26,94,27],[94,28,94,42],[94,43,94,50],[95,1,95,2],[95,3,95,17],[95,18,95,25],[95,26,95,27],[95,28,95,42],[95,43,95,50],[92,1,92,2],[92,3,92,17],[92,18,92,25],[92,26,92,27],[92,28,92,42],[92,43,92,50],[93,1,93,2],[93,3,93,17],[93,18,93,25],[93,26,93,27],[93,28,93,42],[93,43,93,50],[90,1,90,2],[90,3,90,17],[90,18,90,25],[90,26,90,27],[90,28,90,42],[90,43,90,50],[91,1,91,2],[91,3,91,17],[91,18,91,25],[91,26,91,27],[91,28,91,42],[91,43,91,50],[88,1,88,2],[88,3,88,17],[88,18,88,25],[88,26,88,27],[88,28,88,42],[88,43,88,50],[89,1,89,2],[89,3,89,17],[89,18,89,25],[89,26,89,27],[89,28,89,42],[89,43,89,50],[86,1,86,2],[86,3,86,17],[86,18,86,25],[86,26,86,27],[86,28,86,42],[86,43,86,50],[87,1,87,2],[87,3,87,17],[87,18,87,25],[87,26,87,27],[87,28,87,42],[87,43,87,50],[84,1,84,2],[84,3,84,17],[84,18,84,25],[84,26,84,27],[84,28,84,42],[84,43,84,50],[85,1,85,2],[85,3,85,17],[85,18,85,25],[85,26,85,27],[85,28,85,42],[85,43,85,50],[82,1,82,2],[82,3,82,17],[82,18,82,25],[82,26,82,27],[82,28,82,42],[82,43,82,50],[83,1,83,2],[83,3,83,17],[83,18,83,25],[83,26,83,27],[83,28,83,42],[83,43,83,50],[80,1,80,2],[80,3,80,17],[80,18,80,25],[80,26,80,27],[80,28,80,42],[80,43,80,50],[81,1,81,2],[81,3,81,17],[81,18,81,25],[81,26,81,27],[81,28,81,42],[81,43,81,50],[78,1,78,2],[78,3,78,17],[78,18,78,25],[78,26,78,27],[78,28,78,42],[78,43,78,50],[79,1,79,2],[79,3,79,17],[79,18,79,25],[79,26,79,27],[79,28,79,42],[79,43,79,50],[76,1,76,2],[76,3,76,17],[76,18,76,25],[76,26,76,27],[76,28,76,42],[76,43,76,50],[77,1,77,2],[77,3,77,17],[77,18,77,25],[77,26,77,27],[77,28,77,42],[77,43,77,50],[74,1,74,2],[74,3,74,17],[74,18,74,25],[74,26,74,27],[74,28,74,42],[74,43,74,50],[75,1,75,2],[75,3,75,17],[75,18,75,25],[75,26,75,27],[75,28,75,42],[75,43,75,50],[72,1,72,2],[72,3,72,17],[72,18,72,25],[72,26,72,27],[72,28,72,42],[72,43,72,50],[73,1,73,2],[73,3,73,17],[73,18,73,25],[73,26,73,27],[73,28,73,42],[73,43,73,50],[70,1,70,2],[70,3,70,17],[70,18,70,25],[70,26,70,27],[70,28,70,42],[70,43,70,50],[71,1,71,2],[71,3,71,17],[71,18,71,25],[71,26,71,27],[71,28,71,42],[71,43,71,50],[68,1,68,2],[68,3,68,17],[68,18,68,25],[68,26,68,27],[68,28,68,42],[68,43,68,50],[69,1,69,2],[69,3,69,17],[69,18,69,25],[69,26,69,27],[69,28,69,42],[69,43,69,50],[66,1,66,2],[66,3,66,17],[66,18,66,25],[66,26,66,27],[66,28,66,42],[66,43,66,50],[67,1,67,2],[67,3,67,17],[67,18,67,25],[67,26,67,27],[67,28,67,42],[67,43,67,50],[64,1,64,2],[64,3,64,17],[64,18,64,25],[64,26,64,27],[64,28,64,42],[64,43,64,50],[65,1,65,2],[65,3,65,17],[65,18,65,25],[65,26,65,27],[65,28,65,42],[65,43,65,50],[59,2,59,14],[62,1,62,2],[62,3,62,17],[62,18,62,25],[62,26,62,27],[62,28,62,42],[62,43,62,50],[63,1,63,2],[63,3,63,17],[63,18,63,25],[63,26,63,27],[63,28,63,42],[63,43,63,50],[1,1,4,50],[5,42,5,43],[8,2,8,14],[11,1,11,15],[11,16,11,23],[12,1,12,15],[12,16,12,23],[11,24,11,32],[12,24,12,32],[10,2,10,46],[11,33,11,41],[12,33,12,41],[11,42,11,48],[12,42,12,48],[21,1,21,2],[21,3,21,17],[21,18,21,25],[21,26,21,27],[21,28,21,42],[21,43,21,50],[13,1,13,15],[13,16,13,23],[17,2,17,14],[19,2,19,43],[20,1,20,2],[20,3,20,17],[20,18,20,25],[20,26,20,27],[20,28,20,42],[20,43,20,50],[13,24,13,32],[13,33,13,41],[18,2,18,43],[13,42,13,48],[23,1,23,2],[23,3,23,17],[23,18,23,25],[23,26,23,27],[23,28,23,42],[23,43,23,50],[22,1,22,2],[22,3,22,17],[22,18,22,25],[22,26,22,27],[22,28,22,42],[22,43,22,50],[25,1,25,2],[25,3,25,17],[25,18,25,25],[25,26,25,27],[25,28,25,42],[25,43,25,50],[24,1,24,2],[24,3,24,17],[24,18,24,25],[24,26,24,27],[24,28,24,42],[24,43,24,50],[27,1,27,2],[27,3,27,17],[27,18,27,25],[27,26,27,27],[27,28,27,42],[27,43,27,50],[26,1,26,2],[26,3,26,17],[26,18,26,25],[26,26,26,27],[26,28,26,42],[26,43,26,50],[29,1,29,2],[29,3,29,17],[29,18,29,25],[29,26,29,27],[29,28,29,42],[29,43,29,50],[28,1,28,2],[28,3,28,17],[28,18,28,25],[28,26,28,27],[28,28,28,42],[28,43,28,50],[31,3,31,17],[31,18,31,25],[31,26,31,27],[31,28,31,42],[31,43,31,50],[30,1,30,2],[30,3,30,17],[30,18,30,25],[30,26,30,27],[30,28,30,42],[30,43,30,50],[31,1,31,2],[47,1,48,50],[49,1,56,50],[35,2,35,14],[37,1,37,2],[37,3,37,15],[37,16,37,23],[37,24,37,36],[37,37,37,50],[38,1,38,2],[38,3,38,15],[38,16,38,23],[38,24,38,36],[38,37,38,50],[39,1,39,2],[39,3,39,15],[39,16,39,23],[39,24,39,36],[39,37,39,50],[41,2,41,14],[41,31,41,43],[44,2,44,14],[44,15,44,27],[44,31,44,43],[45,2,45,14],[33,1,33,2],[33,3,33,17],[33,18,33,25],[32,1,32,2],[32,3,32,17],[32,18,32,25],[32,26,32,27],[32,28,32,42],[32,43,32,50],[33,26,33,50],[1,53,4,102],[5,94,5,95],[8,54,8,66],[10,54,10,98],[11,53,11,67],[11,68,11,75],[11,76,11,84],[11,85,11,93],[12,53,12,67],[12,68,12,75],[12,76,12,84],[12,85,12,93],[11,94,11,100],[12,94,12,100],[13,53,13,67],[13,68,13,75],[13,76,13,84],[13,85,13,93],[17,54,17,66],[18,54,18,95],[19,54,19,95],[20,53,20,54],[20,55,20,69],[20,70,20,77],[20,78,20,79],[20,80,20,94],[20,95,20,102],[13,94,13,100],[21,53,21,54],[21,55,21,69],[21,70,21,77],[21,78,21,79],[21,80,21,94],[21,95,21,102],[22,53,22,54],[22,55,22,69],[22,70,22,77],[22,78,22,79],[22,80,22,94],[22,95,22,102],[23,53,23,54],[23,55,23,69],[23,70,23,77],[23,78,23,79],[23,80,23,94],[23,95,23,102],[24,53,24,54],[24,55,24,69],[24,70,24,77],[24,78,24,79],[24,80,24,94],[24,95,24,102],[25,53,25,54],[25,55,25,69],[25,70,25,77],[25,78,25,79],[25,80,25,94],[25,95,25,102],[26,53,26,54],[26,55,26,69],[26,70,26,77],[26,78,26,79],[26,80,26,94],[26,95,26,102],[27,53,27,54],[27,55,27,69],[27,70,27,77],[27,78,27,79],[27,80,27,94],[27,95,27,102],[28,53,28,54],[28,55,28,69],[28,70,28,77],[28,78,28,79],[28,80,28,94],[28,95,28,102],[29,53,29,54],[29,55,29,69],[29,70,29,77],[29,78,29,79],[29,80,29,94],[29,95,29,102],[30,53,30,54],[30,55,30,69],[30,70,30,77],[30,78,30,79],[30,80,30,94],[30,95,30,102],[31,53,31,54],[31,55,31,69],[31,70,31,77],[31,78,31,79],[31,80,31,94],[31,95,31,102],[32,53,32,54],[32,55,32,69],[32,70,32,77],[32,78,32,79],[32,80,32,94],[32,95,32,102],[33,53,33,54],[33,55,33,69],[33,70,33,77],[33,78,33,102],[35,54,35,66],[37,53,37,54],[37,55,37,67],[37,68,37,75],[37,76,37,88],[37,89,37,102],[38,53,38,54],[38,55,38,67],[38,68,38,75],[38,76,38,88],[38,89,38,102],[39,53,39,54],[39,55,39,67],[39,68,39,75],[39,76,39,88],[39,89,39,102],[47,53,48,102],[49,53,56,102],[59,54,59,66],[62,53,62,54],[62,55,62,69],[62,70,62,77],[62,78,62,79],[62,80,62,94],[62,95,62,102],[63,53,63,54],[63,55,63,69],[63,70,63,77],[63,78,63,79],[63,80,63,94],[63,95,63,102],[64,53,64,54],[64,55,64,69],[64,70,64,77],[64,78,64,79],[64,80,64,94],[64,95,64,102],[65,53,65,54],[65,55,65,69],[65,70,65,77],[65,78,65,79],[65,80,65,94],[65,95,65,102],[66,53,66,54],[66,55,66,69],[66,70,66,77],[66,78,66,79],[66,80,66,94],[66,95,66,102],[67,53,67,54],[67,55,67,69],[67,70,67,77],[67,78,67,79],[67,80,67,94],[67,95,67,102],[68,53,68,54],[68,55,68,69],[68,70,68,77],[68,78,68,79],[68,80,68,94],[68,95,68,102],[69,53,69,54],[69,55,69,69],[69,70,69,77],[69,78,69,79],[69,80,69,94],[69,95,69,102],[70,53,70,54],[70,55,70,69],[70,70,70,77],[70,78,70,79],[70,80,70,94],[70,95,70,102],[71,53,71,54],[71,55,71,69],[71,70,71,77],[71,78,71,79],[71,80,71,94],[71,95,71,102],[72,53,72,54],[72,55,72,69],[72,70,72,77],[72,78,72,79],[72,80,72,94],[72,95,72,102],[73,53,73,54],[73,55,73,69],[73,70,73,77],[73,78,73,79],[73,80,73,94],[73,95,73,102],[74,53,74,54],[74,55,74,69],[74,70,74,77],[74,78,74,79],[74,80,74,94],[74,95,74,102],[75,53,75,54],[75,55,75,69],[75,70,75,77],[75,78,75,79],[75,80,75,94],[75,95,75,102],[76,53,76,54],[76,55,76,69],[76,70,76,77],[76,78,76,79],[76,80,76,94],[76,95,76,102],[77,53,77,54],[77,55,77,69],[77,70,77,77],[77,78,77,79],[77,80,77,94],[77,95,77,102],[78,53,78,54],[78,55,78,69],[78,70,78,77],[78,78,78,79],[78,80,78,94],[78,95,78,102],[79,53,79,54],[79,55,79,69],[79,70,79,77],[79,78,79,79],[79,80,79,94],[79,95,79,102],[80,53,80,54],[80,55,80,69],[80,70,80,77],[80,78,80,79],[80,80,80,94],[80,95,80,102],[81,53,81,54],[81,55,81,69],[81,70,81,77],[81,78,81,79],[81,80,81,94],[81,95,81,102],[82,53,82,54],[82,55,82,69],[82,70,82,77],[82,78,82,79],[82,80,82,94],[82,95,82,102],[83,53,83,54],[83,55,83,69],[83,70,83,77],[83,78,83,79],[83,80,83,94],[83,95,83,102],[84,53,84,54],[84,55,84,69],[84,70,84,77],[84,78,84,79],[84,80,84,94],[84,95,84,102],[85,53,85,54],[85,55,85,69],[85,70,85,77],[85,78,85,79],[85,80,85,94],[85,95,85,102],[86,53,86,54],[86,55,86,69],[86,70,86,77],[86,78,86,79],[86,80,86,94],[86,95,86,102],[87,53,87,54],[87,55,87,69],[87,70,87,77],[87,78,87,79],[87,80,87,94],[87,95,87,102],[88,53,88,54],[88,55,88,69],[88,70,88,77],[88,78,88,79],[88,80,88,94],[88,95,88,102],[89,53,89,54],[89,55,89,69],[89,70,89,77],[89,78,89,79],[89,80,89,94],[89,95,89,102],[90,53,90,54],[90,55,90,69],[90,70,90,77],[90,78,90,79],[90,80,90,94],[90,95,90,102],[91,53,91,54],[91,55,91,69],[91,70,91,77],[91,78,91,79],[91,80,91,94],[91,95,91,102],[92,53,92,54],[92,55,92,69],[92,70,92,77],[92,78,92,79],[92,80,92,94],[92,95,92,102],[93,53,93,54],[93,55,93,69],[93,70,93,77],[93,78,93,79],[93,80,93,94],[93,95,93,102],[94,53,94,54],[94,55,94,69],[94,70,94,77],[94,78,94,79],[94,80,94,94],[94,95,94,102],[95,53,95,54],[95,55,95,69],[95,70,95,77],[95,78,95,79],[95,80,95,94],[95,95,95,102],[96,53,96,54],[96,55,96,69],[96,70,96,77],[96,78,96,79],[96,80,96,94],[96,95,96,102],[97,53,97,54],[97,55,97,69],[97,70,97,77],[97,78,97,79],[97,80,97,94],[97,95,97,102],[98,53,98,54],[98,55,98,69],[98,70,98,77],[98,78,98,79],[98,80,98,94],[98,95,98,102],[99,53,99,54],[99,55,99,69],[99,70,99,77],[99,78,99,79],[99,80,99,94],[99,95,99,102],[100,53,100,54],[100,55,100,69],[100,70,100,77],[100,78,100,79],[100,80,100,94],[100,95,100,102],[101,53,101,54],[101,55,101,69],[101,70,101,77],[101,78,101,79],[101,80,101,94],[101,95,101,102],[102,53,102,54],[102,55,102,69],[102,70,102,77],[102,78,102,79],[102,80,102,94],[102,95,102,102],[103,53,103,54],[103,55,103,69],[103,70,103,77],[103,78,103,79],[103,80,103,94],[103,95,103,102],[104,53,104,54],[104,55,104,69],[104,70,104,77],[104,78,104,79],[104,80,104,94],[104,95,104,102],[105,53,105,54],[105,55,105,69],[105,70,105,77],[105,78,105,79],[105,80,105,94],[105,95,105,102],[106,53,106,54],[106,55,106,69],[106,70,106,77],[106,78,106,79],[106,80,106,94],[106,95,106,102],[107,53,107,54],[107,55,107,69],[107,70,107,77],[107,78,107,79],[107,80,107,94],[107,95,107,102],[108,53,108,54],[108,55,108,69],[108,70,108,77],[108,78,108,79],[108,80,108,94],[108,95,108,102],[109,53,109,54],[109,55,109,69],[109,70,109,77],[109,78,109,79],[109,80,109,94],[109,95,109,102],[110,53,110,54],[110,55,110,69],[110,70,110,77],[110,78,110,79],[110,80,110,94],[110,95,110,102],[111,53,111,54],[111,55,111,69],[111,70,111,77],[111,78,111,79],[111,80,111,94],[111,95,111,102],[112,53,112,54],[112,55,112,69],[112,70,112,77],[112,78,112,79],[112,80,112,94],[112,95,112,102]]}
[]
[null,"【様式8C】ギガらくルーター・スイッチ 設定変更申込書\n【別紙5】リモートアクセス設定",null,null,null,null,null,null,null,null,null,null,null,null,null,null,null,null,null,null,null,null,null,null,null,null,null,null,null,null,null,null,null,null,null,null,null,null,null,null,null,null,null,null,null,null,null,null,null,null,null,null,null,"【様式8C】ギガらくルーター・スイッチ 設定変更申込書\n【別紙5】リモートアクセス設定"]
[]
[]
[]
[null,null,null,null,null,null,null,null,null,null,null,null,null,null,null,null,null,null,null,null,null,null,null,null,null,null,null,null,null,null,null,null,null,null,null,null,null,null,null,null,null,null,null,null,null,null,{"$f":"設定申込書!AS6","v":"Ver5.0(2026.3.1～)"}]
[]
[]
[null,null,"リモートアクセス設定",null,null,null,null,null,null,null,null,null,null,null,null,null,null,null,null,null,null,null,null,null,null,null,null,null,null,null,null,null,null,null,null,null,null,null,null,null,null,null,null,null,null,null,null,null,null,null,null,null,null,null,"リモートアクセス設定"]
[]
[null,null,"リモートアクセスVPNサブネットは他NWで使用していないものを指定してください。（必須）\nギガらくルーター装置のWAN側IPの種類：\n（グローバル）ギガらくルーター装置にPPPoE（ISPアカウント）や固定グローバルIPアドレスを設定する場合\n（プライベート）：ギガらくルーター装置の上位にL3機器があり、ギガらくルーター装置のWAN側にプライベートIPアドレスを設定する場合\n拠点間VPN参加有無：\n本ルーター装置同士で拠点間VPNを使用している場合、かつリモートアクセスしたクライアントが拠点間VPNを介して\n他拠点に接続する場合は、[他拠点に接続する]を選択し、様式9Cにも記入願います。",null,null,null,null,null,null,null,null,null,null,null,null,null,null,null,null,null,null,null,null,null,null,null,null,null,null,null,null,null,null,null,null,null,null,null,null,null,null,null,null,null,null,null,null,null,null,null,null,null,null,null,"リモートアクセスVPNサブネットは他NWで使用していないものを指定してください。（必須）\nギガらくルーター装置のWAN側IPの種類：（グローバル）ギガらくルーター装置にPPPoE（ISPアカウント）や固定グローバルIPアドレスを設定する場合\n　　　　　　　　　　　　　　　　　　　　　　（ローカル）：ギガらくルーター装置の上位にL3機器があり、ギガらくルーター装置のWAN側にローカルIPアドレスを設定する場合"]
[null,"リモートアクセスVPNサブネット",null,null,null,null,null,null,null,null,null,null,null,null,null,null,"シークレットキー",null,null,null,null,null,null,null,"ユーザー認証方式",null,null,null,null,null,null,null,null,"MX WAN IP タイプ",null,null,null,null,null,null,null,null,"拠点間VPN\n参加有無",null,null,null,null,null,null,null,null,null,null,"リモートアクセスVPNサブネット",null,null,null,null,null,null,null,null,null,null,null,null,null,null,"シークレットキー",null,null,null,null,null,null,null,"ユーザー認証方式",null,null,null,null,null,null,null,null,"MX WAN IP タイプ",null,null,null,null,null,null,null,null,"拠点間VPN\n参加有無"]
[null,"例　192.168.200.0/24",null,null,null,null,null,null,null,null,null,null,null,null,null,null,12345678,null,null,null,null,null,null,null,"ID/パスワード",null,null,null,null,null,null,null,null,"グローバル",null,null,null,null,null,null,null,null,"なし",null,null,null,null,null,null,null,null,null,null,"例　192.168.200.0/24",null,null,null,null,null,null,null,null,null,null,null,null,null,null,12345678,null,null,null,null,null,null,null,"ID/パスワード",null,null,null,null,null,null,null,null,"グローバル",null,null,null,null,null,null,null,null,"なし"]
[null,null,null,null,null,null,null,null,null,null,null,null,null,null,null,null,null,null,null,null,null,null,null,null,"ID/パスワード",null,null,null,null,null,null,null,null,"グローバル",null,null,null,null,null,null,null,null,"なし",null,null,null,null,null,null,null,null,null,null,null,null,null,null,null,null,null,null,null,null,null,null,null,null,null,null,null,null,null,null,null,null,null,"ID/パスワード",null,null,null,null,null,null,null,null,"グローバル",null,null,null,null,null,null,null,null,"なし"]
[null,"※シークレットキーは端末へVPN設定をする際に使用するパスワードです",null,null,null,null,null,null,null,null,null,null,null,null,null,null,null,null,null,null,null,null,null,null,null,null,null,null,null,null,null,null,null,null,null,null,null,null,null,null,null,null,null,null,null,null,null,null,null,null,null,null,null,"※シークレットキーは端末へVPN設定をする際に使用するパスワードです"]
[null,"英字（大文字、小文字）、数字、-（ハイフン）、@（アットマーク）、#（シャープ）を使用できます。",null,null,null,null,null,null,null,null,null,null,null,null,null,null,null,null,null,null,null,null,null,null,null,null,null,null,null,null,null,null,null,null,null,null,null,null,null,null,null,null,null,null,null,null,null,null,null,null,null,null,null,"英字（大文字、小文字）、数字、-（ハイフン）、@（アットマーク）、#（シャープ）を使用できます。"]
[]
[null,null,"ID/パスワード",null,null,null,null,null,null,null,null,null,null,null,null,null,null,null,null,null,null,null,null,null,null,null,null,null,null,null,null,null,null,null,null,null,null,null,null,null,null,null,null,null,null,null,null,null,null,null,null,null,null,null,"ID/パスワード"]
[null,null," （ダッシュボード利用メールアドレスをリモートアクセスアカウントとして利用される場合、\nパスワード欄にダッシュボードアカウントとご記入ください。\n　ダッシュボードアカウントのパスワードはダッシュボードログインパスワードと同一になるため。）",null,null,null,null,null,null,null,null,null,null,null,null,null,null,null,null,null,null,null,null,null,null,null,null,null,null,null,null,null,null,null,null,null,null,null,null,null,null,null,null,null,null,null,null,null,null,null,null,null,null,null," （ダッシュボード利用メールアドレスをリモートアクセスアカウントとして利用される場合、パスワード欄にダッシュボードアカウントとご記入ください。\n　ダッシュボードアカウントのパスワードはダッシュボードログインパスワードと同一になるため。）"]
[null,null,"パスワードは英字（大文字、小文字）、数字、-（ハイフン）、@（アットマーク）、#（シャープ）を使用できます。",null,null,null,null,null,null,null,null,null,null,null,null,null,null,null,null,null,null,null,null,null,null,null,null,null,null,null,null,null,null,null,null,null,null,null,null,null,null,null,null,null,null,null,null,null,null,null,null,null,null,null,"パスワードは英字（大文字、小文字）、数字、-（ハイフン）、@（アットマーク）、#（シャープ）を使用できます。"]
[null,null,null,"アカウント(利用者の会社のメールアドレス)",null,null,null,null,null,null,null,null,null,null,null,null,null,null,"パスワード\n(任意で8文字以上)",null,null,null,null,null,null,null,null,null,"アカウント(利用者の会社のメールアドレス)",null,null,null,null,null,null,null,null,null,null,null,null,null,null,"パスワード\n(任意で8文字以上)",null,null,null,null,null,null,null,null,null,null,null,"アカウント(利用者の会社のメールアドレス)",null,null,null,null,null,null,null,null,null,null,null,null,null,null,"パスワード\n(任意で8文字以上)",null,null,null,null,null,null,null,null,null,"アカウント(利用者の会社のメールアドレス)",null,null,null,null,null,null,null,null,null,null,null,null,null,null,"パスワード\n(任意で8文字以上)"]
[null,1,null,null,null,null,null,null,null,null,null,null,null,null,null,null,null,null,null,null,null,null,null,null,null,null,14,null,null,null,null,null,null,null,null,null,null,null,null,null,null,null,null,null,null,null,null,null,null,null,null,null,null,1,null,null,null,null,null,null,null,null,null,null,null,null,null,null,null,null,null,null,null,null,null,null,null,null,14]
[null,2,null,null,null,null,null,null,null,null,null,null,null,null,null,null,null,null,null,null,null,null,null,null,null,null,15,null,null,null,null,null,null,null,null,null,null,null,null,null,null,null,null,null,null,null,null,null,null,null,null,null,null,2,null,null,null,null,null,null,null,null,null,null,null,null,null,null,null,null,null,null,null,null,null,null,null,null,15]
[null,3,null,null,null,null,null,null,null,null,null,null,null,null,null,null,null,null,null,null,null,null,null,null,null,null,16,null,null,null,null,null,null,null,null,null,null,null,null,null,null,null,null,null,null,null,null,null,null,null,null,null,null,3,null,null,null,null,null,null,null,null,null,null,null,null,null,null,null,null,null,null,null,null,null,null,null,null,16]
[null,4,null,null,null,null,null,null,null,null,null,null,null,null,null,null,null,null,null,null,null,null,null,null,null,null,17,null,null,null,null,null,null,null,null,null,null,null,null,null,null,null,null,null,null,null,null,null,null,null,null,null,null,4,null,null,null,null,null,null,null,null,null,null,null,null,null,null,null,null,null,null,null,null,null,null,null,null,17]
[null,5,null,null,null,null,null,null,null,null,null,null,null,null,null,null,null,null,null,null,null,null,null,null,null,null,18,null,null,null,null,null,null,null,null,null,null,null,null,null,null,null,null,null,null,null,null,null,null,null,null,null,null,5,null,null,null,null,null,null,null,null,null,null,null,null,null,null,null,null,null,null,null,null,null,null,null,null,18]
[null,6,null,null,null,null,null,null,null,null,null,null,null,null,null,null,null,null,null,null,null,null,null,null,null,null,19,null,null,null,null,null,null,null,null,null,null,null,null,null,null,null,null,null,null,null,null,null,null,null,null,null,null,6,null,null,null,null,null,null,null,null,null,null,null,null,null,null,null,null,null,null,null,null,null,null,null,null,19]
[null,7,null,null,null,null,null,null,null,null,null,null,null,null,null,null,null,null,null,null,null,null,null,null,null,null,20,null,null,null,null,null,null,null,null,null,null,null,null,null,null,null,null,null,null,null,null,null,null,null,null,null,null,7,null,null,null,null,null,null,null,null,null,null,null,null,null,null,null,null,null,null,null,null,null,null,null,null,20]
[null,8,null,null,null,null,null,null,null,null,null,null,null,null,null,null,null,null,null,null,null,null,null,null,null,null,21,null,null,null,null,null,null,null,null,null,null,null,null,null,null,null,null,null,null,null,null,null,null,null,null,null,null,8,null,null,null,null,null,null,null,null,null,null,null,null,null,null,null,null,null,null,null,null,null,null,null,null,21]
[null,9,null,null,null,null,null,null,null,null,null,null,null,null,null,null,null,null,null,null,null,null,null,null,null,null,22,null,null,null,null,null,null,null,null,null,null,null,null,null,null,null,null,null,null,null,null,null,null,null,null,null,null,9,null,null,null,null,null,null,null,null,null,null,null,null,null,null,null,null,null,null,null,null,null,null,null,null,22]
[null,10,null,null,null,null,null,null,null,null,null,null,null,null,null,null,null,null,null,null,null,null,null,null,null,null,23,null,null,null,null,null,null,null,null,null,null,null,null,null,null,null,null,null,null,null,null,null,null,null,null,null,null,10,null,null,null,null,null,null,null,null,null,null,null,null,null,null,null,null,null,null,null,null,null,null,null,null,23]
[null,11,null,null,null,null,null,null,null,null,null,null,null,null,null,null,null,null,null,null,null,null,null,null,null,null,24,null,null,null,null,null,null,null,null,null,null,null,null,null,null,null,null,null,null,null,null,null,null,null,null,null,null,11,null,null,null,null,null,null,null,null,null,null,null,null,null,null,null,null,null,null,null,null,null,null,null,null,24]
[null,12,null,null,null,null,null,null,null,null,null,null,null,null,null,null,null,null,null,null,null,null,null,null,null,null,25,null,null,null,null,null,null,null,null,null,null,null,null,null,null,null,null,null,null,null,null,null,null,null,null,null,null,12,null,null,null,null,null,null,null,null,null,null,null,null,null,null,null,null,null,null,null,null,null,null,null,null,25]
[null,13,null,null,null,null,null,null,null,null,null,null,null,null,null,null,null,null,null,null,null,null,null,null,null,null,"26以上のアカウントが必要な場合は、シート下部のリストをご利用ください",null,null,null,null,null,null,null,null,null,null,null,null,null,null,null,null,null,null,null,null,null,null,null,null,null,null,13,null,null,null,null,null,null,null,null,null,null,null,null,null,null,null,null,null,null,null,null,null,null,null,null,"26以上のアカウントが必要な場合は、シート下部のリストをご利用ください"]
[]
[null,null,"お客様RADIUS",null,null,null,null,null,null,null,null,null,null,null,null,null,null,null,null,null,null,null,null,null,null,null,null,null,null,null,null,null,null,null,null,null,null,null,null,null,null,null,null,null,null,null,null,null,null,null,null,null,null,null,"お客様RADIUS"]
[]
[null,"No",null,"サーバIP",null,null,null,null,null,null,null,null,null,null,null,null,"Port",null,null,null,null,null,null,null,"Secret Key",null,null,null,null,null,null,null,null,null,null,null,null,"備考",null,null,null,null,null,null,null,null,null,null,null,null,null,null,null,"No",null,"サーバIP",null,null,null,null,null,null,null,null,null,null,null,null,"Port",null,null,null,null,null,null,null,"Secret Key",null,null,null,null,null,null,null,null,null,null,null,null,"備考"]
[null,null,null,"192.168.10.4",null,null,null,null,null,null,null,null,null,null,null,null,1812,null,null,null,null,null,null,null,"aaaaaaa",null,null,null,null,null,null,null,null,null,null,null,null,null,null,null,null,null,null,null,null,null,null,null,null,null,null,null,null,"例",null,"192.168.10.4",null,null,null,null,null,null,null,null,null,null,null,null,1812,null,null,null,null,null,null,null,"aaaaaaa"]
[null,1,null,null,null,null,null,null,null,null,null,null,null,null,null,null,null,null,null,null,null,null,null,null,null,null,null,null,null,null,null,null,null,null,null,null,null,null,null,null,null,null,null,null,null,null,null,null,null,null,null,null,null,1]
[]
[null,null,"DNS サーバ設定",null,null,null,null,null,null,null,null,null,null,null,null,null,null,null,null,null,null,null,null,null,null,null,null,null,null,null,null,"WINS サーバ設定",null,null,null,null,null,null,null,null,null,null,null,null,null,null,null,null,null,null,null,null,null,null,"DNS サーバ設定",null,null,null,null,null,null,null,null,null,null,null,null,null,null,null,null,null,null,null,null,null,null,null,null,null,null,null,null,"WINS サーバ設定"]
[null,null,"クライアントVPN端末に特定のDNSサーバを使用させる際は以下を記載してください",null,null,null,null,null,null,null,null,null,null,null,null,null,null,null,null,null,null,null,null,null,null,null,null,null,null,null,null,null,"WINSサーバを指定したい場合は以下を記載してください",null,null,null,null,null,null,null,null,null,null,null,null,null,null,null,null,null,null,null,null,null,"クライアントVPN端末に特定のDNSサーバを使用させる際は以下を記載してください",null,null,null,null,null,null,null,null,null,null,null,null,null,null,null,null,null,null,null,null,null,null,null,null,null,null,null,null,null,"WINSサーバを指定したい場合は以下を記載してください"]
[null,null,"（デフォルトは Google DNS 8.8.8.8 が通知されます）",null,null,null,null,null,null,null,null,null,null,null,null,null,null,null,null,null,null,null,null,null,null,null,null,null,null,null,null,null,null,null,null,null,null,null,null,null,null,null,null,null,null,null,null,null,null,null,null,null,null,null,"（デフォルトは Google DNS 8.8.8.8 が通知されます）"]
[null,null,"プライマリDNSサーバアドレス",null,null,null,null,null,null,null,null,null,null,null,null,"セカンダリDNSサーバアドレス",null,null,null,null,null,null,null,null,null,null,null,null,null,null,null,"WINSサーバアドレス",null,null,null,null,null,null,null,null,null,null,null,null,null,null,null,null,null,null,null,null,null,null,"プライマリDNSサーバアドレス",null,null,null,null,null,null,null,null,null,null,null,null,"セカンダリDNSサーバアドレス",null,null,null,null,null,null,null,null,null,null,null,null,null,null,null,"WINSサーバアドレス"]
[]
[]
[null,"備考欄",null,null,null,null,null,null,null,null,null,null,null,null,null,null,null,null,null,null,null,null,null,null,null,null,null,null,null,null,null,null,null,null,null,null,null,null,null,null,null,null,null,null,null,null,null,null,null,null,null,null,null,"備考欄"]
[]
[]
[]
[]
[]
[]
[]
[]
[]
[]
[]
[null,null,"ID/パスワード",null,null,null,null,null,null,null,null,null,null,null,null,null,null,null,null,null,null,null,null,null,null,null,null,null,null,null,null,null,null,null,null,null,null,null,null,null,null,null,null,null,null,null,null,null,null,null,null,null,null,null,"ID/パスワード"]
[null,null," （ダッシュボード利用メールアドレスをリモートアクセスアカウントとして利用される場合、パスワード欄にダッシュボードアカウントとご記入ください）",null,null,null,null,null,null,null,null,null,null,null,null,null,null,null,null,null,null,null,null,null,null,null,null,null,null,null,null,null,null,null,null,null,null,null,null,null,null,null,null,null,null,null,null,null,null,null,null,null,null,null," （ダッシュボード利用メールアドレスをリモートアクセスアカウントとして利用される場合、パスワード欄にダッシュボードアカウントとご記入ください）"]
[null,null,"パスワードは英字（大文字、小文字）、数字、-（ハイフン）、@（アットマーク）、#（シャープ）を使用できます。",null,null,null,null,null,null,null,null,null,null,null,null,null,null,null,null,null,null,null,null,null,null,null,null,null,null,null,null,null,null,null,null,null,null,null,null,null,null,null,null,null,null,null,null,null,null,null,null,null,null,null,"パスワードは英字（大文字、小文字）、数字、-（ハイフン）、@（アットマーク）、#（シャープ）を使用できます。"]
[null,null,null,"アカウント(利用者の会社のメールアドレス)",null,null,null,null,null,null,null,null,null,null,null,null,null,null,"パスワード\n(任意で8文字以上)",null,null,null,null,null,null,null,null,null,"アカウント(利用者の会社のメールアドレス)",null,null,null,null,null,null,null,null,null,null,null,null,null,null,"パスワード\n(任意で8文字以上)",null,null,null,null,null,null,null,null,null,null,null,"アカウント(利用者の会社のメールアドレス)",null,null,null,null,null,null,null,null,null,null,null,null,null,null,"パスワード\n(任意で8文字以上)",null,null,null,null,null,null,null,null,null,"アカウント(利用者の会社のメールアドレス)",null,null,null,null,null,null,null,null,null,null,null,null,null,null,"パスワード\n(任意で8文字以上)"]
[null,26,null,null,null,null,null,null,null,null,null,null,null,null,null,null,null,null,null,null,null,null,null,null,null,null,76,null,null,null,null,null,null,null,null,null,null,null,null,null,null,null,null,null,null,null,null,null,null,null,null,null,null,26,null,null,null,null,null,null,null,null,null,null,null,null,null,null,null,null,null,null,null,null,null,null,null,null,76]
[null,27,null,null,null,null,null,null,null,null,null,null,null,null,null,null,null,null,null,null,null,null,null,null,null,null,77,null,null,null,null,null,null,null,null,null,null,null,null,null,null,null,null,null,null,null,null,null,null,null,null,null,null,27,null,null,null,null,null,null,null,null,null,null,null,null,null,null,null,null,null,null,null,null,null,null,null,null,77]
[null,28,null,null,null,null,null,null,null,null,null,null,null,null,null,null,null,null,null,null,null,null,null,null,null,null,78,null,null,null,null,null,null,null,null,null,null,null,null,null,null,null,null,null,null,null,null,null,null,null,null,null,null,28,null,null,null,null,null,null,null,null,null,null,null,null,null,null,null,null,null,null,null,null,null,null,null,null,78]
[null,29,null,null,null,null,null,null,null,null,null,null,null,null,null,null,null,null,null,null,null,null,null,null,null,null,79,null,null,null,null,null,null,null,null,null,null,null,null,null,null,null,null,null,null,null,null,null,null,null,null,null,null,29,null,null,null,null,null,null,null,null,null,null,null,null,null,null,null,null,null,null,null,null,null,null,null,null,79]
[null,30,null,null,null,null,null,null,null,null,null,null,null,null,null,null,null,null,null,null,null,null,null,null,null,null,80,null,null,null,null,null,null,null,null,null,null,null,null,null,null,null,null,null,null,null,null,null,null,null,null,null,null,30,null,null,null,null,null,null,null,null,null,null,null,null,null,null,null,null,null,null,null,null,null,null,null,null,80]
[null,31,null,null,null,null,null,null,null,null,null,null,null,null,null,null,null,null,null,null,null,null,null,null,null,null,81,null,null,null,null,null,null,null,null,null,null,null,null,null,null,null,null,null,null,null,null,null,null,null,null,null,null,31,null,null,null,null,null,null,null,null,null,null,null,null,null,null,null,null,null,null,null,null,null,null,null,null,81]
[null,32,null,null,null,null,null,null,null,null,null,null,null,null,null,null,null,null,null,null,null,null,null,null,null,null,82,null,null,null,null,null,null,null,null,null,null,null,null,null,null,null,null,null,null,null,null,null,null,null,null,null,null,32,null,null,null,null,null,null,null,null,null,null,null,null,null,null,null,null,null,null,null,null,null,null,null,null,82]
[null,33,null,null,null,null,null,null,null,null,null,null,null,null,null,null,null,null,null,null,null,null,null,null,null,null,83,null,null,null,null,null,null,null,null,null,null,null,null,null,null,null,null,null,null,null,null,null,null,null,null,null,null,33,null,null,null,null,null,null,null,null,null,null,null,null,null,null,null,null,null,null,null,null,null,null,null,null,83]
[null,34,null,null,null,null,null,null,null,null,null,null,null,null,null,null,null,null,null,null,null,null,null,null,null,null,84,null,null,null,null,null,null,null,null,null,null,null,null,null,null,null,null,null,null,null,null,null,null,null,null,null,null,34,null,null,null,null,null,null,null,null,null,null,null,null,null,null,null,null,null,null,null,null,null,null,null,null,84]
[null,35,null,null,null,null,null,null,null,null,null,null,null,null,null,null,null,null,null,null,null,null,null,null,null,null,85,null,null,null,null,null,null,null,null,null,null,null,null,null,null,null,null,null,null,null,null,null,null,null,null,null,null,35,null,null,null,null,null,null,null,null,null,null,null,null,null,null,null,null,null,null,null,null,null,null,null,null,85]
[null,36,null,null,null,null,null,null,null,null,null,null,null,null,null,null,null,null,null,null,null,null,null,null,null,null,86,null,null,null,null,null,null,null,null,null,null,null,null,null,null,null,null,null,null,null,null,null,null,null,null,null,null,36,null,null,null,null,null,null,null,null,null,null,null,null,null,null,null,null,null,null,null,null,null,null,null,null,86]
[null,37,null,null,null,null,null,null,null,null,null,null,null,null,null,null,null,null,null,null,null,null,null,null,null,null,87,null,null,null,null,null,null,null,null,null,null,null,null,null,null,null,null,null,null,null,null,null,null,null,null,null,null,37,null,null,null,null,null,null,null,null,null,null,null,null,null,null,null,null,null,null,null,null,null,null,null,null,87]
[null,38,null,null,null,null,null,null,null,null,null,null,null,null,null,null,null,null,null,null,null,null,null,null,null,null,88,null,null,null,null,null,null,null,null,null,null,null,null,null,null,null,null,null,null,null,null,null,null,null,null,null,null,38,null,null,null,null,null,null,null,null,null,null,null,null,null,null,null,null,null,null,null,null,null,null,null,null,88]
[null,39,null,null,null,null,null,null,null,null,null,null,null,null,null,null,null,null,null,null,null,null,null,null,null,null,89,null,null,null,null,null,null,null,null,null,null,null,null,null,null,null,null,null,null,null,null,null,null,null,null,null,null,39,null,null,null,null,null,null,null,null,null,null,null,null,null,null,null,null,null,null,null,null,null,null,null,null,89]
[null,40,null,null,null,null,null,null,null,null,null,null,null,null,null,null,null,null,null,null,null,null,null,null,null,null,90,null,null,null,null,null,null,null,null,null,null,null,null,null,null,null,null,null,null,null,null,null,null,null,null,null,null,40,null,null,null,null,null,null,null,null,null,null,null,null,null,null,null,null,null,null,null,null,null,null,null,null,90]
[null,41,null,null,null,null,null,null,null,null,null,null,null,null,null,null,null,null,null,null,null,null,null,null,null,null,91,null,null,null,null,null,null,null,null,null,null,null,null,null,null,null,null,null,null,null,null,null,null,null,null,null,null,41,null,null,null,null,null,null,null,null,null,null,null,null,null,null,null,null,null,null,null,null,null,null,null,null,91]
[null,42,null,null,null,null,null,null,null,null,null,null,null,null,null,null,null,null,null,null,null,null,null,null,null,null,92,null,null,null,null,null,null,null,null,null,null,null,null,null,null,null,null,null,null,null,null,null,null,null,null,null,null,42,null,null,null,null,null,null,null,null,null,null,null,null,null,null,null,null,null,null,null,null,null,null,null,null,92]
[null,43,null,null,null,null,null,null,null,null,null,null,null,null,null,null,null,null,null,null,null,null,null,null,null,null,93,null,null,null,null,null,null,null,null,null,null,null,null,null,null,null,null,null,null,null,null,null,null,null,null,null,null,43,null,null,null,null,null,null,null,null,null,null,null,null,null,null,null,null,null,null,null,null,null,null,null,null,93]
[null,44,null,null,null,null,null,null,null,null,null,null,null,null,null,null,null,null,null,null,null,null,null,null,null,null,94,null,null,null,null,null,null,null,null,null,null,null,null,null,null,null,null,null,null,null,null,null,null,null,null,null,null,44,null,null,null,null,null,null,null,null,null,null,null,null,null,null,null,null,null,null,null,null,null,null,null,null,94]
[null,45,null,null,null,null,null,null,null,null,null,null,null,null,null,null,null,null,null,null,null,null,null,null,null,null,95,null,null,null,null,null,null,null,null,null,null,null,null,null,null,null,null,null,null,null,null,null,null,null,null,null,null,45,null,null,null,null,null,null,null,null,null,null,null,null,null,null,null,null,null,null,null,null,null,null,null,null,95]
[null,46,null,null,null,null,null,null,null,null,null,null,null,null,null,null,null,null,null,null,null,null,null,null,null,null,96,null,null,null,null,null,null,null,null,null,null,null,null,null,null,null,null,null,null,null,null,null,null,null,null,null,null,46,null,null,null,null,null,null,null,null,null,null,null,null,null,null,null,null,null,null,null,null,null,null,null,null,96]
[null,47,null,null,null,null,null,null,null,null,null,null,null,null,null,null,null,null,null,null,null,null,null,null,null,null,97,null,null,null,null,null,null,null,null,null,null,null,null,null,null,null,null,null,null,null,null,null,null,null,null,null,null,47,null,null,null,null,null,null,null,null,null,null,null,null,null,null,null,null,null,null,null,null,null,null,null,null,97]
[null,48,null,null,null,null,null,null,null,null,null,null,null,null,null,null,null,null,null,null,null,null,null,null,null,null,98,null,null,null,null,null,null,null,null,null,null,null,null,null,null,null,null,null,null,null,null,null,null,null,null,null,null,48,null,null,null,null,null,null,null,null,null,null,null,null,null,null,null,null,null,null,null,null,null,null,null,null,98]
[null,49,null,null,null,null,null,null,null,null,null,null,null,null,null,null,null,null,null,null,null,null,null,null,null,null,99,null,null,null,null,null,null,null,null,null,null,null,null,null,null,null,null,null,null,null,null,null,null,null,null,null,null,49,null,null,null,null,null,null,null,null,null,null,null,null,null,null,null,null,null,null,null,null,null,null,null,null,99]
[null,50,null,null,null,null,null,null,null,null,null,null,null,null,null,null,null,null,null,null,null,null,null,null,null,null,100,null,null,null,null,null,null,null,null,null,null,null,null,null,null,null,null,null,null,null,null,null,null,null,null,null,null,50,null,null,null,null,null,null,null,null,null,null,null,null,null,null,null,null,null,null,null,null,null,null,null,null,100]
[null,51,null,null,null,null,null,null,null,null,null,null,null,null,null,null,null,null,null,null,null,null,null,null,null,null,101,null,null,null,null,null,null,null,null,null,null,null,null,null,null,null,null,null,null,null,null,null,null,null,null,null,null,51,null,null,null,null,null,null,null,null,null,null,null,null,null,null,null,null,null,null,null,null,null,null,null,null,101]
[null,52,null,null,null,null,null,null,null,null,null,null,null,null,null,null,null,null,null,null,null,null,null,null,null,null,102,null,null,null,null,null,null,null,null,null,null,null,null,null,null,null,null,null,null,null,null,null,null,null,null,null,null,52,null,null,null,null,null,null,null,null,null,null,null,null,null,null,null,null,null,null,null,null,null,null,null,null,102]
[null,53,null,null,null,null,null,null,null,null,null,null,null,null,null,null,null,null,null,null,null,null,null,null,null,null,103,null,null,null,null,null,null,null,null,null,null,null,null,null,null,null,null,null,null,null,null,null,null,null,null,null,null,53,null,null,null,null,null,null,null,null,null,null,null,null,null,null,null,null,null,null,null,null,null,null,null,null,103]
[null,54,null,null,null,null,null,null,null,null,null,null,null,null,null,null,null,null,null,null,null,null,null,null,null,null,104,null,null,null,null,null,null,null,null,null,null,null,null,null,null,null,null,null,null,null,null,null,null,null,null,null,null,54,null,null,null,null,null,null,null,null,null,null,null,null,null,null,null,null,null,null,null,null,null,null,null,null,104]
[null,55,null,null,null,null,null,null,null,null,null,null,null,null,null,null,null,null,null,null,null,null,null,null,null,null,105,null,null,null,null,null,null,null,null,null,null,null,null,null,null,null,null,null,null,null,null,null,null,null,null,null,null,55,null,null,null,null,null,null,null,null,null,null,null,null,null,null,null,null,null,null,null,null,null,null,null,null,105]
[null,56,null,null,null,null,null,null,null,null,null,null,null,null,null,null,null,null,null,null,null,null,null,null,null,null,106,null,null,null,null,null,null,null,null,null,null,null,null,null,null,null,null,null,null,null,null,null,null,null,null,null,null,56,null,null,null,null,null,null,null,null,null,null,null,null,null,null,null,null,null,null,null,null,null,null,null,null,106]
[null,57,null,null,null,null,null,null,null,null,null,null,null,null,null,null,null,null,null,null,null,null,null,null,null,null,107,null,null,null,null,null,null,null,null,null,null,null,null,null,null,null,null,null,null,null,null,null,null,null,null,null,null,57,null,null,null,null,null,null,null,null,null,null,null,null,null,null,null,null,null,null,null,null,null,null,null,null,107]
[null,58,null,null,null,null,null,null,null,null,null,null,null,null,null,null,null,null,null,null,null,null,null,null,null,null,108,null,null,null,null,null,null,null,null,null,null,null,null,null,null,null,null,null,null,null,null,null,null,null,null,null,null,58,null,null,null,null,null,null,null,null,null,null,null,null,null,null,null,null,null,null,null,null,null,null,null,null,108]
[null,59,null,null,null,null,null,null,null,null,null,null,null,null,null,null,null,null,null,null,null,null,null,null,null,null,109,null,null,null,null,null,null,null,null,null,null,null,null,null,null,null,null,null,null,null,null,null,null,null,null,null,null,59,null,null,null,null,null,null,null,null,null,null,null,null,null,null,null,null,null,null,null,null,null,null,null,null,109]
[null,60,null,null,null,null,null,null,null,null,null,null,null,null,null,null,null,null,null,null,null,null,null,null,null,null,110,null,null,null,null,null,null,null,null,null,null,null,null,null,null,null,null,null,null,null,null,null,null,null,null,null,null,60,null,null,null,null,null,null,null,null,null,null,null,null,null,null,null,null,null,null,null,null,null,null,null,null,110]
[null,61,null,null,null,null,null,null,null,null,null,null,null,null,null,null,null,null,null,null,null,null,null,null,null,null,111,null,null,null,null,null,null,null,null,null,null,null,null,null,null,null,null,null,null,null,null,null,null,null,null,null,null,61,null,null,null,null,null,null,null,null,null,null,null,null,null,null,null,null,null,null,null,null,null,null,null,null,111]
[null,62,null,null,null,null,null,null,null,null,null,null,null,null,null,null,null,null,null,null,null,null,null,null,null,null,112,null,null,null,null,null,null,null,null,null,null,null,null,null,null,null,null,null,null,null,null,null,null,null,null,null,null,62,null,null,null,null,null,null,null,null,null,null,null,null,null,null,null,null,null,null,null,null,null,null,null,null,112]
[null,63,null,null,null,null,null,null,null,null,null,null,null,null,null,null,null,null,null,null,null,null,null,null,null,null,113,null,null,null,null,null,null,null,null,null,null,null,null,null,null,null,null,null,null,null,null,null,null,null,null,null,null,63,null,null,null,null,null,null,null,null,null,null,null,null,null,null,null,null,null,null,null,null,null,null,null,null,113]
[null,64,null,null,null,null,null,null,null,null,null,null,null,null,null,null,null,null,null,null,null,null,null,null,null,null,114,null,null,null,null,null,null,null,null,null,null,null,null,null,null,null,null,null,null,null,null,null,null,null,null,null,null,64,null,null,null,null,null,null,null,null,null,null,null,null,null,null,null,null,null,null,null,null,null,null,null,null,114]
[null,65,null,null,null,null,null,null,null,null,null,null,null,null,null,null,null,null,null,null,null,null,null,null,null,null,115,null,null,null,null,null,null,null,null,null,null,null,null,null,null,null,null,null,null,null,null,null,null,null,null,null,null,65,null,null,null,null,null,null,null,null,null,null,null,null,null,null,null,null,null,null,null,null,null,null,null,null,115]
[null,66,null,null,null,null,null,null,null,null,null,null,null,null,null,null,null,null,null,null,null,null,null,null,null,null,116,null,null,null,null,null,null,null,null,null,null,null,null,null,null,null,null,null,null,null,null,null,null,null,null,null,null,66,null,null,null,null,null,null,null,null,null,null,null,null,null,null,null,null,null,null,null,null,null,null,null,null,116]
[null,67,null,null,null,null,null,null,null,null,null,null,null,null,null,null,null,null,null,null,null,null,null,null,null,null,117,null,null,null,null,null,null,null,null,null,null,null,null,null,null,null,null,null,null,null,null,null,null,null,null,null,null,67,null,null,null,null,null,null,null,null,null,null,null,null,null,null,null,null,null,null,null,null,null,null,null,null,117]
[null,68,null,null,null,null,null,null,null,null,null,null,null,null,null,null,null,null,null,null,null,null,null,null,null,null,118,null,null,null,null,null,null,null,null,null,null,null,null,null,null,null,null,null,null,null,null,null,null,null,null,null,null,68,null,null,null,null,null,null,null,null,null,null,null,null,null,null,null,null,null,null,null,null,null,null,null,null,118]
[null,69,null,null,null,null,null,null,null,null,null,null,null,null,null,null,null,null,null,null,null,null,null,null,null,null,119,null,null,null,null,null,null,null,null,null,null,null,null,null,null,null,null,null,null,null,null,null,null,null,null,null,null,69,null,null,null,null,null,null,null,null,null,null,null,null,null,null,null,null,null,null,null,null,null,null,null,null,119]
[null,70,null,null,null,null,null,null,null,null,null,null,null,null,null,null,null,null,null,null,null,null,null,null,null,null,120,null,null,null,null,null,null,null,null,null,null,null,null,null,null,null,null,null,null,null,null,null,null,null,null,null,null,70,null,null,null,null,null,null,null,null,null,null,null,null,null,null,null,null,null,null,null,null,null,null,null,null,120]
[null,71,null,null,null,null,null,null,null,null,null,null,null,null,null,null,null,null,null,null,null,null,null,null,null,null,121,null,null,null,null,null,null,null,null,null,null,null,null,null,null,null,null,null,null,null,null,null,null,null,null,null,null,71,null,null,null,null,null,null,null,null,null,null,null,null,null,null,null,null,null,null,null,null,null,null,null,null,121]
[null,72,null,null,null,null,null,null,null,null,null,null,null,null,null,null,null,null,null,null,null,null,null,null,null,null,122,null,null,null,null,null,null,null,null,null,null,null,null,null,null,null,null,null,null,null,null,null,null,null,null,null,null,72,null,null,null,null,null,null,null,null,null,null,null,null,null,null,null,null,null,null,null,null,null,null,null,null,122]
[null,73,null,null,null,null,null,null,null,null,null,null,null,null,null,null,null,null,null,null,null,null,null,null,null,null,123,null,null,null,null,null,null,null,null,null,null,null,null,null,null,null,null,null,null,null,null,null,null,null,null,null,null,73,null,null,null,null,null,null,null,null,null,null,null,null,null,null,null,null,null,null,null,null,null,null,null,null,123]
[null,74,null,null,null,null,null,null,null,null,null,null,null,null,null,null,null,null,null,null,null,null,null,null,null,null,124,null,null,null,null,null,null,null,null,null,null,null,null,null,null,null,null,null,null,null,null,null,null,null,null,null,null,74,null,null,null,null,null,null,null,null,null,null,null,null,null,null,null,null,null,null,null,null,null,null,null,null,124]
[null,75,null,null,null,null,null,null,null,null,null,null,null,null,null,null,null,null,null,null,null,null,null,null,null,null,125,null,null,null,null,null,null,null,null,null,null,null,null,null,null,null,null,null,null,null,null,null,null,null,null,null,null,75,null,null,null,null,null,null,null,null,null,null,null,null,null,null,null,null,null,null,null,null,null,null,null,null,125]

{"sheet":"【別紙6】L3ファイアウォール・通信速度制限","index":10,"n_rows":79,"n_cols":47,"rows_kept":79,"cut":false,"hidden":true,"merged":[[1,1,4,50],[5,1,6,50],[8,42,8,43],[9,2,9,40],[10,2,10,11],[10,12,10,14],[10,15,10,24],[10,25,10,27],[33,2,33,20],[33,21,33,41],[16,42,16,44],[18,2,18,11],[18,21,18,29],[18,12,18,15],[18,16,18,20],[18,30,18,32],[18,33,18,41],[18,42,18,44],[16,45,16,50],[17,12,17,15],[17,16,17,20],[17,30,17,32],[17,33,17,41],[17,42,17,44],[17,45,17,50],[16,2,16,11],[20,42,20,44],[20,45,20,50],[21,2,21,11],[21,12,21,15],[21,16,21,20],[21,21,21,29],[21,30,21,32],[21,33,21,41],[21,42,21,44],[21,45,21,50],[18,45,18,50],[19,12,19,15],[19,16,19,20],[19,30,19,32],[19,33,19,41],[19,42,19,44],[19,45,19,50],[17,21,17,29],[16,12,16,15],[16,16,16,20],[16,30,16,32],[16,33,16,41],[57,2,57,5],[57,6,57,10],[57,11,57,19],[57,20,57,26],[57,27,57,31],[57,32,57,40],[55,2,55,5],[55,6,55,10],[55,11,55,19],[56,32,56,40],[28,2,28,20],[28,21,28,41],[28,42,28,50],[29,2,29,20],[29,21,29,41],[29,42,29,50],[19,2,19,11],[10,28,10,37],[10,38,10,40],[11,2,11,11],[11,12,11,14],[11,15,11,24],[11,25,11,27],[11,28,11,37],[11,38,11,40],[20,2,20,11],[20,12,20,15],[20,16,20,20],[20,21,20,29],[20,30,20,32],[20,33,20,41],[19,21,19,29],[16,21,16,29],[17,2,17,11],[22,21,22,29],[22,30,22,32],[22,33,22,41],[22,42,22,44],[22,45,22,50],[23,2,23,11],[23,12,23,15],[23,16,23,20],[23,21,23,29],[23,30,23,32],[23,33,23,41],[23,42,23,44],[23,45,23,50],[22,2,22,11],[22,12,22,15],[22,16,22,20],[30,2,30,20],[30,21,30,41],[30,42,30,50],[31,2,31,20],[31,21,31,41],[31,42,31,50],[32,2,32,20],[32,21,32,41],[32,42,32,50],[33,42,33,50],[34,2,34,20],[34,21,34,41],[34,42,34,50],[40,2,40,3],[40,4,40,20],[40,21,40,29],[40,30,40,38],[41,2,41,3],[41,4,41,20],[41,21,41,29],[41,30,41,38],[39,2,39,3],[39,4,39,20],[39,21,39,29],[39,30,39,38],[42,2,42,3],[42,4,42,20],[42,21,42,29],[42,30,42,38],[43,2,43,3],[43,4,43,20],[43,21,43,29],[43,30,43,38],[44,2,44,3],[44,4,44,20],[44,21,44,29],[44,30,44,38],[45,2,45,3],[45,4,45,20],[45,21,45,29],[45,30,45,38],[59,2,59,5],[59,6,59,10],[59,11,59,19],[59,20,59,26],[59,27,59,31],[59,32,59,40],[55,20,55,26],[55,27,55,31],[55,32,55,40],[56,2,56,5],[56,6,56,10],[56,11,56,19],[56,20,56,26],[56,27,56,31],[58,2,58,5],[58,6,58,10],[58,11,58,19],[58,20,58,26],[58,27,58,31],[58,32,58,40],[60,2,60,5],[60,6,60,10],[60,11,60,19],[60,20,60,26],[60,27,60,31],[60,32,60,40],[61,2,61,5],[61,6,61,10],[61,11,61,19],[61,20,61,26],[61,27,61,31],[61,32,61,40],[78,2,79,51],[80,2,87,51],[62,2,62,5],[62,6,62,10],[62,11,62,19],[62,20,62,26],[62,27,62,31],[62,32,62,40],[70,3,70,6],[70,7,70,11],[70,12,70,20],[70,21,70,29],[70,31,75,51],[71,3,71,6],[71,7,71,11],[71,12,71,20],[71,21,72,29],[72,3,72,6],[72,7,72,11],[72,12,72,20],[73,3,73,6],[73,7,73,11],[73,12,73,20],[73,21,73,29]]}
[]
[null,"【様式8C】ギガらくルーター・スイッチ 設定変更申込書"]
[]
[]
[]
[null,"【別紙6】ファイアウォール・通信速度制限・ポートフォワーディング設定"]
[]
[]
[null,null,null,null,null,null,null,null,null,null,null,null,null,null,null,null,null,null,null,null,null,null,null,null,null,null,null,null,null,null,null,null,null,null,null,null,null,null,null,null,null,null,null,null,null,null,{"$f":"設定申込書!AS6","v":"Ver5.0(2026.3.1～)"}]
[null,null,"！設定が必要な項目のみチェック”■”を入れ、指定した項目の設定値を入力してください。\n　未チェックの項目に設定値が入力されている場合、反映されませんのでご注意ください。"]
[null,null,"① L3 ファイアウォール",null,null,null,null,null,null,null,null,null,"□",null,null,"② 通信速度制限\n（IP指定）",null,null,null,null,null,null,null,null,null,"□",null,null,"③ 通信速度制限\n（ホスト指定）",null,null,null,null,null,null,null,null,null,"□"]
[null,null,"④ ポートフォワーディング",null,null,null,null,null,null,null,null,null,"□",null,null,"⑤ WANポート帯域制限",null,null,null,null,null,null,null,null,null,"□",null,null,"⑥ ロードバランシング",null,null,null,null,null,null,null,null,null,"□"]
[]
[]
[null,null,"① L3 ファイアウォール"]
[null,null,null,null,"※拠点間VPNに適用するファイアウォール設定は【様式9C】ギガらくルーター_インターネットVPN設定申込書に記載願います。"]
[null,null,"ファイアウォールの適用順番",null,null,null,null,null,null,null,null,null,"ポリシー",null,null,null,"プロトコル",null,null,null,null,"送信元アドレス",null,null,null,null,null,null,null,null,"送信元ポート",null,null,"宛先アドレス",null,null,null,null,null,null,null,null,"宛先\nポート",null,null,"備考"]
[null,null,"数字が低い順番にファイアウォールが適用される\n\n例　１",null,null,null,null,null,null,null,null,null,"下記を選択\n・許可\n・禁止\n例　禁止",null,null,null,"Any",null,null,null,null,"送信元のIPv4ネットワークアドレス/サブネットマスク\n\n例　192.168.0.0/24",null,null,null,null,null,null,null,null,"送信元ポート番号",null,null,"宛先のIPv4ネットワークアドレス\n/サブネットマスク\nまたはFQDN\n\n例　192.168.100.0/24",null,null,null,null,null,null,null,null,"宛先\nポート番号"]
[]
[]
[]
[]
[]
[]
[null,null,"※　行が足りない場合は行を追加してください。"]
[]
[null,null,"② 通信速度制限（IP指定）"]
[]
[null,null,"通信速度（Mbps)",null,null,null,null,null,null,null,null,null,null,null,null,null,null,null,null,null,null,"宛先アドレス",null,null,null,null,null,null,null,null,null,null,null,null,null,null,null,null,null,null,null,null,"宛先ポート番号"]
[null,null,"記入した値に通信速度を制限。\n\n１Mbpsに制限する場合の例　１",null,null,null,null,null,null,null,null,null,null,null,null,null,null,null,null,null,null,"宛先のIPv4ネットワークアドレス\n　ネットワークアドレス/サブネットマスク\n\n例　192.168.0.0/24",null,null,null,null,null,null,null,null,null,null,null,null,null,null,null,null,null,null,null,null,"ポート番号\n\n例　80"]
[]
[]
[]
[]
[]
[null,null,"※　行が足りない場合は行を追加してください。"]
[]
[null,null,"③ 通信速度制限（ホスト名指定）"]
[null,null,null,null,"指定した宛先ホストに対する通信速度を制限します。"]
[null,null,"No",null,"制限したいホスト名",null,null,null,null,null,null,null,null,null,null,null,null,null,null,null,null,"優先度",null,null,null,null,null,null,null,null,"帯域制限"]
[null,null,"例",null,"google.com 等",null,null,null,null,null,null,null,null,null,null,null,null,null,null,null,null,"高・普通・低いずれか",null,null,null,null,null,null,null,null,"帯域制限値を設定※"]
[null,null,1]
[null,null,2]
[null,null,3]
[null,null,4]
[null,null,5]
[]
[null,null,"ホスト名の指定は以下の指定方法が可能です。複数ある場合はホスト名ごとに指定してください"]
[null,null,null,"Host名の指定方法　: google.com  "]
[null,null,"優先度は高＞普通＞低の順に優先制御されます。"]
[null,null,"※　行が足りない場合は行を追加してください。"]
[]
[]
[null,null,"④ ポートフォワーディング設定"]
[null,null,null,null,"以下で指定したPublicPort宛に受信した通信を転送先LANIP、LocalPortに転送します。"]
[null,null,"Uplink",null,null,null,"プロトコル",null,null,null,null,"PublicPort",null,null,null,null,null,null,null,null,"転送先LANIP",null,null,null,null,null,null,"Local Port",null,null,null,null,"備考"]
[null,null,"Both",null,null,null,"TCP",null,null,null,null,"8000-8500",null,null,null,null,null,null,null,null,"192.168.1.100",null,null,null,null,null,null,"8000-8500",null,null,null,null,"設定例"]
[]
[]
[]
[]
[]
[]
[]
[null,null,null,"Uplink : Internet1(WAN1)ポート、Internet2（WAN2)、Both(両方)が選べます。　※特に指定がない場合はBothで設定します。"]
[null,null,null,"外部から許可する送信元リモートIPを指定したい場合は備考に送信元IPアドレスを記載してください。"]
[]
[]
[null,null,"⑤,⑥ WANポート帯域制限・ロードバランス"]
[null,null,null,null,"　（ロードバランス設定はインターネット回線を2回線終端している場合のみ指定可能です※閉域重畳時不可）"]
[null,null,null,"Uplink",null,null,null,"プライマリ※1",null,null,null,null,"⑤帯域制限",null,null,null,null,null,null,null,null,"⑥ロードバランス※2",null,null,null,null,null,null,null,null,null,"※1: 閉域網を終端している場合はプライマリアップリンクの指定は\nできません。またロードバランス設定もできません。\n\n※2：ロードバランス有効の場合、帯域制限列で指定した比率で\n分散されます。帯域制限が無しの場合は等分されます。\n\n※3：セルラー（LTE）はハイエンドLTEプランモデルのみ指定できます。"]
[null,null,null,"Internet1",null,null,null,"プライマリ",null,null,null,null,"なし",null,null,null,null,null,null,null,null,"なし"]
[null,null,null,"Internet2",null,null,null,"セカンダリ",null,null,null,null,"なし"]
[null,null,null,"セルラー（LTE)\n※3",null,null,null,null,null,null,null,null,"なし"]
[]
[]
[]
[]
[null,null,"備考欄"]

{"sheet":"【別紙7】L7ファイアウォール設定","index":11,"n_rows":34,"n_cols":53,"rows_kept":34,"cut":false,"hidden":true,"merged":[[33,3,33,4],[33,5,33,16],[33,17,33,28],[30,3,30,4],[30,5,30,16],[30,17,30,28],[31,3,31,4],[31,5,31,16],[31,17,31,28],[32,3,32,4],[32,5,32,16],[32,17,32,28],[29,3,29,4],[29,5,29,16],[29,17,29,28],[24,3,24,4],[24,5,24,16],[24,17,24,28],[25,3,25,4],[25,5,25,16],[25,17,25,28],[27,3,27,4],[27,5,27,16],[27,17,27,28],[28,3,28,4],[28,5,28,16],[28,17,28,28],[25,31,25,48],[26,3,26,4],[26,5,26,16],[26,17,26,28],[21,3,21,4],[21,5,21,16],[21,17,21,28],[22,3,22,4],[22,5,22,16],[22,17,22,28],[23,3,23,4],[23,5,23,16],[23,17,23,28],[23,31,23,48],[18,3,18,4],[18,5,18,16],[18,17,18,28],[18,31,18,48],[19,3,19,4],[19,5,19,16],[19,17,19,28],[19,31,19,48],[20,3,20,4],[20,5,20,16],[20,17,20,28],[20,31,20,48],[15,3,15,4],[15,5,15,16],[15,17,15,28],[15,31,15,48],[16,3,16,4],[16,5,16,16],[16,17,16,28],[16,31,16,48],[17,3,17,4],[17,5,17,16],[17,17,17,28],[17,31,17,48],[1,1,4,51],[5,1,6,51],[10,3,10,28],[10,31,10,48],[12,31,12,48],[13,3,13,4],[13,5,13,16],[13,17,13,28],[13,31,13,48],[14,3,14,4],[14,5,14,16],[14,17,14,28],[14,31,14,48]]}
[]
[null,"【様式8C】ギガらくルーター・スイッチ 設定変更申込書"]
[]
[]
[]
[null,"【別紙7】 L7 ファイアウォール設定"]
[]
[]
[null,null,null,null,null,null,null,null,null,null,null,null,null,null,null,null,null,null,null,null,null,null,null,null,null,null,null,null,null,null,null,null,null,null,null,null,null,null,null,null,null,null,{"$f":"設定申込書!AS6","v":"Ver5.0(2026.3.1～)"}]
[null,null,null,"■ L7 ファイアウォール設定",null,null,null,null,null,null,null,null,null,null,null,null,null,null,null,null,null,null,null,null,null,null,null,null,null,null,null,"■ URLブロック指定"]
[null,null,null,"　通信をブロックしたいカテゴリ・サブカテゴリを選択してください。\n\n　・はじめに「対象ジャンル」から通信をブロックしたいジャンルをプルダウンから選択。\n　　次に「サブカテゴリ」の中からブロックしたいサービスを選択してください。　\n　・「対象ジャンル」で選択したカテゴリのサブカテゴリすべてをブロックしたい場合は、\n　　サブカテゴリで”ALL 〇〇〇\"を選択してください。",null,null,null,null,null,null,null,null,null,null,null,null,null,null,null,null,null,null,null,null,null,null,null,null,null,null,null,"ホスト名（特定のサーバアドレスやドメイン名）で通信を\nブロックする場合は以下にホスト名を記入してください。"]
[]
[null,null,null,"No",null,"対象ジャンル",null,null,null,null,null,null,null,null,null,null,null,"サブカテゴリ",null,null,null,null,null,null,null,null,null,null,null,null,null,"Hostname(ホスト名）",null,null,null,null,null,null,null,null,null,null,null,null,null,null,null,null,null,null,null,null,"■ 参考　L7 Firewallで指定可能な対象ジャンルリスト"]
[null,null,null,1,null,null,null,null,null,null,null,null,null,null,null,null,null,null,null,null,null,null,null,null,null,null,null,null,null,null,null,"記入例　example.com",null,null,null,null,null,null,null,null,null,null,null,null,null,null,null,null,null,null,null,null,"Advertising - 広告"]
[null,null,null,2,null,null,null,null,null,null,null,null,null,null,null,null,null,null,null,null,null,null,null,null,null,null,null,null,null,null,null,null,null,null,null,null,null,null,null,null,null,null,null,null,null,null,null,null,null,null,null,null,"Blogging - ブログ"]
[null,null,null,3,null,null,null,null,null,null,null,null,null,null,null,null,null,null,null,null,null,null,null,null,null,null,null,null,null,null,null,null,null,null,null,null,null,null,null,null,null,null,null,null,null,null,null,null,null,null,null,null,"Business_management - ビジネス管理"]
[null,null,null,4,null,null,null,null,null,null,null,null,null,null,null,null,null,null,null,null,null,null,null,null,null,null,null,null,null,null,null,null,null,null,null,null,null,null,null,null,null,null,null,null,null,null,null,null,null,null,null,null,"Databases_cloud_services - データベース・クラウドサービス"]
[null,null,null,5,null,null,null,null,null,null,null,null,null,null,null,null,null,null,null,null,null,null,null,null,null,null,null,null,null,null,null,null,null,null,null,null,null,null,null,null,null,null,null,null,null,null,null,null,null,null,null,null,"Email - 電子メール"]
[null,null,null,6,null,null,null,null,null,null,null,null,null,null,null,null,null,null,null,null,null,null,null,null,null,null,null,null,null,null,null,null,null,null,null,null,null,null,null,null,null,null,null,null,null,null,null,null,null,null,null,null,"File sharing - ファイル共有"]
[null,null,null,7,null,null,null,null,null,null,null,null,null,null,null,null,null,null,null,null,null,null,null,null,null,null,null,null,null,null,null,null,null,null,null,null,null,null,null,null,null,null,null,null,null,null,null,null,null,null,null,null,"Gaming - ゲーム"]
[null,null,null,8,null,null,null,null,null,null,null,null,null,null,null,null,null,null,null,null,null,null,null,null,null,null,null,null,null,null,null,null,null,null,null,null,null,null,null,null,null,null,null,null,null,null,null,null,null,null,null,null,"Health_care - ヘルスケア"]
[null,null,null,9,null,null,null,null,null,null,null,null,null,null,null,null,null,null,null,null,null,null,null,null,null,null,null,null,null,null,null,null,null,null,null,null,null,null,null,null,null,null,null,null,null,null,null,null,null,null,null,null,"News - ニュース"]
[null,null,null,10,null,null,null,null,null,null,null,null,null,null,null,null,null,null,null,null,null,null,null,null,null,null,null,null,null,null,null,null,null,null,null,null,null,null,null,null,null,null,null,null,null,null,null,null,null,null,null,null,"Online_backup - オンラインバックアップ"]
[null,null,null,11,null,null,null,null,null,null,null,null,null,null,null,null,null,null,null,null,null,null,null,null,null,null,null,null,null,null,null,null,null,null,null,null,null,null,null,null,null,null,null,null,null,null,null,null,null,null,null,null,"Peer_to_peer_P2P - P2P（ピア・トゥ・ピア）"]
[null,null,null,12,null,null,null,null,null,null,null,null,null,null,null,null,null,null,null,null,null,null,null,null,null,null,null,null,null,null,null,null,null,null,null,null,null,null,null,null,null,null,null,null,null,null,null,null,null,null,null,null,"Productivity - 生産性"]
[null,null,null,13,null,null,null,null,null,null,null,null,null,null,null,null,null,null,null,null,null,null,null,null,null,null,null,null,null,null,null,null,null,null,null,null,null,null,null,null,null,null,null,null,null,null,null,null,null,null,null,null,"Remote_monitoring_management – リモート監視管理"]
[null,null,null,14,null,null,null,null,null,null,null,null,null,null,null,null,null,null,null,null,null,null,null,null,null,null,null,null,null,null,null,null,null,null,null,null,null,null,null,null,null,null,null,null,null,null,null,null,null,null,null,null,"Security – セキュリティ"]
[null,null,null,15,null,null,null,null,null,null,null,null,null,null,null,null,null,null,null,null,null,null,null,null,null,null,null,null,null,null,null,null,null,null,null,null,null,null,null,null,null,null,null,null,null,null,null,null,null,null,null,null,"Social_web_photo_sharing – ソーシャルウェブ・フォトシェアリング"]
[null,null,null,16,null,null,null,null,null,null,null,null,null,null,null,null,null,null,null,null,null,null,null,null,null,null,null,null,null,null,null,null,null,null,null,null,null,null,null,null,null,null,null,null,null,null,null,null,null,null,null,null,"Software_anti_virus_updates – ソフトウェア・アンチウイルス更新"]
[null,null,null,17,null,null,null,null,null,null,null,null,null,null,null,null,null,null,null,null,null,null,null,null,null,null,null,null,null,null,null,null,null,null,null,null,null,null,null,null,null,null,null,null,null,null,null,null,null,null,null,null,"Sports – スポーツ"]
[null,null,null,18,null,null,null,null,null,null,null,null,null,null,null,null,null,null,null,null,null,null,null,null,null,null,null,null,null,null,null,null,null,null,null,null,null,null,null,null,null,null,null,null,null,null,null,null,null,null,null,null,"Video_music – 動画・音楽"]
[null,null,null,19,null,null,null,null,null,null,null,null,null,null,null,null,null,null,null,null,null,null,null,null,null,null,null,null,null,null,null,null,null,null,null,null,null,null,null,null,null,null,null,null,null,null,null,null,null,null,null,null,"VoIP_video_conferencing -  VoIPビデオ会議 –"]
[null,null,null,20,null,null,null,null,null,null,null,null,null,null,null,null,null,null,null,null,null,null,null,null,null,null,null,null,null,null,null,null,null,null,null,null,null,null,null,null,null,null,null,null,null,null,null,null,null,null,null,null,"Web_file_sharing – ウェブファイル共有"]
[null,null,null,null,null,null,null,null,null,null,null,null,null,null,null,null,null,null,null,null,null,null,null,null,null,null,null,null,null,null,null,null,null,null,null,null,null,null,null,null,null,null,null,null,null,null,null,null,null,null,null,null,"Web_payments – ウェブ決済"]

{"sheet":"【別紙8】スタティックルート","index":12,"n_rows":29,"n_cols":25,"rows_kept":29,"cut":false,"hidden":true,"merged":[[28,1,29,50],[30,1,37,50],[16,1,16,2],[16,3,16,15],[16,16,16,23],[17,1,17,2],[17,3,17,15],[17,16,17,23],[18,1,18,2],[18,3,18,15],[18,16,18,23],[19,1,19,2],[19,3,19,15],[19,16,19,23],[20,1,20,2],[20,3,20,15],[14,1,14,2],[14,3,14,15],[14,16,14,23],[15,1,15,2],[15,3,15,15],[15,16,15,23],[13,1,13,2],[13,3,13,15],[13,16,13,23],[1,1,4,50],[5,42,5,43],[12,1,12,2],[12,3,12,15],[12,16,12,23],[8,3,8,48],[9,3,9,48],[12,24,12,31],[13,24,13,31],[10,3,10,48],[23,1,23,2],[23,3,23,15],[23,16,23,23],[20,16,20,23],[21,1,21,2],[21,3,21,15],[21,16,21,23],[22,1,22,2],[22,3,22,15],[22,16,22,23],[14,24,14,31],[15,24,15,31],[16,24,16,31],[17,24,17,31],[18,24,18,31],[19,24,19,31],[20,24,20,31],[21,24,21,31],[22,24,22,31],[23,24,23,31]]}
[]
[null,"【様式8C】ギガらくルーター 詳細設定申込書\n【別紙8】スタティックルートの設定"]
[]
[]
[]
[]
[]
[]
[null,null,null,"ギガらくルーター装置に直接接続されていないネットワークへのルートを手動で設定する場合"]
[null,null,null,"以下にルート情報を記載してください。（ギガらくルーター装置のWAN側にはスタティックルートを設定できません）\n　宛先サブネット：接続したい宛先のネットワーク(サブネット情報）\n　ネクストホップIP：本ネットワークと宛先サブネットの境界にあるL3装置(ルータ等）のIPアドレス\n　拠点間VPNへの広告：※参照\n\nなお対向側のL3装置等にもギガらくルーター装置へのスタティックルートが必要です。\n(L3装置への設定はお客様が行う必要があります。)"]
[null,null,null,"※拠点間VPNへ広告は本ルーター装置同士で拠点間VPN機能(インターネットVPN)をご利用の際、\n指定サブネットへの経路情報を他の拠点にも伝える必要がある場合：あり　\n拠点間VPNを利用していない、または広告する必要がない場合は：なし　としてください。\nまた「あり」の場合は、様式9CにもスタティックRT情報の記入をお願い致します。"]
[null,null,null,"記入欄が足りない場合は欄を追加して記入してください。"]
[null,"No",null,"宛先サブネット",null,null,null,null,null,null,null,null,null,null,null,null,"ネクストホップ IP",null,null,null,null,null,null,null,"拠点間VPNへ広告"]
[null,"例",null,"例:192.168.100.1/24",null,null,null,null,null,null,null,null,null,null,null,null,"192.168.1.5",null,null,null,null,null,null,null,"なし"]
[null,1]
[null,2]
[null,3]
[null,4]
[null,5]
[null,6]
[null,7]
[null,8]
[null,9]
[null,10]
[]
[]
[]
[]
[null,"備考欄"]

{"sheet":"【別紙9】ポート・VLAN設定","index":13,"n_rows":156,"n_cols":110,"rows_kept":156,"cut":false,"hidden":true,"merged":[[149,2,149,56],[150,2,150,56],[149,62,149,116],[150,62,150,116],[140,2,140,56],[140,62,140,116],[16,66,16,70],[16,71,16,76],[16,77,16,94],[16,95,16,101],[16,102,16,108],[16,109,16,116],[13,2,13,14],[13,62,13,74],[16,2,16,5],[16,6,16,10],[16,11,16,16],[16,17,16,34],[16,35,16,41],[16,42,16,48],[16,49,16,56],[16,62,16,65],[17,6,17,10],[17,11,17,16],[17,17,17,34],[17,35,17,41],[17,42,17,48],[20,66,20,70],[20,71,20,76],[20,77,20,94],[20,95,20,101],[20,102,20,108],[1,1,4,57],[9,49,9,50],[11,2,11,8],[11,9,11,18],[11,19,11,29],[11,30,11,36],[11,37,11,38],[11,39,11,45],[11,46,11,56],[18,66,18,70],[18,71,18,76],[18,77,18,94],[18,95,18,101],[18,102,18,108],[18,109,18,116],[17,102,17,108],[17,109,17,116],[18,2,18,5],[18,6,18,10],[18,11,18,16],[18,17,18,34],[18,35,18,41],[18,42,18,48],[18,49,18,56],[18,62,18,65],[17,49,17,56],[17,62,17,65],[17,66,17,70],[17,71,17,76],[17,77,17,94],[17,95,17,101],[17,2,17,5],[20,109,20,116],[19,102,19,108],[19,109,19,116],[20,2,20,5],[20,6,20,10],[20,11,20,16],[20,17,20,34],[20,35,20,41],[20,42,20,48],[20,49,20,56],[20,62,20,65],[19,49,19,56],[19,62,19,65],[19,66,19,70],[19,71,19,76],[19,77,19,94],[19,95,19,101],[19,2,19,5],[19,6,19,10],[19,11,19,16],[19,17,19,34],[19,35,19,41],[19,42,19,48],[22,66,22,70],[22,71,22,76],[22,77,22,94],[22,95,22,101],[22,102,22,108],[22,109,22,116],[21,102,21,108],[21,109,21,116],[22,2,22,5],[22,6,22,10],[22,11,22,16],[22,17,22,34],[22,35,22,41],[22,42,22,48],[22,49,22,56],[22,62,22,65],[21,49,21,56],[21,62,21,65],[21,66,21,70],[21,71,21,76],[21,77,21,94],[21,95,21,101],[21,2,21,5],[21,6,21,10],[21,11,21,16],[21,17,21,34],[21,35,21,41],[21,42,21,48],[24,66,24,70],[24,71,24,76],[24,77,24,94],[24,95,24,101],[24,102,24,108],[24,109,24,116],[23,102,23,108],[23,109,23,116],[24,2,24,5],[24,6,24,10],[24,11,24,16],[24,17,24,34],[24,35,24,41],[24,42,24,48],[24,49,24,56],[24,62,24,65],[23,49,23,56],[23,62,23,65],[23,66,23,70],[23,71,23,76],[23,77,23,94],[23,95,23,101],[23,2,23,5],[23,6,23,10],[23,11,23,16],[23,17,23,34],[23,35,23,41],[23,42,23,48],[26,66,26,70],[26,71,26,76],[26,77,26,94],[26,95,26,101],[26,102,26,108],[26,109,26,116],[25,102,25,108],[25,109,25,116],[26,2,26,5],[26,6,26,10],[26,11,26,16],[26,17,26,34],[26,35,26,41],[26,42,26,48],[26,49,26,56],[26,62,26,65],[25,49,25,56],[25,62,25,65],[25,66,25,70],[25,71,25,76],[25,77,25,94],[25,95,25,101],[25,2,25,5],[25,6,25,10],[25,11,25,16],[25,17,25,34],[25,35,25,41],[25,42,25,48],[28,66,28,70],[28,71,28,76],[28,77,28,94],[28,95,28,101],[28,102,28,108],[28,109,28,116],[27,102,27,108],[27,109,27,116],[28,2,28,5],[28,6,28,10],[28,11,28,16],[28,17,28,34],[28,35,28,41],[28,42,28,48],[28,49,28,56],[28,62,28,65],[27,49,27,56],[27,62,27,65],[27,66,27,70],[27,71,27,76],[27,77,27,94],[27,95,27,101],[27,2,27,5],[27,6,27,10],[27,11,27,16],[27,17,27,34],[27,35,27,41],[27,42,27,48],[30,66,30,70],[30,71,30,76],[30,77,30,94],[30,95,30,101],[30,102,30,108],[30,109,30,116],[29,102,29,108],[29,109,29,116],[30,2,30,5],[30,6,30,10],[30,11,30,16],[30,17,30,34],[30,35,30,41],[30,42,30,48],[30,49,30,56],[30,62,30,65],[29,49,29,56],[29,62,29,65],[29,66,29,70],[29,71,29,76],[29,77,29,94],[29,95,29,101],[29,2,29,5],[29,6,29,10],[29,11,29,16],[29,17,29,34],[29,35,29,41],[29,42,29,48],[32,66,32,70],[32,71,32,76],[32,77,32,94],[32,95,32,101],[32,102,32,108],[32,109,32,116],[31,102,31,108],[31,109,31,116],[32,2,32,5],[32,6,32,10],[32,11,32,16],[32,17,32,34],[32,35,32,41],[32,42,32,48],[32,49,32,56],[32,62,32,65],[31,49,31,56],[31,62,31,65],[31,66,31,70],[31,71,31,76],[31,77,31,94],[31,95,31,101],[31,2,31,5],[31,6,31,10],[31,11,31,16],[31,17,31,34],[31,35,31,41],[31,42,31,48],[34,66,34,70],[34,71,34,76],[34,77,34,94],[34,95,34,101],[34,102,34,108],[34,109,34,116],[33,102,33,108],[33,109,33,116],[34,2,34,5],[34,6,34,10],[34,11,34,16],[34,17,34,34],[34,35,34,41],[34,42,34,48],[34,49,34,56],[34,62,34,65],[33,49,33,56],[33,62,33,65],[33,66,33,70],[33,71,33,76],[33,77,33,94],[33,95,33,101],[33,2,33,5],[33,6,33,10],[33,11,33,16],[33,17,33,34],[33,35,33,41],[33,42,33,48],[36,66,36,70],[36,71,36,76],[36,77,36,94],[36,95,36,101],[36,102,36,108],[36,109,36,116],[35,102,35,108],[35,109,35,116],[36,2,36,5],[36,6,36,10],[36,11,36,16],[36,17,36,34],[36,35,36,41],[36,42,36,48],[36,49,36,56],[36,62,36,65],[35,49,35,56],[35,62,35,65],[35,66,35,70],[35,71,35,76],[35,77,35,94],[35,95,35,101],[35,2,35,5],[35,6,35,10],[35,11,35,16],[35,17,35,34],[35,35,35,41],[35,42,35,48],[38,66,38,70],[38,71,38,76],[38,77,38,94],[38,95,38,101],[38,102,38,108],[38,109,38,116],[37,102,37,108],[37,109,37,116],[38,2,38,5],[38,6,38,10],[38,11,38,16],[38,17,38,34],[38,35,38,41],[38,42,38,48],[38,49,38,56],[38,62,38,65],[37,49,37,56],[37,62,37,65],[37,66,37,70],[37,71,37,76],[37,77,37,94],[37,95,37,101],[37,2,37,5],[37,6,37,10],[37,11,37,16],[37,17,37,34],[37,35,37,41],[37,42,37,48],[40,66,40,70],[40,71,40,76],[40,77,40,94],[40,95,40,101],[40,102,40,108],[40,109,40,116],[39,102,39,108],[39,109,39,116],[40,2,40,5],[40,6,40,10],[40,11,40,16],[40,17,40,34],[40,35,40,41],[40,42,40,48],[40,49,40,56],[40,62,40,65],[39,49,39,56],[39,62,39,65],[39,66,39,70],[39,71,39,76],[39,77,39,94],[39,95,39,101],[39,2,39,5],[39,6,39,10],[39,11,39,16],[39,17,39,34],[39,35,39,41],[39,42,39,48],[42,66,42,70],[42,71,42,76],[42,77,42,94],[42,95,42,101],[42,102,42,108],[42,109,42,116],[41,102,41,108],[41,109,41,116],[42,2,42,5],[42,6,42,10],[42,11,42,16],[42,17,42,34],[42,35,42,41],[42,42,42,48],[42,49,42,56],[42,62,42,65],[41,49,41,56],[41,62,41,65],[41,66,41,70],[41,71,41,76],[41,77,41,94],[41,95,41,101],[41,2,41,5],[41,6,41,10],[41,11,41,16],[41,17,41,34],[41,35,41,41],[41,42,41,48],[44,66,44,70],[44,71,44,76],[44,77,44,94],[44,95,44,101],[44,102,44,108],[44,109,44,116],[43,102,43,108],[43,109,43,116],[44,2,44,5],[44,6,44,10],[44,11,44,16],[44,17,44,34],[44,35,44,41],[44,42,44,48],[44,49,44,56],[44,62,44,65],[43,49,43,56],[43,62,43,65],[43,66,43,70],[43,71,43,76],[43,77,43,94],[43,95,43,101],[43,2,43,5],[43,6,43,10],[43,11,43,16],[43,17,43,34],[43,35,43,41],[43,42,43,48],[46,66,46,70],[46,71,46,76],[46,77,46,94],[46,95,46,101],[46,102,46,108],[46,109,46,116],[45,102,45,108],[45,109,45,116],[46,2,46,5],[46,6,46,10],[46,11,46,16],[46,17,46,34],[46,35,46,41],[46,42,46,48],[46,49,46,56],[46,62,46,65],[45,49,45,56],[45,62,45,65],[45,66,45,70],[45,71,45,76],[45,77,45,94],[45,95,45,101],[45,2,45,5],[45,6,45,10],[45,11,45,16],[45,17,45,34],[45,35,45,41],[45,42,45,48],[48,66,48,70],[48,71,48,76],[48,77,48,94],[48,95,48,101],[48,102,48,108],[48,109,48,116],[47,102,47,108],[47,109,47,116],[48,2,48,5],[48,6,48,10],[48,11,48,16],[48,17,48,34],[48,35,48,41],[48,42,48,48],[48,49,48,56],[48,62,48,65],[47,49,47,56],[47,62,47,65],[47,66,47,70],[47,71,47,76],[47,77,47,94],[47,95,47,101],[47,2,47,5],[47,6,47,10],[47,11,47,16],[47,17,47,34],[47,35,47,41],[47,42,47,48],[50,66,50,70],[50,71,50,76],[50,77,50,94],[50,95,50,101],[50,102,50,108],[50,109,50,116],[49,102,49,108],[49,109,49,116],[50,2,50,5],[50,6,50,10],[50,11,50,16],[50,17,50,34],[50,35,50,41],[50,42,50,48],[50,49,50,56],[50,62,50,65],[49,49,49,56],[49,62,49,65],[49,66,49,70],[49,71,49,76],[49,77,49,94],[49,95,49,101],[49,2,49,5],[49,6,49,10],[49,11,49,16],[49,17,49,34],[49,35,49,41],[49,42,49,48],[52,66,52,70],[52,71,52,76],[52,77,52,94],[52,95,52,101],[52,102,52,108],[52,109,52,116],[51,102,51,108],[51,109,51,116],[52,2,52,5],[52,6,52,10],[52,11,52,16],[52,17,52,34],[52,35,52,41],[52,42,52,48],[52,49,52,56],[52,62,52,65],[51,49,51,56],[51,62,51,65],[51,66,51,70],[51,71,51,76],[51,77,51,94],[51,95,51,101],[51,2,51,5],[51,6,51,10],[51,11,51,16],[51,17,51,34],[51,35,51,41],[51,42,51,48],[54,66,54,70],[54,71,54,76],[54,77,54,94],[54,95,54,101],[54,102,54,108],[54,109,54,116],[53,102,53,108],[53,109,53,116],[54,2,54,5],[54,6,54,10],[54,11,54,16],[54,17,54,34],[54,35,54,41],[54,42,54,48],[54,49,54,56],[54,62,54,65],[53,49,53,56],[53,62,53,65],[53,66,53,70],[53,71,53,76],[53,77,53,94],[53,95,53,101],[53,2,53,5],[53,6,53,10],[53,11,53,16],[53,17,53,34],[53,35,53,41],[53,42,53,48],[56,66,56,70],[56,71,56,76],[56,77,56,94],[56,95,56,101],[56,102,56,108],[56,109,56,116],[55,102,55,108],[55,109,55,116],[56,2,56,5],[56,6,56,10],[56,11,56,16],[56,17,56,34],[56,35,56,41],[56,42,56,48],[56,49,56,56],[56,62,56,65],[55,49,55,56],[55,62,55,65],[55,66,55,70],[55,71,55,76],[55,77,55,94],[55,95,55,101],[55,2,55,5],[55,6,55,10],[55,11,55,16],[55,17,55,34],[55,35,55,41],[55,42,55,48],[58,66,58,70],[58,71,58,76],[58,77,58,94],[58,95,58,101],[58,102,58,108],[58,109,58,116],[57,102,57,108],[57,109,57,116],[58,2,58,5],[58,6,58,10],[58,11,58,16],[58,17,58,34],[58,35,58,41],[58,42,58,48],[58,49,58,56],[58,62,58,65],[57,49,57,56],[57,62,57,65],[57,66,57,70],[57,71,57,76],[57,77,57,94],[57,95,57,101],[57,2,57,5],[57,6,57,10],[57,11,57,16],[57,17,57,34],[57,35,57,41],[57,42,57,48],[60,66,60,70],[60,71,60,76],[60,77,60,94],[60,95,60,101],[60,102,60,108],[60,109,60,116],[59,102,59,108],[59,109,59,116],[60,2,60,5],[60,6,60,10],[60,11,60,16],[60,17,60,34],[60,35,60,41],[60,42,60,48],[60,49,60,56],[60,62,60,65],[59,49,59,56],[59,62,59,65],[59,66,59,70],[59,71,59,76],[59,77,59,94],[59,95,59,101],[59,2,59,5],[59,6,59,10],[59,11,59,16],[59,17,59,34],[59,35,59,41],[59,42,59,48],[62,66,62,70],[62,71,62,76],[62,77,62,94],[62,95,62,101],[62,102,62,108],[62,109,62,116],[61,102,61,108],[61,109,61,116],[62,2,62,5],[62,6,62,10],[62,11,62,16],[62,17,62,34],[62,35,62,41],[62,42,62,48],[62,49,62,56],[62,62,62,65],[61,49,61,56],[61,62,61,65],[61,66,61,70],[61,71,61,76],[61,77,61,94],[61,95,61,101],[61,2,61,5],[61,6,61,10],[61,11,61,16],[61,17,61,34],[61,35,61,41],[61,42,61,48],[64,66,64,70],[64,71,64,76],[64,77,64,94],[64,95,64,101],[64,102,64,108],[64,109,64,116],[63,102,63,108],[63,109,63,116],[64,2,64,5],[64,6,64,10],[64,11,64,16],[64,17,64,34],[64,35,64,41],[64,42,64,48],[64,49,64,56],[64,62,64,65],[63,49,63,56],[63,62,63,65],[63,66,63,70],[63,71,63,76],[63,77,63,94],[63,95,63,101],[63,2,63,5],[63,6,63,10],[63,11,63,16],[63,17,63,34],[63,35,63,41],[63,42,63,48],[66,66,66,70],[66,71,66,76],[66,77,66,94],[66,95,66,101],[66,102,66,108],[66,109,66,116],[65,102,65,108],[65,109,65,116],[66,2,66,5],[66,6,66,10],[66,11,66,16],[66,17,66,34],[66,35,66,41],[66,42,66,48],[66,49,66,56],[66,62,66,65],[65,49,65,56],[65,62,65,65],[65,66,65,70],[65,71,65,76],[65,77,65,94],[65,95,65,101],[65,2,65,5],[65,6,65,10],[65,11,65,16],[65,17,65,34],[65,35,65,41],[65,42,65,48],[68,66,68,70],[68,71,68,76],[68,77,68,94],[68,95,68,101],[68,102,68,108],[68,109,68,116],[67,102,67,108],[67,109,67,116],[68,2,68,5],[68,6,68,10],[68,11,68,16],[68,17,68,34],[68,35,68,41],[68,42,68,48],[68,49,68,56],[68,62,68,65],[67,49,67,56],[67,62,67,65],[67,66,67,70],[67,71,67,76],[67,77,67,94],[67,95,67,101],[67,2,67,5],[67,6,67,10],[67,11,67,16],[67,17,67,34],[67,35,67,41],[67,42,67,48],[70,66,70,70],[70,71,70,76],[70,77,70,94],[70,95,70,101],[70,102,70,108],[70,109,70,116],[69,102,69,108],[69,109,69,116],[70,2,70,5],[70,6,70,10],[70,11,70,16],[70,17,70,34],[70,35,70,41],[70,42,70,48],[70,49,70,56],[70,62,70,65],[69,49,69,56],[69,62,69,65],[69,66,69,70],[69,71,69,76],[69,77,69,94],[69,95,69,101],[69,2,69,5],[69,6,69,10],[69,11,69,16],[69,17,69,34],[69,35,69,41],[69,42,69,48],[72,66,72,70],[72,71,72,76],[72,77,72,94],[72,95,72,101],[72,102,72,108],[72,109,72,116],[71,102,71,108],[71,109,71,116],[72,2,72,5],[72,6,72,10],[72,11,72,16],[72,17,72,34],[72,35,72,41],[72,42,72,48],[72,49,72,56],[72,62,72,65],[71,49,71,56],[71,62,71,65],[71,66,71,70],[71,71,71,76],[71,77,71,94],[71,95,71,101],[71,2,71,5],[71,6,71,10],[71,11,71,16],[71,17,71,34],[71,35,71,41],[71,42,71,48],[75,35,75,41],[75,42,75,48],[74,66,74,70],[74,71,74,76],[74,77,74,94],[74,95,74,101],[74,102,74,108],[74,109,74,116],[73,102,73,108],[73,109,73,116],[74,2,74,5],[74,6,74,10],[74,11,74,16],[74,17,74,34],[74,35,74,41],[74,42,74,48],[74,49,74,56],[74,62,74,65],[73,49,73,56],[73,62,73,65],[73,66,73,70],[73,71,73,76],[73,77,73,94],[73,95,73,101],[73,2,73,5],[73,6,73,10],[73,11,73,16],[73,17,73,34],[73,35,73,41],[73,42,73,48],[79,66,79,70],[79,71,79,76],[79,77,79,94],[79,95,79,97],[79,98,79,100],[79,101,79,116],[78,16,78,55],[78,76,78,115],[79,2,79,5],[79,6,79,10],[79,11,79,16],[79,17,79,34],[79,35,79,37],[79,38,79,40],[79,41,79,56],[79,62,79,65],[75,102,75,108],[75,109,75,116],[77,2,77,14],[77,16,77,56],[77,62,77,74],[77,76,77,116],[75,49,75,56],[75,62,75,65],[75,66,75,70],[75,71,75,76],[75,77,75,94],[75,95,75,101],[75,2,75,5],[75,6,75,10],[75,11,75,16],[75,17,75,34],[81,66,81,70],[81,71,81,76],[81,77,81,94],[81,95,81,97],[81,98,81,100],[81,101,81,116],[80,98,80,100],[80,101,80,116],[81,2,81,5],[81,6,81,10],[81,11,81,16],[81,17,81,34],[81,35,81,37],[81,38,81,40],[81,41,81,56],[81,62,81,65],[80,41,80,56],[80,62,80,65],[80,66,80,70],[80,71,80,76],[80,77,80,94],[80,95,80,97],[80,2,80,5],[80,6,80,10],[80,11,80,16],[80,17,80,34],[80,35,80,37],[80,38,80,40],[83,66,83,70],[83,71,83,76],[83,77,83,94],[83,95,83,97],[83,98,83,100],[83,101,83,116],[82,98,82,100],[82,101,82,116],[83,2,83,5],[83,6,83,10],[83,11,83,16],[83,17,83,34],[83,35,83,37],[83,38,83,40],[83,41,83,56],[83,62,83,65],[82,41,82,56],[82,62,82,65],[82,66,82,70],[82,71,82,76],[82,77,82,94],[82,95,82,97],[82,2,82,5],[82,6,82,10],[82,11,82,16],[82,17,82,34],[82,35,82,37],[82,38,82,40],[85,66,85,70],[85,71,85,76],[85,77,85,94],[85,95,85,97],[85,98,85,100],[85,101,85,116],[84,98,84,100],[84,101,84,116],[85,2,85,5],[85,6,85,10],[85,11,85,16],[85,17,85,34],[85,35,85,37],[85,38,85,40],[85,41,85,56],[85,62,85,65],[84,41,84,56],[84,62,84,65],[84,66,84,70],[84,71,84,76],[84,77,84,94],[84,95,84,97],[84,2,84,5],[84,6,84,10],[84,11,84,16],[84,17,84,34],[84,35,84,37],[84,38,84,40],[87,66,87,70],[87,71,87,76],[87,77,87,94],[87,95,87,97],[87,98,87,100],[87,101,87,116],[86,98,86,100],[86,101,86,116],[87,2,87,5],[87,6,87,10],[87,11,87,16],[87,17,87,34],[87,35,87,37],[87,38,87,40],[87,41,87,56],[87,62,87,65],[86,41,86,56],[86,62,86,65],[86,66,86,70],[86,71,86,76],[86,77,86,94],[86,95,86,97],[86,2,86,5],[86,6,86,10],[86,11,86,16],[86,17,86,34],[86,35,86,37],[86,38,86,40],[89,66,89,70],[89,71,89,76],[89,77,89,94],[89,95,89,97],[89,98,89,100],[89,101,89,116],[88,98,88,100],[88,101,88,116],[89,2,89,5],[89,6,89,10],[89,11,89,16]],"merged_total":1789,"flags":["merged_cut"]}
[]
[null,"【様式8C】ギガらくスイッチ 詳細設定申込書\n【別紙9】ポート・VLAN設定"]
[]
[]
[]
[]
[]
[]
[]
[]
[null,null,null,null,null,null,null,null,null,"↓プランを選択してください↓",null,null,null,null,null,null,null,null,null,"↓機種名を入れてください↓",null,null,null,null,null,null,null,null,null,null,null,null,null,null,null,null,null,null,null,null,null,null,null,null,null,null,null,null,null,null,null,null,null,{"$f":"設定申込書!AS6","v":"Ver5.0(2026.3.1～)"}]
[null,null,"プラン",null,null,null,null,null,null,null,null,null,null,null,null,null,null,null,null,"",null,null,null,null,null,null,null,null,null,null,"管理VLANの変更",null,null,null,null,null,null,"(デフォルト) 1",null,"変更するスイッチのシリアル(S/N)"]
[]
[null,null,"ポート、PoEの有効・無効化",null,null,null,null,null,null,null,null,null,null,null,null,null,null,null,null,null,null,null,null,null,null,null,null,null,null,null,null,null,null,null,null,null,null,null,null,null,null,null,null,null,null,null,null,null,null,null,null,null,null,null,null,null,null,null,null,null,null,null,"ポート、PoEの有効・無効化"]
[]
[]
[null,null,"ポート",null,null,null,"port status",null,null,null,null,"PoE ON/OFF\n（デフォルトON）",null,null,null,null,null,"ポートの名前（任意指定）",null,null,null,null,null,null,null,null,null,null,null,null,null,null,null,null,null,"リンクアグリゲーション設定　（任意指定）\n\n※右欄外の注意事項も合わせて確認願います。",null,null,null,null,null,null,"ポートスケジュール設定\n（任意設定）\n（別紙１０のスケジュール名を記入）※uplinkポートへの適用禁止",null,null,null,null,null,null,"備考",null,null,null,null,null,null,null,null,null,null,null,null,"ポート",null,null,null,"port status",null,null,null,null,"PoE ON/OFF",null,null,null,null,null,"ポート名（任意）",null,null,null,null,null,null,null,null,null,null,null,null,null,null,null,null,null,"リンクアグリゲーション（LAG）\n・記入欄にLAGを組むペアのポート番号を記入\n・必ず対向のスイッチにもLAG設定が必要です\n・右欄外に注意事項がありますので合わせて確認願います。",null,null,null,null,null,null,"ポートスケジュール\n（別紙１０のスケジュール名を記入）\n※uplinkポートへの適用禁止",null,null,null,null,null,null,"備考"]
[null,null,"例　1",null,null,null,"有効",null,null,null,null,"ON",null,null,null,null,null,"アップリンク用ポート",null,null,null,null,null,null,null,null,null,null,null,null,null,null,null,null,null,2,null,null,null,null,null,null,"一般",null,null,null,null,null,null,null,null,null,null,null,null,null,null,null,null,null,null,null,"例　1",null,null,null,"有効",null,null,null,null,"ON"]
[null,null,1,null,null,null,"有効",null,null,null,null,null,null,null,null,null,null,null,null,null,null,null,null,null,null,null,null,null,null,null,null,null,null,null,null,null,null,null,null,null,null,null,null,null,null,null,null,null,null,null,null,null,null,null,null,null,null,null,null,null,null,null,1,null,null,null,"有効",null,null,null,null,"ON",null,null,null,null,null,null,null,null,null,null,null,null,null,null,null,null,null,null,null,null,null,null,null,"記入例：　2　・・ポート１，２でLAGを組む場合、\nポート１の記入欄に組み合わせたいポートの番号”２”と記載"]
[null,null,2,null,null,null,"有効",null,null,null,null,null,null,null,null,null,null,null,null,null,null,null,null,null,null,null,null,null,null,null,null,null,null,null,null,null,null,null,null,null,null,null,null,null,null,null,null,null,null,null,null,null,null,null,null,null,null,null,null,null,null,null,2,null,null,null,"有効",null,null,null,null,"ON",null,null,null,null,null,null,null,null,null,null,null,null,null,null,null,null,null,null,null,null,null,null,null,"記入例：　１　・・ポート１，２でLAGを組む場合、\nポート２の記入欄に組み合わせたいポートの番号”１”と記載"]
[null,null,3,null,null,null,"有効",null,null,null,null,null,null,null,null,null,null,null,null,null,null,null,null,null,null,null,null,null,null,null,null,null,null,null,null,null,null,null,null,null,null,null,null,null,null,null,null,null,null,null,null,null,null,null,null,null,null,null,null,null,null,null,3,null,null,null,"有効"]
[null,null,4,null,null,null,"有効",null,null,null,null,null,null,null,null,null,null,null,null,null,null,null,null,null,null,null,null,null,null,null,null,null,null,null,null,null,null,null,null,null,null,null,null,null,null,null,null,null,null,null,null,null,null,null,null,null,null,null,null,null,null,null,4,null,null,null,"有効"]
[null,null,5,null,null,null,"有効",null,null,null,null,null,null,null,null,null,null,null,null,null,null,null,null,null,null,null,null,null,null,null,null,null,null,null,null,null,null,null,null,null,null,null,null,null,null,null,null,null,null,null,null,null,null,null,null,null,null,null,null,null,null,null,5,null,null,null,"有効"]
[null,null,6,null,null,null,"有効",null,null,null,null,null,null,null,null,null,null,null,null,null,null,null,null,null,null,null,null,null,null,null,null,null,null,null,null,null,null,null,null,null,null,null,null,null,null,null,null,null,null,null,null,null,null,null,null,null,null,null,null,null,null,null,6,null,null,null,"有効"]
[null,null,7,null,null,null,"有効",null,null,null,null,null,null,null,null,null,null,null,null,null,null,null,null,null,null,null,null,null,null,null,null,null,null,null,null,null,null,null,null,null,null,null,null,null,null,null,null,null,null,null,null,null,null,null,null,null,null,null,null,null,null,null,7,null,null,null,"有効"]
[null,null,8,null,null,null,"有効",null,null,null,null,null,null,null,null,null,null,null,null,null,null,null,null,null,null,null,null,null,null,null,null,null,null,null,null,null,null,null,null,null,null,null,null,null,null,null,null,null,null,null,null,null,null,null,null,null,null,null,null,null,null,null,8,null,null,null,"有効"]
[null,null,"9（SFP)",null,null,null,"None",null,null,null,null,null,null,null,null,null,null,null,null,null,null,null,null,null,null,null,null,null,null,null,null,null,null,null,null,null,null,null,null,null,null,null,null,null,null,null,null,null,null,null,null,null,null,null,null,null,null,null,null,null,null,null,"9（SFP)",null,null,null,"None"]
[null,null,"10（SFP)",null,null,null,"None",null,null,null,null,null,null,null,null,null,null,null,null,null,null,null,null,null,null,null,null,null,null,null,null,null,null,null,null,null,null,null,null,null,null,null,null,null,null,null,null,null,null,null,null,null,null,null,null,null,null,null,null,null,null,null,"10（SFP)",null,null,null,"None"]
[null,null,9,null,null,null,"有効",null,null,null,null,null,null,null,null,null,null,null,null,null,null,null,null,null,null,null,null,null,null,null,null,null,null,null,null,null,null,null,null,null,null,null,null,null,null,null,null,null,null,null,null,null,null,null,null,null,null,null,null,null,null,null,9,null,null,null,"有効"]
[null,null,10,null,null,null,"有効",null,null,null,null,null,null,null,null,null,null,null,null,null,null,null,null,null,null,null,null,null,null,null,null,null,null,null,null,null,null,null,null,null,null,null,null,null,null,null,null,null,null,null,null,null,null,null,null,null,null,null,null,null,null,null,10,null,null,null,"有効"]
[null,null,11,null,null,null,"有効",null,null,null,null,null,null,null,null,null,null,null,null,null,null,null,null,null,null,null,null,null,null,null,null,null,null,null,null,null,null,null,null,null,null,null,null,null,null,null,null,null,null,null,null,null,null,null,null,null,null,null,null,null,null,null,11,null,null,null,"有効"]
[null,null,12,null,null,null,"有効",null,null,null,null,null,null,null,null,null,null,null,null,null,null,null,null,null,null,null,null,null,null,null,null,null,null,null,null,null,null,null,null,null,null,null,null,null,null,null,null,null,null,null,null,null,null,null,null,null,null,null,null,null,null,null,12,null,null,null,"有効"]
[null,null,13,null,null,null,"有効",null,null,null,null,null,null,null,null,null,null,null,null,null,null,null,null,null,null,null,null,null,null,null,null,null,null,null,null,null,null,null,null,null,null,null,null,null,null,null,null,null,null,null,null,null,null,null,null,null,null,null,null,null,null,null,13,null,null,null,"有効"]
[null,null,14,null,null,null,"有効",null,null,null,null,null,null,null,null,null,null,null,null,null,null,null,null,null,null,null,null,null,null,null,null,null,null,null,null,null,null,null,null,null,null,null,null,null,null,null,null,null,null,null,null,null,null,null,null,null,null,null,null,null,null,null,14,null,null,null,"有効"]
[null,null,15,null,null,null,"有効",null,null,null,null,null,null,null,null,null,null,null,null,null,null,null,null,null,null,null,null,null,null,null,null,null,null,null,null,null,null,null,null,null,null,null,null,null,null,null,null,null,null,null,null,null,null,null,null,null,null,null,null,null,null,null,15,null,null,null,"有効"]
[null,null,16,null,null,null,"有効",null,null,null,null,null,null,null,null,null,null,null,null,null,null,null,null,null,null,null,null,null,null,null,null,null,null,null,null,null,null,null,null,null,null,null,null,null,null,null,null,null,null,null,null,null,null,null,null,null,null,null,null,null,null,null,16,null,null,null,"有効"]
[null,null,17,null,null,null,"有効",null,null,null,null,null,null,null,null,null,null,null,null,null,null,null,null,null,null,null,null,null,null,null,null,null,null,null,null,null,null,null,null,null,null,null,null,null,null,null,null,null,null,null,null,null,null,null,null,null,null,null,null,null,null,null,17,null,null,null,"有効"]
[null,null,18,null,null,null,"有効",null,null,null,null,null,null,null,null,null,null,null,null,null,null,null,null,null,null,null,null,null,null,null,null,null,null,null,null,null,null,null,null,null,null,null,null,null,null,null,null,null,null,null,null,null,null,null,null,null,null,null,null,null,null,null,18,null,null,null,"有効"]
[null,null,19,null,null,null,"有効",null,null,null,null,null,null,null,null,null,null,null,null,null,null,null,null,null,null,null,null,null,null,null,null,null,null,null,null,null,null,null,null,null,null,null,null,null,null,null,null,null,null,null,null,null,null,null,null,null,null,null,null,null,null,null,19,null,null,null,"有効"]
[null,null,20,null,null,null,"有効",null,null,null,null,null,null,null,null,null,null,null,null,null,null,null,null,null,null,null,null,null,null,null,null,null,null,null,null,null,null,null,null,null,null,null,null,null,null,null,null,null,null,null,null,null,null,null,null,null,null,null,null,null,null,null,20,null,null,null,"有効"]
[null,null,21,null,null,null,"有効",null,null,null,null,null,null,null,null,null,null,null,null,null,null,null,null,null,null,null,null,null,null,null,null,null,null,null,null,null,null,null,null,null,null,null,null,null,null,null,null,null,null,null,null,null,null,null,null,null,null,null,null,null,null,null,21,null,null,null,"有効"]
[null,null,22,null,null,null,"有効",null,null,null,null,null,null,null,null,null,null,null,null,null,null,null,null,null,null,null,null,null,null,null,null,null,null,null,null,null,null,null,null,null,null,null,null,null,null,null,null,null,null,null,null,null,null,null,null,null,null,null,null,null,null,null,22,null,null,null,"有効"]
[null,null,23,null,null,null,"有効",null,null,null,null,null,null,null,null,null,null,null,null,null,null,null,null,null,null,null,null,null,null,null,null,null,null,null,null,null,null,null,null,null,null,null,null,null,null,null,null,null,null,null,null,null,null,null,null,null,null,null,null,null,null,null,23,null,null,null,"有効"]
[null,null,24,null,null,null,"有効",null,null,null,null,null,null,null,null,null,null,null,null,null,null,null,null,null,null,null,null,null,null,null,null,null,null,null,null,null,null,null,null,null,null,null,null,null,null,null,null,null,null,null,null,null,null,null,null,null,null,null,null,null,null,null,24,null,null,null,"有効"]
[null,null,25,null,null,null,"有効",null,null,null,null,null,null,null,null,null,null,null,null,null,null,null,null,null,null,null,null,null,null,null,null,null,null,null,null,null,null,null,null,null,null,null,null,null,null,null,null,null,null,null,null,null,null,null,null,null,null,null,null,null,null,null,25,null,null,null,"有効"]
[null,null,26,null,null,null,"有効",null,null,null,null,null,null,null,null,null,null,null,null,null,null,null,null,null,null,null,null,null,null,null,null,null,null,null,null,null,null,null,null,null,null,null,null,null,null,null,null,null,null,null,null,null,null,null,null,null,null,null,null,null,null,null,26,null,null,null,"有効"]
[null,null,27,null,null,null,"有効",null,null,null,null,null,null,null,null,null,null,null,null,null,null,null,null,null,null,null,null,null,null,null,null,null,null,null,null,null,null,null,null,null,null,null,null,null,null,null,null,null,null,null,null,null,null,null,null,null,null,null,null,null,null,null,27,null,null,null,"有効"]
[null,null,28,null,null,null,"有効",null,null,null,null,null,null,null,null,null,null,null,null,null,null,null,null,null,null,null,null,null,null,null,null,null,null,null,null,null,null,null,null,null,null,null,null,null,null,null,null,null,null,null,null,null,null,null,null,null,null,null,null,null,null,null,28,null,null,null,"有効"]
[null,null,29,null,null,null,"有効",null,null,null,null,null,null,null,null,null,null,null,null,null,null,null,null,null,null,null,null,null,null,null,null,null,null,null,null,null,null,null,null,null,null,null,null,null,null,null,null,null,null,null,null,null,null,null,null,null,null,null,null,null,null,null,29,null,null,null,"有効"]
[null,null,30,null,null,null,"有効",null,null,null,null,null,null,null,null,null,null,null,null,null,null,null,null,null,null,null,null,null,null,null,null,null,null,null,null,null,null,null,null,null,null,null,null,null,null,null,null,null,null,null,null,null,null,null,null,null,null,null,null,null,null,null,30,null,null,null,"有効"]
[null,null,31,null,null,null,"有効",null,null,null,null,null,null,null,null,null,null,null,null,null,null,null,null,null,null,null,null,null,null,null,null,null,null,null,null,null,null,null,null,null,null,null,null,null,null,null,null,null,null,null,null,null,null,null,null,null,null,null,null,null,null,null,31,null,null,null,"有効"]
[null,null,32,null,null,null,"有効",null,null,null,null,null,null,null,null,null,null,null,null,null,null,null,null,null,null,null,null,null,null,null,null,null,null,null,null,null,null,null,null,null,null,null,null,null,null,null,null,null,null,null,null,null,null,null,null,null,null,null,null,null,null,null,32,null,null,null,"有効"]
[null,null,33,null,null,null,"有効",null,null,null,null,null,null,null,null,null,null,null,null,null,null,null,null,null,null,null,null,null,null,null,null,null,null,null,null,null,null,null,null,null,null,null,null,null,null,null,null,null,null,null,null,null,null,null,null,null,null,null,null,null,null,null,33,null,null,null,"有効"]
[null,null,34,null,null,null,"有効",null,null,null,null,null,null,null,null,null,null,null,null,null,null,null,null,null,null,null,null,null,null,null,null,null,null,null,null,null,null,null,null,null,null,null,null,null,null,null,null,null,null,null,null,null,null,null,null,null,null,null,null,null,null,null,34,null,null,null,"有効"]
[null,null,35,null,null,null,"有効",null,null,null,null,null,null,null,null,null,null,null,null,null,null,null,null,null,null,null,null,null,null,null,null,null,null,null,null,null,null,null,null,null,null,null,null,null,null,null,null,null,null,null,null,null,null,null,null,null,null,null,null,null,null,null,35,null,null,null,"有効"]
[null,null,36,null,null,null,"有効",null,null,null,null,null,null,null,null,null,null,null,null,null,null,null,null,null,null,null,null,null,null,null,null,null,null,null,null,null,null,null,null,null,null,null,null,null,null,null,null,null,null,null,null,null,null,null,null,null,null,null,null,null,null,null,36,null,null,null,"有効"]
[null,null,37,null,null,null,"有効",null,null,null,null,null,null,null,null,null,null,null,null,null,null,null,null,null,null,null,null,null,null,null,null,null,null,null,null,null,null,null,null,null,null,null,null,null,null,null,null,null,null,null,null,null,null,null,null,null,null,null,null,null,null,null,37,null,null,null,"有効"]
[null,null,38,null,null,null,"有効",null,null,null,null,null,null,null,null,null,null,null,null,null,null,null,null,null,null,null,null,null,null,null,null,null,null,null,null,null,null,null,null,null,null,null,null,null,null,null,null,null,null,null,null,null,null,null,null,null,null,null,null,null,null,null,38,null,null,null,"有効"]
[null,null,39,null,null,null,"有効",null,null,null,null,null,null,null,null,null,null,null,null,null,null,null,null,null,null,null,null,null,null,null,null,null,null,null,null,null,null,null,null,null,null,null,null,null,null,null,null,null,null,null,null,null,null,null,null,null,null,null,null,null,null,null,39,null,null,null,"有効"]
[null,null,40,null,null,null,"有効",null,null,null,null,null,null,null,null,null,null,null,null,null,null,null,null,null,null,null,null,null,null,null,null,null,null,null,null,null,null,null,null,null,null,null,null,null,null,null,null,null,null,null,null,null,null,null,null,null,null,null,null,null,null,null,40,null,null,null,"有効"]
[null,null,41,null,null,null,"有効",null,null,null,null,null,null,null,null,null,null,null,null,null,null,null,null,null,null,null,null,null,null,null,null,null,null,null,null,null,null,null,null,null,null,null,null,null,null,null,null,null,null,null,null,null,null,null,null,null,null,null,null,null,null,null,41,null,null,null,"有効"]
[null,null,42,null,null,null,"有効",null,null,null,null,null,null,null,null,null,null,null,null,null,null,null,null,null,null,null,null,null,null,null,null,null,null,null,null,null,null,null,null,null,null,null,null,null,null,null,null,null,null,null,null,null,null,null,null,null,null,null,null,null,null,null,42,null,null,null,"有効"]
[null,null,43,null,null,null,"有効",null,null,null,null,null,null,null,null,null,null,null,null,null,null,null,null,null,null,null,null,null,null,null,null,null,null,null,null,null,null,null,null,null,null,null,null,null,null,null,null,null,null,null,null,null,null,null,null,null,null,null,null,null,null,null,43,null,null,null,"有効"]
[null,null,44,null,null,null,"有効",null,null,null,null,null,null,null,null,null,null,null,null,null,null,null,null,null,null,null,null,null,null,null,null,null,null,null,null,null,null,null,null,null,null,null,null,null,null,null,null,null,null,null,null,null,null,null,null,null,null,null,null,null,null,null,44,null,null,null,"有効"]
[null,null,45,null,null,null,"有効",null,null,null,null,null,null,null,null,null,null,null,null,null,null,null,null,null,null,null,null,null,null,null,null,null,null,null,null,null,null,null,null,null,null,null,null,null,null,null,null,null,null,null,null,null,null,null,null,null,null,null,null,null,null,null,45,null,null,null,"有効"]
[null,null,46,null,null,null,"有効",null,null,null,null,null,null,null,null,null,null,null,null,null,null,null,null,null,null,null,null,null,null,null,null,null,null,null,null,null,null,null,null,null,null,null,null,null,null,null,null,null,null,null,null,null,null,null,null,null,null,null,null,null,null,null,46,null,null,null,"有効"]
[null,null,47,null,null,null,"有効",null,null,null,null,null,null,null,null,null,null,null,null,null,null,null,null,null,null,null,null,null,null,null,null,null,null,null,null,null,null,null,null,null,null,null,null,null,null,null,null,null,null,null,null,null,null,null,null,null,null,null,null,null,null,null,47,null,null,null,"有効"]
[null,null,48,null,null,null,"有効",null,null,null,null,null,null,null,null,null,null,null,null,null,null,null,null,null,null,null,null,null,null,null,null,null,null,null,null,null,null,null,null,null,null,null,null,null,null,null,null,null,null,null,null,null,null,null,null,null,null,null,null,null,null,null,48,null,null,null,"有効"]
[null,null,"25（SFP)",null,null,null,"None",null,null,null,null,null,null,null,null,null,null,null,null,null,null,null,null,null,null,null,null,null,null,null,null,null,null,null,null,null,null,null,null,null,null,null,null,null,null,null,null,null,null,null,null,null,null,null,null,null,null,null,null,null,null,null,"25（SFP)",null,null,null,"None"]
[null,null,"26（SFP)",null,null,null,"None",null,null,null,null,null,null,null,null,null,null,null,null,null,null,null,null,null,null,null,null,null,null,null,null,null,null,null,null,null,null,null,null,null,null,null,null,null,null,null,null,null,null,null,null,null,null,null,null,null,null,null,null,null,null,null,"26（SFP)",null,null,null,"None"]
[null,null,"27（SFP)",null,null,null,"None",null,null,null,null,null,null,null,null,null,null,null,null,null,null,null,null,null,null,null,null,null,null,null,null,null,null,null,null,null,null,null,null,null,null,null,null,null,null,null,null,null,null,null,null,null,null,null,null,null,null,null,null,null,null,null,"27（SFP)",null,null,null,"None"]
[null,null,"28（SFP)",null,null,null,"None",null,null,null,null,null,null,null,null,null,null,null,null,null,null,null,null,null,null,null,null,null,null,null,null,null,null,null,null,null,null,null,null,null,null,null,null,null,null,null,null,null,null,null,null,null,null,null,null,null,null,null,null,null,null,null,"28（SFP)",null,null,null,"None"]
[null,null,"49（SFP)",null,null,null,"None",null,null,null,null,null,null,null,null,null,null,null,null,null,null,null,null,null,null,null,null,null,null,null,null,null,null,null,null,null,null,null,null,null,null,null,null,null,null,null,null,null,null,null,null,null,null,null,null,null,null,null,null,null,null,null,"49（SFP)",null,null,null,"None"]
[null,null,"50（SFP)",null,null,null,"None",null,null,null,null,null,null,null,null,null,null,null,null,null,null,null,null,null,null,null,null,null,null,null,null,null,null,null,null,null,null,null,null,null,null,null,null,null,null,null,null,null,null,null,null,null,null,null,null,null,null,null,null,null,null,null,"50（SFP)",null,null,null,"None"]
[null,null,"51（SFP)",null,null,null,"None",null,null,null,null,null,null,null,null,null,null,null,null,null,null,null,null,null,null,null,null,null,null,null,null,null,null,null,null,null,null,null,null,null,null,null,null,null,null,null,null,null,null,null,null,null,null,null,null,null,null,null,null,null,null,null,"51（SFP)",null,null,null,"None"]
[null,null,"52（SFP)",null,null,null,"None",null,null,null,null,null,null,null,null,null,null,null,null,null,null,null,null,null,null,null,null,null,null,null,null,null,null,null,null,null,null,null,null,null,null,null,null,null,null,null,null,null,null,null,null,null,null,null,null,null,null,null,null,null,null,null,"52（SFP)",null,null,null,"None"]
[]
[null,null,"VLAN設定",null,null,null,null,null,null,null,null,null,null,null,null,null,"Aceess Policy を指定する場合はRadius Server(お客様用意の外部サーバ)の情報が必要です。",null,null,null,null,null,null,null,null,null,null,null,null,null,null,null,null,null,null,null,null,null,null,null,null,null,null,null,null,null,null,null,null,null,null,null,null,null,null,null,null,null,null,null,null,null,"VLAN設定",null,null,null,null,null,null,null,null,null,null,null,null,null,"Aceess Policy を指定する場合はRadius Serverの情報が必要です。"]
[null,null,null,null,null,null,null,null,null,null,null,null,null,null,null,null,"Radius Sever 欄には番号を指定し、最下部欄の対応する番号にServer 情報を記載してください\nスイッチと上流の機器を接続するポート（uplink)には補足説明欄1に\"UPLINK”と記載してください。",null,null,null,null,null,null,null,null,null,null,null,null,null,null,null,null,null,null,null,null,null,null,null,null,null,null,null,null,null,null,null,null,null,null,null,null,null,null,null,null,null,null,null,null,null,null,null,null,null,null,null,null,null,null,null,null,null,null,null,"Radius Sever 欄には番号を指定し、最下部欄の対応する番号にServer 情報を記載してください\nスイッチと上流の機器を接続するポート（uplink)には補足説明欄1に\"UPLINK”と記載してください。"]
[null,null,"ポート",null,null,null,"Type",null,null,null,null,"Native VLAN",null,null,null,null,null,"VLAN or Allowed VLAN",null,null,null,null,null,null,null,null,null,null,null,null,null,null,null,null,null,"Access Policy type",null,null,"AccessPolicy No",null,null,"補足説明欄１",null,null,null,null,null,null,null,null,null,null,null,null,null,null,null,null,null,null,null,null,"ポート",null,null,null,"Type",null,null,null,null,"Native VLAN",null,null,null,null,null,"VLAN or Allowed VLAN",null,null,null,null,null,null,null,null,null,null,null,null,null,null,null,null,null,"Access Policy type",null,null,"AccessPolicy No",null,null,"補足説明欄１"]
[null,null,"例　1",null,null,null,"Access",null,null,null,null,null,null,null,null,null,null,10,null,null,null,null,null,null,null,null,null,null,null,null,null,null,null,null,null,"Open",null,null,null,null,null,null,null,null,null,null,null,null,null,null,null,null,null,null,null,null,null,null,null,null,null,null,"例　1",null,null,null,"Access",null,null,null,null,null,null,null,null,null,null,10,null,null,null,null,null,null,null,null,null,null,null,null,null,null,null,null,null,"Open"]
[null,null,1,null,null,null,null,null,null,null,null,null,null,null,null,null,null,null,null,null,null,null,null,null,null,null,null,null,null,null,null,null,null,null,null,null,null,null,null,null,null,null,null,null,null,null,null,null,null,null,null,null,null,null,null,null,null,null,null,null,null,null,1,null,null,null,"Access",null,null,null,null,null,null,null,null,null,null,20,null,null,null,null,null,null,null,null,null,null,null,null,null,null,null,null,null,"802.1x(外部認証サーバ)",null,null,1]
[null,null,2,null,null,null,null,null,null,null,null,null,null,null,null,null,null,null,null,null,null,null,null,null,null,null,null,null,null,null,null,null,null,null,null,null,null,null,null,null,null,null,null,null,null,null,null,null,null,null,null,null,null,null,null,null,null,null,null,null,null,null,2,null,null,null,"Access",null,null,null,null,null,null,null,null,null,null,30,null,null,null,null,null,null,null,null,null,null,null,null,null,null,null,null,null,"MAB(外部認証サーバ)",null,null,2]
[null,null,3,null,null,null,null,null,null,null,null,null,null,null,null,null,null,null,null,null,null,null,null,null,null,null,null,null,null,null,null,null,null,null,null,null,null,null,null,null,null,null,null,null,null,null,null,null,null,null,null,null,null,null,null,null,null,null,null,null,null,null,3,null,null,null,"Access",null,null,null,null,null,null,null,null,null,null,20,null,null,null,null,null,null,null,null,null,null,null,null,null,null,null,null,null,"802.1x(外部認証サーバ)",null,null,1]
[null,null,4,null,null,null,null,null,null,null,null,null,null,null,null,null,null,null,null,null,null,null,null,null,null,null,null,null,null,null,null,null,null,null,null,null,null,null,null,null,null,null,null,null,null,null,null,null,null,null,null,null,null,null,null,null,null,null,null,null,null,null,4,null,null,null,"Access",null,null,null,null,null,null,null,null,null,null,40,null,null,null,null,null,null,null,null,null,null,null,null,null,null,null,null,null,"Hybrid(外部認証サーバ)",null,null,3]
[null,null,5,null,null,null,null,null,null,null,null,null,null,null,null,null,null,null,null,null,null,null,null,null,null,null,null,null,null,null,null,null,null,null,null,null,null,null,null,null,null,null,null,null,null,null,null,null,null,null,null,null,null,null,null,null,null,null,null,null,null,null,5]
[null,null,6,null,null,null,null,null,null,null,null,null,null,null,null,null,null,null,null,null,null,null,null,null,null,null,null,null,null,null,null,null,null,null,null,null,null,null,null,null,null,null,null,null,null,null,null,null,null,null,null,null,null,null,null,null,null,null,null,null,null,null,6]
[null,null,7,null,null,null,null,null,null,null,null,null,null,null,null,null,null,null,null,null,null,null,null,null,null,null,null,null,null,null,null,null,null,null,null,null,null,null,null,null,null,null,null,null,null,null,null,null,null,null,null,null,null,null,null,null,null,null,null,null,null,null,7]
[null,null,8,null,null,null,null,null,null,null,null,null,null,null,null,null,null,null,null,null,null,null,null,null,null,null,null,null,null,null,null,null,null,null,null,null,null,null,null,null,null,null,null,null,null,null,null,null,null,null,null,null,null,null,null,null,null,null,null,null,null,null,8]
[null,null,"9（SFP)",null,null,null,"None",null,null,null,null,null,null,null,null,null,null,null,null,null,null,null,null,null,null,null,null,null,null,null,null,null,null,null,null,null,null,null,null,null,null,null,null,null,null,null,null,null,null,null,null,null,null,null,null,null,null,null,null,null,null,null,"9（SFP)",null,null,null,"None"]
[null,null,"10（SFP)",null,null,null,"None",null,null,null,null,null,null,null,null,null,null,null,null,null,null,null,null,null,null,null,null,null,null,null,null,null,null,null,null,null,null,null,null,null,null,null,null,null,null,null,null,null,null,null,null,null,null,null,null,null,null,null,null,null,null,null,"10（SFP)",null,null,null,"None"]
[null,null,9,null,null,null,null,null,null,null,null,null,null,null,null,null,null,null,null,null,null,null,null,null,null,null,null,null,null,null,null,null,null,null,null,null,null,null,null,null,null,null,null,null,null,null,null,null,null,null,null,null,null,null,null,null,null,null,null,null,null,null,9]
[null,null,10,null,null,null,null,null,null,null,null,null,null,null,null,null,null,null,null,null,null,null,null,null,null,null,null,null,null,null,null,null,null,null,null,null,null,null,null,null,null,null,null,null,null,null,null,null,null,null,null,null,null,null,null,null,null,null,null,null,null,null,10]
[null,null,11,null,null,null,null,null,null,null,null,null,null,null,null,null,null,null,null,null,null,null,null,null,null,null,null,null,null,null,null,null,null,null,null,null,null,null,null,null,null,null,null,null,null,null,null,null,null,null,null,null,null,null,null,null,null,null,null,null,null,null,11]
[null,null,12,null,null,null,null,null,null,null,null,null,null,null,null,null,null,null,null,null,null,null,null,null,null,null,null,null,null,null,null,null,null,null,null,null,null,null,null,null,null,null,null,null,null,null,null,null,null,null,null,null,null,null,null,null,null,null,null,null,null,null,12]
[null,null,13,null,null,null,null,null,null,null,null,null,null,null,null,null,null,null,null,null,null,null,null,null,null,null,null,null,null,null,null,null,null,null,null,null,null,null,null,null,null,null,null,null,null,null,null,null,null,null,null,null,null,null,null,null,null,null,null,null,null,null,13]
[null,null,14,null,null,null,null,null,null,null,null,null,null,null,null,null,null,null,null,null,null,null,null,null,null,null,null,null,null,null,null,null,null,null,null,null,null,null,null,null,null,null,null,null,null,null,null,null,null,null,null,null,null,null,null,null,null,null,null,null,null,null,14]
[null,null,15,null,null,null,null,null,null,null,null,null,null,null,null,null,null,null,null,null,null,null,null,null,null,null,null,null,null,null,null,null,null,null,null,null,null,null,null,null,null,null,null,null,null,null,null,null,null,null,null,null,null,null,null,null,null,null,null,null,null,null,15]
[null,null,16,null,null,null,null,null,null,null,null,null,null,null,null,null,null,null,null,null,null,null,null,null,null,null,null,null,null,null,null,null,null,null,null,null,null,null,null,null,null,null,null,null,null,null,null,null,null,null,null,null,null,null,null,null,null,null,null,null,null,null,16]
[null,null,17,null,null,null,null,null,null,null,null,null,null,null,null,null,null,null,null,null,null,null,null,null,null,null,null,null,null,null,null,null,null,null,null,null,null,null,null,null,null,null,null,null,null,null,null,null,null,null,null,null,null,null,null,null,null,null,null,null,null,null,17]
[null,null,18,null,null,null,null,null,null,null,null,null,null,null,null,null,null,null,null,null,null,null,null,null,null,null,null,null,null,null,null,null,null,null,null,null,null,null,null,null,null,null,null,null,null,null,null,null,null,null,null,null,null,null,null,null,null,null,null,null,null,null,18]
[null,null,19,null,null,null,null,null,null,null,null,null,null,null,null,null,null,null,null,null,null,null,null,null,null,null,null,null,null,null,null,null,null,null,null,null,null,null,null,null,null,null,null,null,null,null,null,null,null,null,null,null,null,null,null,null,null,null,null,null,null,null,19]
[null,null,20,null,null,null,null,null,null,null,null,null,null,null,null,null,null,null,null,null,null,null,null,null,null,null,null,null,null,null,null,null,null,null,null,null,null,null,null,null,null,null,null,null,null,null,null,null,null,null,null,null,null,null,null,null,null,null,null,null,null,null,20]
[null,null,21,null,null,null,null,null,null,null,null,null,null,null,null,null,null,null,null,null,null,null,null,null,null,null,null,null,null,null,null,null,null,null,null,null,null,null,null,null,null,null,null,null,null,null,null,null,null,null,null,null,null,null,null,null,null,null,null,null,null,null,21]
[null,null,22,null,null,null,null,null,null,null,null,null,null,null,null,null,null,null,null,null,null,null,null,null,null,null,null,null,null,null,null,null,null,null,null,null,null,null,null,null,null,null,null,null,null,null,null,null,null,null,null,null,null,null,null,null,null,null,null,null,null,null,22]
[null,null,23,null,null,null,null,null,null,null,null,null,null,null,null,null,null,null,null,null,null,null,null,null,null,null,null,null,null,null,null,null,null,null,null,null,null,null,null,null,null,null,null,null,null,null,null,null,null,null,null,null,null,null,null,null,null,null,null,null,null,null,23]
[null,null,24,null,null,null,null,null,null,null,null,null,null,null,null,null,null,null,null,null,null,null,null,null,null,null,null,null,null,null,null,null,null,null,null,null,null,null,null,null,null,null,null,null,null,null,null,null,null,null,null,null,null,null,null,null,null,null,null,null,null,null,24]
[null,null,25,null,null,null,null,null,null,null,null,null,null,null,null,null,null,null,null,null,null,null,null,null,null,null,null,null,null,null,null,null,null,null,null,null,null,null,null,null,null,null,null,null,null,null,null,null,null,null,null,null,null,null,null,null,null,null,null,null,null,null,25]
[null,null,26,null,null,null,null,null,null,null,null,null,null,null,null,null,null,null,null,null,null,null,null,null,null,null,null,null,null,null,null,null,null,null,null,null,null,null,null,null,null,null,null,null,null,null,null,null,null,null,null,null,null,null,null,null,null,null,null,null,null,null,26]
[null,null,27,null,null,null,null,null,null,null,null,null,null,null,null,null,null,null,null,null,null,null,null,null,null,null,null,null,null,null,null,null,null,null,null,null,null,null,null,null,null,null,null,null,null,null,null,null,null,null,null,null,null,null,null,null,null,null,null,null,null,null,27]
[null,null,28,null,null,null,null,null,null,null,null,null,null,null,null,null,null,null,null,null,null,null,null,null,null,null,null,null,null,null,null,null,null,null,null,null,null,null,null,null,null,null,null,null,null,null,null,null,null,null,null,null,null,null,null,null,null,null,null,null,null,null,28]
[null,null,29,null,null,null,null,null,null,null,null,null,null,null,null,null,null,null,null,null,null,null,null,null,null,null,null,null,null,null,null,null,null,null,null,null,null,null,null,null,null,null,null,null,null,null,null,null,null,null,null,null,null,null,null,null,null,null,null,null,null,null,29]
[null,null,30,null,null,null,null,null,null,null,null,null,null,null,null,null,null,null,null,null,null,null,null,null,null,null,null,null,null,null,null,null,null,null,null,null,null,null,null,null,null,null,null,null,null,null,null,null,null,null,null,null,null,null,null,null,null,null,null,null,null,null,30]
[null,null,31,null,null,null,null,null,null,null,null,null,null,null,null,null,null,null,null,null,null,null,null,null,null,null,null,null,null,null,null,null,null,null,null,null,null,null,null,null,null,null,null,null,null,null,null,null,null,null,null,null,null,null,null,null,null,null,null,null,null,null,31]
[null,null,32,null,null,null,null,null,null,null,null,null,null,null,null,null,null,null,null,null,null,null,null,null,null,null,null,null,null,null,null,null,null,null,null,null,null,null,null,null,null,null,null,null,null,null,null,null,null,null,null,null,null,null,null,null,null,null,null,null,null,null,32]
[null,null,33,null,null,null,null,null,null,null,null,null,null,null,null,null,null,null,null,null,null,null,null,null,null,null,null,null,null,null,null,null,null,null,null,null,null,null,null,null,null,null,null,null,null,null,null,null,null,null,null,null,null,null,null,null,null,null,null,null,null,null,33]
[null,null,34,null,null,null,null,null,null,null,null,null,null,null,null,null,null,null,null,null,null,null,null,null,null,null,null,null,null,null,null,null,null,null,null,null,null,null,null,null,null,null,null,null,null,null,null,null,null,null,null,null,null,null,null,null,null,null,null,null,null,null,34]
[null,null,35,null,null,null,null,null,null,null,null,null,null,null,null,null,null,null,null,null,null,null,null,null,null,null,null,null,null,null,null,null,null,null,null,null,null,null,null,null,null,null,null,null,null,null,null,null,null,null,null,null,null,null,null,null,null,null,null,null,null,null,35]
[null,null,36,null,null,null,null,null,null,null,null,null,null,null,null,null,null,null,null,null,null,null,null,null,null,null,null,null,null,null,null,null,null,null,null,null,null,null,null,null,null,null,null,null,null,null,null,null,null,null,null,null,null,null,null,null,null,null,null,null,null,null,36]
[null,null,37,null,null,null,null,null,null,null,null,null,null,null,null,null,null,null,null,null,null,null,null,null,null,null,null,null,null,null,null,null,null,null,null,null,null,null,null,null,null,null,null,null,null,null,null,null,null,null,null,null,null,null,null,null,null,null,null,null,null,null,37]
[null,null,38,null,null,null,null,null,null,null,null,null,null,null,null,null,null,null,null,null,null,null,null,null,null,null,null,null,null,null,null,null,null,null,null,null,null,null,null,null,null,null,null,null,null,null,null,null,null,null,null,null,null,null,null,null,null,null,null,null,null,null,38]
[null,null,39,null,null,null,null,null,null,null,null,null,null,null,null,null,null,null,null,null,null,null,null,null,null,null,null,null,null,null,null,null,null,null,null,null,null,null,null,null,null,null,null,null,null,null,null,null,null,null,null,null,null,null,null,null,null,null,null,null,null,null,39]
[null,null,40,null,null,null,null,null,null,null,null,null,null,null,null,null,null,null,null,null,null,null,null,null,null,null,null,null,null,null,null,null,null,null,null,null,null,null,null,null,null,null,null,null,null,null,null,null,null,null,null,null,null,null,null,null,null,null,null,null,null,null,40]
[null,null,41,null,null,null,null,null,null,null,null,null,null,null,null,null,null,null,null,null,null,null,null,null,null,null,null,null,null,null,null,null,null,null,null,null,null,null,null,null,null,null,null,null,null,null,null,null,null,null,null,null,null,null,null,null,null,null,null,null,null,null,41]
[null,null,42,null,null,null,null,null,null,null,null,null,null,null,null,null,null,null,null,null,null,null,null,null,null,null,null,null,null,null,null,null,null,null,null,null,null,null,null,null,null,null,null,null,null,null,null,null,null,null,null,null,null,null,null,null,null,null,null,null,null,null,42]
[null,null,43,null,null,null,null,null,null,null,null,null,null,null,null,null,null,null,null,null,null,null,null,null,null,null,null,null,null,null,null,null,null,null,null,null,null,null,null,null,null,null,null,null,null,null,null,null,null,null,null,null,null,null,null,null,null,null,null,null,null,null,43]
[null,null,44,null,null,null,null,null,null,null,null,null,null,null,null,null,null,null,null,null,null,null,null,null,null,null,null,null,null,null,null,null,null,null,null,null,null,null,null,null,null,null,null,null,null,null,null,null,null,null,null,null,null,null,null,null,null,null,null,null,null,null,44]
[null,null,45,null,null,null,null,null,null,null,null,null,null,null,null,null,null,null,null,null,null,null,null,null,null,null,null,null,null,null,null,null,null,null,null,null,null,null,null,null,null,null,null,null,null,null,null,null,null,null,null,null,null,null,null,null,null,null,null,null,null,null,45]
[null,null,46,null,null,null,null,null,null,null,null,null,null,null,null,null,null,null,null,null,null,null,null,null,null,null,null,null,null,null,null,null,null,null,null,null,null,null,null,null,null,null,null,null,null,null,null,null,null,null,null,null,null,null,null,null,null,null,null,null,null,null,46]
[null,null,47,null,null,null,null,null,null,null,null,null,null,null,null,null,null,null,null,null,null,null,null,null,null,null,null,null,null,null,null,null,null,null,null,null,null,null,null,null,null,null,null,null,null,null,null,null,null,null,null,null,null,null,null,null,null,null,null,null,null,null,47]
[null,null,48,null,null,null,null,null,null,null,null,null,null,null,null,null,null,null,null,null,null,null,null,null,null,null,null,null,null,null,null,null,null,null,null,null,null,null,null,null,null,null,null,null,null,null,null,null,null,null,null,null,null,null,null,null,null,null,null,null,null,null,48]
[null,null,"25（SFP)",null,null,null,"None",null,null,null,null,null,null,null,null,null,null,null,null,null,null,null,null,null,null,null,null,null,null,null,null,null,null,null,null,null,null,null,null,null,null,null,null,null,null,null,null,null,null,null,null,null,null,null,null,null,null,null,null,null,null,null,"25（SFP)",null,null,null,"None"]
[null,null,"26（SFP)",null,null,null,"None",null,null,null,null,null,null,null,null,null,null,null,null,null,null,null,null,null,null,null,null,null,null,null,null,null,null,null,null,null,null,null,null,null,null,null,null,null,null,null,null,null,null,null,null,null,null,null,null,null,null,null,null,null,null,null,"26（SFP)",null,null,null,"None"]
[null,null,"27（SFP)",null,null,null,"None",null,null,null,null,null,null,null,null,null,null,null,null,null,null,null,null,null,null,null,null,null,null,null,null,null,null,null,null,null,null,null,null,null,null,null,null,null,null,null,null,null,null,null,null,null,null,null,null,null,null,null,null,null,null,null,"27（SFP)",null,null,null,"None"]
[null,null,"28（SFP)",null,null,null,"None",null,null,null,null,null,null,null,null,null,null,null,null,null,null,null,null,null,null,null,null,null,null,null,null,null,null,null,null,null,null,null,null,null,null,null,null,null,null,null,null,null,null,null,null,null,null,null,null,null,null,null,null,null,null,null,"28（SFP)",null,null,null,"None"]
[null,null,"49（SFP)",null,null,null,"None",null,null,null,null,null,null,null,null,null,null,null,null,null,null,null,null,null,null,null,null,null,null,null,null,null,null,null,null,null,null,null,null,null,null,null,null,null,null,null,null,null,null,null,null,null,null,null,null,null,null,null,null,null,null,null,"49（SFP)",null,null,null,"None"]
[null,null,"50（SFP)",null,null,null,"None",null,null,null,null,null,null,null,null,null,null,null,null,null,null,null,null,null,null,null,null,null,null,null,null,null,null,null,null,null,null,null,null,null,null,null,null,null,null,null,null,null,null,null,null,null,null,null,null,null,null,null,null,null,null,null,"50（SFP)",null,null,null,"None"]
[null,null,"51（SFP)",null,null,null,"None",null,null,null,null,null,null,null,null,null,null,null,null,null,null,null,null,null,null,null,null,null,null,null,null,null,null,null,null,null,null,null,null,null,null,null,null,null,null,null,null,null,null,null,null,null,null,null,null,null,null,null,null,null,null,null,"51（SFP)",null,null,null,"None"]
[null,null,"52（SFP)",null,null,null,"None",null,null,null,null,null,null,null,null,null,null,null,null,null,null,null,null,null,null,null,null,null,null,null,null,null,null,null,null,null,null,null,null,null,null,null,null,null,null,null,null,null,null,null,null,null,null,null,null,null,null,null,null,null,null,null,"52（SFP)",null,null,null,"None"]
[]
[null,null,"◆Aceess Policy typeについて\n　「802.1x(外部サーバ認証) ：ユーザ名とパスワードを用いた認証方法\n　「MAB(外部サーバ認証       : ネットワーク機器に割り当てられたMACアドレスを利用した認証方法\n　「Hybrid(外部サーバ認証)  ： 802.1xによる認証が失敗した場合、MABによる認証を行う方法\n\n上記でAccessPolicyを有効にした場合、RadiusServerの情報を以下に記載\n ※1つのポリシーで複数台のRadiusサーバを設定する場合、1つのセル内に改行して記載願います。なお、認証ホストモードと認証方向は同一になります。",null,null,null,null,null,null,null,null,null,null,null,null,null,null,null,null,null,null,null,null,null,null,null,null,null,null,null,null,null,null,null,null,null,null,null,null,null,null,null,null,null,null,null,null,null,null,null,null,null,null,null,null,null,null,null,null,null,null,null,"◆Aceess Policy typeについて\n　「802.1x(外部サーバ認証) ：ユーザ名とパスワードを用いた認証方法\n　「MAB(外部サーバ認証       : ネットワーク機器に割り当てられたMACアドレスを利用した認証方法\n　「Hybrid(外部サーバ認証)  ： 802.1xによる認証が失敗した場合、MABによる認証を行う方法\n\n上記でAccessPolicyを有効にした場合、RadiusServerの情報を以下に記載\n ※1つのポリシーで複数台のRadiusサーバを設定する場合、1つのセル内に改行して記載願います。なお、認証ホストモードと認証方向は同一になります。"]
[]
[null,null,"Access Policy No",null,null,null,null,null,"Radiusサーバ IPアドレス",null,null,null,null,null,null,null,null,null,null,"Port",null,null,null,null,null,null,null,null,null,null,"Secret key",null,null,null,null,null,"認証ホストモード",null,"認証方向",null,null,"補足説明欄2",null,null,null,null,null,null,null,null,null,null,null,null,null,null,null,null,null,null,null,null,"Access Policy No",null,null,null,null,null,"Radiusサーバ IPアドレス",null,null,null,null,null,null,null,null,null,null,"Port",null,null,null,null,null,null,null,null,null,null,"Secret key",null,null,null,null,null,"認証ホストモード",null,"認証方向",null,null,"補足説明欄2"]
[null,null,"Access Policy #1",null,null,null,null,null,null,null,null,null,null,null,null,null,null,null,null,null,null,null,null,null,null,null,null,null,null,null,null,null,null,null,null,null,"シングル",null,"双方向",null,null,null,null,null,null,null,null,null,null,null,null,null,null,null,null,null,null,null,null,null,null,null,"Access Policy #1",null,null,null,null,null,"192.168.110.110",null,null,null,null,null,null,null,null,null,null,1812,null,null,null,null,null,null,null,null,null,null,"secretkey",null,null,null,null,null,"シングル",null,"双方向"]
[null,null,"Access Policy #2",null,null,null,null,null,null,null,null,null,null,null,null,null,null,null,null,null,null,null,null,null,null,null,null,null,null,null,null,null,null,null,null,null,"シングル",null,"双方向",null,null,null,null,null,null,null,null,null,null,null,null,null,null,null,null,null,null,null,null,null,null,null,"Access Policy #2",null,null,null,null,null,"192.168.110.110",null,null,null,null,null,null,null,null,null,null,1812,null,null,null,null,null,null,null,null,null,null,"secretkey",null,null,null,null,null,"シングル",null,"双方向"]
[null,null,"Access Policy #3",null,null,null,null,null,null,null,null,null,null,null,null,null,null,null,null,null,null,null,null,null,null,null,null,null,null,null,null,null,null,null,null,null,"シングル",null,"双方向",null,null,null,null,null,null,null,null,null,null,null,null,null,null,null,null,null,null,null,null,null,null,null,"Access Policy #3",null,null,null,null,null,"192.168.110.110",null,null,null,null,null,null,null,null,null,null,1812,null,null,null,null,null,null,null,null,null,null,"secretkey",null,null,null,null,null,"シングル",null,"双方向"]
[null,null,"Access Policy #4",null,null,null,null,null,null,null,null,null,null,null,null,null,null,null,null,null,null,null,null,null,null,null,null,null,null,null,null,null,null,null,null,null,"シングル",null,"双方向",null,null,null,null,null,null,null,null,null,null,null,null,null,null,null,null,null,null,null,null,null,null,null,"Access Policy #4",null,null,null,null,null,"192.168.110.110\n192.168.110.111",null,null,null,null,null,null,null,null,null,null,"1812\n1812",null,null,null,null,null,null,null,null,null,null,"secretkey\nsecretkey",null,null,null,null,null,"シングル",null,"双方向"]
[null,null,"Access Policy #5",null,null,null,null,null,null,null,null,null,null,null,null,null,null,null,null,null,null,null,null,null,null,null,null,null,null,null,null,null,null,null,null,null,"シングル",null,"双方向",null,null,null,null,null,null,null,null,null,null,null,null,null,null,null,null,null,null,null,null,null,null,null,"Access Policy #5",null,null,null,null,null,null,null,null,null,null,null,null,null,null,null,null,null,null,null,null,null,null,null,null,null,null,null,null,null,null,null,null,null,"シングル",null,"双方向"]
[]
[null,null,"◆認証ホストモードについて\n　「シングル」：アクセスポリシーが適用されたポートに端末が接続された時、1台目のみ許可し、2台目以降ブロックする場合\n　「マルチAuth」：ポートにHUBなどが接続されており、複数の端末からの認証を許可する場合\n　「マルチホスト」：1台目(アクセスポイント等のNW機器）が認証されたあと、2台目以降の端末(ポートに接続された機器配下の端末）認証を行わず通過させる場合\n　※デフォルトは「シングル」となっていますので設置する環境に合わせて、ご指定下さい。",null,null,null,null,null,null,null,null,null,null,null,null,null,null,null,null,null,null,null,null,null,null,null,null,null,null,null,null,null,null,null,null,null,null,null,null,null,null,null,null,null,null,null,null,null,null,null,null,null,null,null,null,null,null,null,null,null,null,null,"◆認証ホストモードについて\n　「シングル」：アクセスポリシーが適用されたポートに端末が接続された時、1台目のみ許可し、2台目以降ブロックする場合\n　「マルチAuth」：ポートにHUBなどが接続されており、複数の端末からの認証を許可する場合\n　「マルチホスト」：1台目(アクセスポイント等のNW機器）が認証されたあと、2台目以降の端末(ポートに接続された機器配下の端末）認証を行わず通過させる場合\n　※デフォルトは「シングル」となっていますので設置する環境に合わせて、ご指定下さい。"]
[null,null,"◆認証方向について\n  「双方向」：スイッチのポートに受信するパケット、またはポートから発信するパケットに対して認証を行います\n  「受信方向のみ」：スイッチのポートに受信するパケットに対してのみ認証を行い、発信するパケットに対しては認証を行いません\n ※デフォルトは「双方向」となっていますので設置する環境に合わせて、ご指定下さい。",null,null,null,null,null,null,null,null,null,null,null,null,null,null,null,null,null,null,null,null,null,null,null,null,null,null,null,null,null,null,null,null,null,null,null,null,null,null,null,null,null,null,null,null,null,null,null,null,null,null,null,null,null,null,null,null,null,null,null,"◆認証方向について\n  「双方向」：スイッチのポートに受信するパケット、またはポートから発信するパケットに対して認証を行います\n  「受信方向のみ」：スイッチのポートに受信するパケットに対してのみ認証を行います\n ※デフォルトは「双方向」となっていますので設置する環境に合わせて、ご指定下さい。"]
[]
[]
[]
[]
[null,null,"備考欄"]

{"sheet":"【別紙10】ポートスケジュール","index":14,"n_rows":30,"n_cols":81,"rows_kept":30,"cut":false,"hidden":true,"merged":[[1,1,4,50],[5,42,5,43],[6,2,6,19],[6,20,6,30],[8,2,8,14],[8,55,8,67],[9,3,9,49],[9,56,9,102],[11,2,11,5],[11,6,11,12],[11,13,11,17],[11,18,11,20],[11,21,11,26],[11,27,11,32],[11,55,11,58],[11,59,11,65],[11,66,11,70],[11,71,11,73],[11,74,11,79],[11,80,11,85],[12,2,18,5],[12,6,18,12],[12,13,12,17],[12,18,12,20],[12,21,12,26],[12,27,12,32],[12,80,12,85],[13,13,13,17],[13,18,13,20],[13,21,13,26],[13,27,13,32],[13,35,13,49],[13,66,13,70],[13,71,13,73],[13,74,13,79],[13,80,13,85],[12,35,12,49],[12,55,18,58],[12,59,18,65],[12,66,12,70],[12,71,12,73],[12,74,12,79],[14,71,14,73],[14,74,14,79],[18,74,18,79],[14,80,14,85],[15,13,15,17],[15,18,15,20],[15,21,15,26],[15,27,15,32],[15,35,15,49],[15,66,15,70],[15,71,15,73],[15,74,15,79],[15,80,15,85],[14,13,14,17],[14,18,14,20],[14,21,14,26],[14,27,14,32],[14,35,14,49],[14,66,14,70],[16,80,16,85],[17,13,17,17],[17,18,17,20],[17,21,17,26],[17,27,17,32],[17,66,17,70],[17,71,17,73],[17,74,17,79],[17,80,17,85],[16,13,16,17],[16,18,16,20],[16,21,16,26],[16,27,16,32],[16,66,16,70],[16,71,16,73],[16,74,16,79],[18,80,18,85],[19,2,25,5],[19,6,25,12],[19,13,19,17],[19,18,19,20],[19,21,19,26],[19,27,19,32],[19,55,25,58],[19,59,25,65],[19,66,19,70],[18,13,18,17],[18,18,18,20],[18,21,18,26],[18,27,18,32],[18,66,18,70],[18,71,18,73],[19,71,19,73],[19,74,19,79],[19,80,19,85],[20,13,20,17],[20,18,20,20],[20,21,20,26],[20,27,20,32],[20,66,20,70],[20,71,20,73],[20,74,20,79],[20,80,20,85],[21,13,21,17],[21,18,21,20],[21,21,21,26],[21,27,21,32],[21,66,21,70],[21,71,21,73],[21,74,21,79],[21,80,21,85],[22,74,22,79],[22,80,22,85],[23,13,23,17],[23,18,23,20],[23,21,23,26],[23,27,23,32],[23,66,23,70],[23,71,23,73],[23,74,23,79],[23,80,23,85],[22,13,22,17],[22,18,22,20],[22,21,22,26],[22,27,22,32],[22,66,22,70],[22,71,22,73],[29,2,30,51],[31,2,38,51],[25,71,25,73],[25,74,25,79],[25,80,25,85],[25,86,25,90],[25,91,25,96],[25,97,25,102],[24,74,24,79],[24,80,24,85],[25,13,25,17],[25,18,25,20],[25,21,25,26],[25,27,25,32],[25,33,25,37],[25,38,25,43],[25,44,25,49],[25,66,25,70],[24,13,24,17],[24,18,24,20],[24,21,24,26],[24,27,24,32],[24,66,24,70],[24,71,24,73]]}
[]
[null,"【様式8C】ギガらくスイッチ 詳細設定申込書\n【別紙10】ポートスケジュール設定"]
[]
[]
[]
[]
[null,null,"変更するスイッチのシリアル(S/N)"]
[]
[null,null,"スケジュールのパターン",null,null,null,null,null,null,null,null,null,null,null,null,null,null,null,null,null,null,null,null,null,null,null,null,null,null,null,null,null,null,null,null,null,null,null,null,null,null,null,null,null,null,null,null,null,null,null,null,null,null,null,null,"スケジュールのパターン"]
[null,null,null,"ポートスケジュール機能はUPLINKポート(上位ルータに接続されているポート等インターネット経路）には適用できません。\n\nポートの状態：有効の場合は指定した時間の間、別紙9でスケジュールを適用したポートが有効化します。時間外は無効化します。\n　　　　　　　　 無効の場合、指定時間の間は指定ポートを無効化し、時間外は有効化します。\n\nポートスケジュール機能を使用する場合、別紙９に本頁で設定した”スケジュール名”を適用したいポートの”ポートスケジュール”欄に\n記入願います",null,null,null,null,null,null,null,null,null,null,null,null,null,null,null,null,null,null,null,null,null,null,null,null,null,null,null,null,null,null,null,null,null,null,null,null,null,null,null,null,null,null,null,null,null,null,null,null,null,null,null,null,"ポートスケジュール機能はUPLINKポート(上位ルータに接続されているポート等インターネット経路）には適用できません。\n\nポートの状態：有効の場合は指定した時間の間、別紙9でスケジュールを適用したポートが有効化します。時間外は無効化します。\n　　　　　　　　 無効の場合、指定時間の間は指定ポートを無効化し、時間外は有効化します。\n\nポートスケジュール機能を使用する場合、別紙９に本頁で設定したスケジュール名を適用したいポートの”ポートスケジュール”欄に\n記入願います"]
[]
[null,null,"No",null,null,null,"スケジュール名",null,null,null,null,null,null,"ポートの状態",null,null,null,null,"曜日",null,null,"開始時間",null,null,null,null,null,"終了時間",null,null,null,null,null,null,null,null,null,null,null,null,null,null,null,null,null,null,null,null,null,null,null,null,null,null,null,"No",null,null,null,"スケジュール名",null,null,null,null,null,null,"ポートの状態",null,null,null,null,"曜日",null,null,"開始時間",null,null,null,null,null,"終了時間"]
[null,null,"例　1",null,null,null,"一般",null,null,null,null,null,null,"有効",null,null,null,null,"月",null,null,"09:00:00",null,null,null,null,null,"17:30:00",null,null,null,null,null,null,null,null,null,null,null,null,null,null,null,null,null,null,null,null,null,null,null,null,null,null,null,"例　1",null,null,null,"一般",null,null,null,null,null,null,"有効",null,null,null,null,"月",null,null,"09:00:00",null,null,null,null,null,"17:30:00"]
[null,null,null,null,null,null,null,null,null,null,null,null,null,"有効",null,null,null,null,"火",null,null,"09:00:00",null,null,null,null,null,"17:30:00",null,null,null,null,null,null,null,null,null,null,null,null,null,null,null,null,null,null,null,null,null,null,null,null,null,null,null,null,null,null,null,null,null,null,null,null,null,null,"有効",null,null,null,null,"火",null,null,"09:00:00",null,null,null,null,null,"17:30:00"]
[null,null,null,null,null,null,null,null,null,null,null,null,null,"有効",null,null,null,null,"水",null,null,"09:00:00",null,null,null,null,null,"17:30:00",null,null,null,null,null,null,null,null,null,null,null,null,null,null,null,null,null,null,null,null,null,null,null,null,null,null,null,null,null,null,null,null,null,null,null,null,null,null,"有効",null,null,null,null,"水",null,null,"09:00:00",null,null,null,null,null,"17:30:00"]
[null,null,null,null,null,null,null,null,null,null,null,null,null,"有効",null,null,null,null,"木",null,null,"09:00:00",null,null,null,null,null,"17:30:00",null,null,null,null,null,null,null,null,null,null,null,null,null,null,null,null,null,null,null,null,null,null,null,null,null,null,null,null,null,null,null,null,null,null,null,null,null,null,"有効",null,null,null,null,"木",null,null,"09:00:00",null,null,null,null,null,"17:30:00"]
[null,null,null,null,null,null,null,null,null,null,null,null,null,"有効",null,null,null,null,"金",null,null,"09:00:00",null,null,null,null,null,"17:30:00",null,null,null,null,null,null,null,null,null,null,null,null,null,null,null,null,null,null,null,null,null,null,null,null,null,null,null,null,null,null,null,null,null,null,null,null,null,null,"有効",null,null,null,null,"金",null,null,"09:00:00",null,null,null,null,null,"17:30:00"]
[null,null,null,null,null,null,null,null,null,null,null,null,null,"有効",null,null,null,null,"土",null,null,"09:00:00",null,null,null,null,null,"17:30:00",null,null,null,null,null,null,null,null,null,null,null,null,null,null,null,null,null,null,null,null,null,null,null,null,null,null,null,null,null,null,null,null,null,null,null,null,null,null,"有効",null,null,null,null,"土",null,null,"09:00:00",null,null,null,null,null,"17:30:00"]
[null,null,null,null,null,null,null,null,null,null,null,null,null,"有効",null,null,null,null,"日",null,null,"09:00:00",null,null,null,null,null,"17:30:00",null,null,null,null,null,null,null,null,null,null,null,null,null,null,null,null,null,null,null,null,null,null,null,null,null,null,null,null,null,null,null,null,null,null,null,null,null,null,"有効",null,null,null,null,"日",null,null,"09:00:00",null,null,null,null,null,"17:30:00"]
[null,null,1,null,null,null,null,null,null,null,null,null,null,null,null,null,null,null,"月",null,null,null,null,null,null,null,null,null,null,null,null,null,null,null,null,null,null,null,null,null,null,null,null,null,null,null,null,null,null,null,null,null,null,null,null,1,null,null,null,"weekdays",null,null,null,null,null,null,"有効",null,null,null,null,"月",null,null,"08:30:00",null,null,null,null,null,"18:00:00"]
[null,null,null,null,null,null,null,null,null,null,null,null,null,null,null,null,null,null,"火",null,null,null,null,null,null,null,null,null,null,null,null,null,null,null,null,null,null,null,null,null,null,null,null,null,null,null,null,null,null,null,null,null,null,null,null,null,null,null,null,null,null,null,null,null,null,null,"有効",null,null,null,null,"火",null,null,"08:30:00",null,null,null,null,null,"18:00:00"]
[null,null,null,null,null,null,null,null,null,null,null,null,null,null,null,null,null,null,"水",null,null,null,null,null,null,null,null,null,null,null,null,null,null,null,null,null,null,null,null,null,null,null,null,null,null,null,null,null,null,null,null,null,null,null,null,null,null,null,null,null,null,null,null,null,null,null,"有効",null,null,null,null,"水",null,null,"08:30:00",null,null,null,null,null,"18:00:00"]
[null,null,null,null,null,null,null,null,null,null,null,null,null,null,null,null,null,null,"木",null,null,null,null,null,null,null,null,null,null,null,null,null,null,null,null,null,null,null,null,null,null,null,null,null,null,null,null,null,null,null,null,null,null,null,null,null,null,null,null,null,null,null,null,null,null,null,"有効",null,null,null,null,"木",null,null,"08:30:00",null,null,null,null,null,"18:00:00"]
[null,null,null,null,null,null,null,null,null,null,null,null,null,null,null,null,null,null,"金",null,null,null,null,null,null,null,null,null,null,null,null,null,null,null,null,null,null,null,null,null,null,null,null,null,null,null,null,null,null,null,null,null,null,null,null,null,null,null,null,null,null,null,null,null,null,null,"有効",null,null,null,null,"金",null,null,"08:30:00",null,null,null,null,null,"18:00:00"]
[null,null,null,null,null,null,null,null,null,null,null,null,null,null,null,null,null,null,"土",null,null,null,null,null,null,null,null,null,null,null,null,null,null,null,null,null,null,null,null,null,null,null,null,null,null,null,null,null,null,null,null,null,null,null,null,null,null,null,null,null,null,null,null,null,null,null,"無効",null,null,null,null,"土"]
[null,null,null,null,null,null,null,null,null,null,null,null,null,null,null,null,null,null,"日",null,null,null,null,null,null,null,null,null,null,null,null,null,null,null,null,null,null,null,null,null,null,null,null,null,null,null,null,null,null,null,null,null,null,null,null,null,null,null,null,null,null,null,null,null,null,null,"無効",null,null,null,null,"日"]
[]
[]
[]
[null,null,"備考欄"]

{"sheet":"欠番2","index":15,"n_rows":0,"n_cols":0,"rows_kept":0,"cut":false,"hidden":true,"merged":[]}

{"sheet":"【別紙12】ダッシュボード統合設定","index":16,"n_rows":70,"n_cols":33,"rows_kept":70,"cut":false,"hidden":true,"merged":[[16,2,16,37],[14,2,14,16],[14,17,14,36],[12,3,12,36],[1,1,4,37],[5,29,5,30],[8,2,8,36],[9,3,9,36],[10,3,10,36],[11,3,11,36],[31,2,31,6],[31,7,31,21],[31,22,31,31],[31,32,31,36],[21,3,21,9],[21,10,21,37],[22,3,22,9],[22,10,22,37],[23,3,23,9],[23,10,23,37],[24,3,24,9],[24,10,24,37],[26,3,26,37],[27,3,27,38],[25,3,25,9],[25,10,25,37],[28,3,28,38],[29,2,29,6],[29,7,29,10],[29,12,29,14],[29,16,29,18],[29,20,29,25],[29,26,29,36],[34,2,34,6],[34,7,34,21],[34,22,34,31],[34,32,34,36],[35,2,35,6],[35,7,35,21],[35,22,35,31],[35,32,35,36],[32,2,32,6],[32,7,32,21],[32,22,32,31],[32,32,32,36],[33,2,33,6],[33,7,33,21],[33,22,33,31],[33,32,33,36],[38,2,38,6],[38,7,38,21],[38,22,38,31],[38,32,38,36],[39,2,39,6],[39,7,39,21],[39,22,39,31],[39,32,39,36],[36,2,36,6],[36,7,36,21],[36,22,36,31],[36,32,36,36],[37,2,37,6],[37,7,37,21],[37,22,37,31],[37,32,37,36],[42,2,42,6],[42,7,42,21],[42,22,42,31],[42,32,42,36],[43,2,43,6],[43,7,43,21],[43,22,43,31],[43,32,43,36],[40,2,40,6],[40,7,40,21],[40,22,40,31],[40,32,40,36],[41,2,41,6],[41,7,41,21],[41,22,41,31],[41,32,41,36],[46,2,46,6],[46,7,46,21],[46,22,46,31],[46,32,46,36],[47,2,47,6],[47,7,47,21],[47,22,47,31],[47,32,47,36],[44,2,44,6],[44,7,44,21],[44,22,44,31],[44,32,44,36],[45,2,45,6],[45,7,45,21],[45,22,45,31],[45,32,45,36],[50,2,50,6],[50,7,50,21],[50,22,50,31],[50,32,50,36],[51,2,51,6],[51,7,51,21],[51,22,51,31],[51,32,51,36],[48,2,48,6],[48,7,48,21],[48,22,48,31],[48,32,48,36],[49,2,49,6],[49,7,49,21],[49,22,49,31],[49,32,49,36],[54,2,54,6],[54,7,54,21],[54,22,54,31],[54,32,54,36],[55,2,55,6],[55,7,55,21],[55,22,55,31],[55,32,55,36],[52,2,52,6],[52,7,52,21],[52,22,52,31],[52,32,52,36],[53,2,53,6],[53,7,53,21],[53,22,53,31],[53,32,53,36],[58,2,58,6],[58,7,58,21],[58,22,58,31],[58,32,58,36],[59,2,59,6],[59,7,59,21],[59,22,59,31],[59,32,59,36],[56,2,56,6],[56,7,56,21],[56,22,56,31],[56,32,56,36],[57,2,57,6],[57,7,57,21],[57,22,57,31],[57,32,57,36],[62,2,62,6],[62,7,62,21],[62,22,62,31],[62,32,62,36],[63,2,63,6],[63,7,63,21],[63,22,63,31],[63,32,63,36],[60,2,60,6],[60,7,60,21],[60,22,60,31],[60,32,60,36],[61,2,61,6],[61,7,61,21],[61,22,61,31],[61,32,61,36],[69,1,70,37],[71,1,78,37],[64,2,64,6],[64,7,64,21],[64,22,64,31],[64,32,64,36],[65,2,65,6],[65,7,65,21],[65,22,65,31],[65,32,65,36]]}
[]
[null,"【様式8C】ギガらくルーター・スイッチ設定申込書\n【別紙12】ダッシュボード統合設定"]
[]
[]
[]
[]
[]
[]
[null,null,"■ 【任意】ご利用中のギガらくルーター/スイッチのダッシュボードへの統合"]
[null,null,null,"※今回初めてギガらくルーター・スイッチをお申込みいただく場合、または\n　 ご利用中のダッシュボードへの統合が不要な場合は記入不要です。"]
[null,null,null,"統合先にしたいダッシュボードに登録されている、ギガらくルーター・スイッチの契約ID（CAF・COP・"]
[null,null,null,"HGI/JGI/AGI)をいずれか１つ記入ください。"]
[null,null,null,"記入いただいた契約ＩＤから対象のダッシュボードを検索し、サポートセンタにて統合設定を行います"]
[]
[null,null,"統合先にしたいダッシュボードに登録されている\nギガらくルーター・スイッチの契約ＩＤ"]
[]
[]
[]
[null,null,"■　【必須】統合したいギガらくルーター・スイッチ・Wi-Fiの指定"]
[]
[null,null,null,"・記入いただくリスト項目の内容"]
[null,null,null,"契約ステータス",null,null,null,null,null,null,"（新規）：今回新規に申し込むサービス\n（既設）：既に契約済み・ご利用中のサービス　★1"]
[null,null,null,"契約ID　★2",null,null,null,null,null,null,"サービスの契約IDをご記入ください。\n　　Wi-Fiの場合（CAF/COP/COW/ROW)で始まるもの\n　　ルーター・スイッチの場合（CAF/COP/HGI/AGI）で始まるもの"]
[null,null,null,"サービス種別",null,null,null,null,null,null,"契約IDのサービス種別を選択 （ギガらくルーター・スイッチ・Ｗｉ-Ｆｉ）\n※ギガらくＷｉ-Ｆｉ　ベーシックプラン/ライトプランは統合できません。\n   リモートアクセスオプションをご利用中のWi-Fi契約は統合できません。\n   リモートアクセスオプションをギガらくルーターへ移行、もしくは廃止のうえ\n   統合願います。"]
[null,null,null,"グループ",null,null,null,null,null,null,"ギガらくルーター・スイッチ・Ｗｉ-Ｆｉを拠点単位で１つにまとめたい場合に記入します。\nグループ設定をしない場合は、同じダッシュボードに統合されるものの、各サービス毎バラバラに表示されます。設定したい拠点単位でグルーピング（１～5000を記入）します。\nなお、ギガらくルーターは原則1グループあたり1台までしか設定できません。\n（予備機・ウォームスペア設定を行う場合は、別途ご相談ください）"]
[null,null,null,"統合希望日および\n時間帯",null,null,null,null,null,null,"統合希望日の記入および時間帯を選択します。★３"]
[null,null,null,"★1\n 　統合設定時は、統合対象となるギガらくルーター・スイッチ・Ｗｉ-Ｆｉに数分～数十分のサービス断が発生します。"]
[null,null,null,"★2\n　　移行したいサービス（ギガらくWi-Fi、他拠点ギガらくルーター・スイッチ）が新規の場合、それぞれのオーダー投入の際に\n　　発行される契約IDを入力してください。（不明な場合はオーダー担当者に問い合わせてください。）　　　 "]
[null,null,null,"★3\n　　-統合希望日のご希望に添えない場合,サポートセンタよりご契約者様電話番号へご連絡致します。\n　　-統合希望日の３営業日前以降は変更オーダーは受けられません。\n"]
[null,null,"統合希望日",null,null,null,null,null,null,null,null,"年",null,null,null,"月",null,null,null,"日","時間帯",null,null,null,null,null,"時間帯を選択"]
[]
[null,null,"契約ステータス",null,null,null,null,"契約ID",null,null,null,null,null,null,null,null,null,null,null,null,null,null,"サービス種別",null,null,null,null,null,null,null,null,null,"グループ\n（任意）"]
[null,null,"新規",null,null,null,null,"CAF1234567890",null,null,null,null,null,null,null,null,null,null,null,null,null,null,"Wi-Fi(ハイエンド/6/EX)",null,null,null,null,null,null,null,null,null,"例：1"]
[]
[]
[]
[]
[]
[]
[]
[]
[]
[]
[]
[]
[]
[]
[]
[]
[]
[]
[]
[]
[]
[]
[]
[]
[]
[]
[]
[]
[]
[]
[]
[]
[]
[null,null,"行が足りない場合は行を追加してご記入ください"]
[]
[]
[null,"連絡欄"]

{"sheet":"【別紙13】拡張サポートオプション","index":17,"n_rows":49,"n_cols":49,"rows_kept":49,"cut":false,"hidden":true,"merged":[[16,6,16,10],[16,11,16,20],[18,48,18,57],[17,2,17,5],[17,6,17,10],[17,11,17,20],[17,21,17,42],[17,43,17,47],[17,48,17,57],[18,2,18,5],[18,6,18,10],[18,11,18,20],[18,21,18,42],[18,43,18,47],[16,21,16,42],[16,43,16,47],[14,48,14,57],[15,2,15,5],[15,6,15,10],[15,11,15,20],[15,21,15,42],[15,43,15,47],[16,48,16,57],[16,2,16,5],[1,1,4,57],[5,42,5,43],[13,2,13,5],[13,6,13,10],[13,11,13,20],[13,21,13,42],[13,43,13,47],[13,48,13,57],[15,48,15,57],[14,2,14,5],[14,6,14,10],[14,11,14,20],[14,21,14,42],[14,43,14,47],[20,21,20,42],[20,43,20,47],[20,48,20,57],[19,2,19,5],[19,6,19,10],[19,11,19,20],[19,21,19,42],[19,43,19,47],[19,48,19,57],[20,2,20,5],[20,6,20,10],[20,11,20,20],[22,48,22,57],[21,2,21,5],[21,6,21,10],[21,11,21,20],[21,21,21,42],[21,43,21,47],[21,48,21,57],[22,2,22,5],[22,6,22,10],[22,11,22,20],[22,21,22,42],[22,43,22,47],[24,48,24,57],[23,2,23,5],[23,6,23,10],[23,11,23,20],[23,21,23,42],[23,43,23,47],[23,48,23,57],[24,2,24,5],[24,6,24,10],[24,11,24,20],[24,21,24,42],[24,43,24,47],[26,48,26,57],[33,21,33,47],[33,48,33,57],[25,2,25,5],[25,6,25,10],[25,11,25,20],[25,21,25,42],[25,43,25,47],[25,48,25,57],[28,2,28,57],[26,2,26,5],[26,6,26,10],[26,11,26,20],[26,21,26,42],[26,43,26,47],[48,1,49,57],[50,1,57,57],[34,2,44,57],[32,2,32,5],[32,6,32,10],[32,11,32,20],[32,21,32,47],[32,48,32,57],[33,2,33,5],[33,6,33,10],[33,11,33,20]]}
[]
[null,"【様式8C】ギガらくルーター 詳細設定申込書\n【別紙13】拡張サポートオプション"]
[]
[]
[]
[]
[]
[]
[null,null,"お客様が調達した拡張サポートオプション対象機器の情報を記載してください。"]
[null,null,"Cisco Merakiから送信されたライセンスメールをご用意頂き、以下の項目に記載願います。(件名：Your Meraki order has shipped)"]
[null,null,"アドバンスドセキュリティ　（AdvancedSecurity）ライセンスは通常適用できません。"]
[]
[null,null,"■　登録したいライセンス情報・機器情報"]
[null,null,"No",null,null,null,"対象機種",null,null,null,null,"Dashboard license key:",null,null,null,null,null,null,null,null,null,"Description",null,null,null,null,null,null,null,null,null,null,null,null,null,null,null,null,null,null,null,null,null,"Quantity",null,null,null,null,"機器のシリアル（S/N)"]
[null,null,"例　1",null,null,null,"MX100",null,null,null,null,"XXXX-XXXX-XXXX",null,null,null,null,null,null,null,null,null,"Meraki MX100 Enterprise License and Support, 1YR",null,null,null,null,null,null,null,null,null,null,null,null,null,null,null,null,null,null,null,null,null,1,null,null,null,null,"XXXX-XXXX-XXXX"]
[null,null,1]
[null,null,2]
[null,null,3]
[null,null,4]
[null,null,5]
[null,null,6]
[null,null,7]
[null,null,8]
[null,null,9]
[null,null,10]
[null,null,11]
[null,null,12]
[]
[null,null,"基本設定（DHCPやLAN IPアドレス変更、Firewall設定等は詳細設定シートより変更したい設定を選択し、対応するシートに設定を記載願います。\n※設定申込書シートにて詳細設定有無をチェックしていただくと、詳細設定シートが表示されます。"]
[]
[null,null,"■特殊対応・設定等"]
[]
[null,null,"No",null,null,null,"対象機種",null,null,null,null,"設定機能",null,null,null,null,null,null,null,null,null,"設定の概要等",null,null,null,null,null,null,null,null,null,null,null,null,null,null,null,null,null,null,null,null,null,null,null,null,null,null,"機器のシリアル（S/N)"]
[null,null,1]
[]
[]
[]
[]
[]
[]
[]
[]
[]
[]
[]
[]
[]
[]
[null,"備考欄"]

{"sheet":"【別紙15】アラート設定","index":18,"n_rows":60,"n_cols":47,"rows_kept":60,"cut":false,"hidden":true,"merged":[[1,1,4,50],[11,1,11,18],[11,19,11,29],[11,30,11,50],[12,1,12,18],[12,19,12,29],[12,30,12,45],[12,46,12,50],[13,1,13,18],[13,19,13,29],[13,30,13,50],[14,1,14,18],[14,19,14,29],[14,30,14,50],[15,1,15,18],[15,19,15,29],[15,30,15,50],[16,1,16,18],[16,19,16,29],[16,30,16,50],[17,1,17,18],[17,19,17,29],[17,30,17,50],[18,1,18,18],[18,19,18,29],[18,30,18,50],[19,1,19,18],[19,19,19,29],[19,30,19,50],[28,1,28,18],[28,19,28,29],[28,30,28,50],[29,1,29,18],[29,19,29,29],[29,30,29,45],[29,46,29,50],[30,1,30,18],[30,19,30,29],[30,30,30,50],[31,1,31,18],[31,19,31,29],[31,30,31,45],[31,46,31,50],[32,1,32,18],[32,19,32,29],[32,30,32,50],[33,1,33,18],[33,19,33,29],[33,30,33,50],[34,1,34,18],[34,19,34,29],[34,30,34,50],[35,1,35,18],[35,19,35,29],[35,30,35,50],[36,1,36,18],[36,19,36,29],[36,30,36,50],[44,1,44,18],[44,19,44,29],[44,30,44,50],[45,1,45,18],[45,19,45,29],[45,30,45,50],[46,1,46,18],[46,19,46,29],[46,30,46,50],[47,1,47,29],[47,30,47,36],[47,37,47,45],[47,46,47,50],[59,1,60,50],[61,1,68,50],[51,1,51,35],[51,36,51,50],[52,1,52,6],[52,36,54,50],[53,1,54,6],[52,7,52,35],[53,7,54,35]]}
[]
[null,"【様式8C】ギガらくルーター 詳細設定申込書\n【別紙15】アラート設定"]
[]
[]
[]
[]
[null,null,"アラート設定を指定した場合、以下で設定した項目について検知すると設定申込シートでご登録いただいたメールアドレス宛に"]
[null,null,"アラート検知のメールがMerakiより送信されます。（alerts-noreply@meraki.comから送信されますのでスパムフィルタで除外されないようにしてください）"]
[null,null,"本機能は、おまかせITマネージャーのおまかせ監視サポートをご利用の方はお申込みいただけません。"]
[null,"【15-1】　ギガらくルーター　アラート通知設定"]
[]
[null,"設定項目",null,null,null,null,null,null,null,null,null,null,null,null,null,null,null,null,null,"有効/無効",null,null,null,null,null,null,null,null,null,null,"備考"]
[null,"ギガらくルーター装置がオフラインになる※1",null,null,null,null,null,null,null,null,null,null,null,null,null,null,null,null,null,"無効",null,null,null,null,null,null,null,null,null,null,"有効にする場合、検知判定する閾値※を指定⇒\n※オフライン状態が〇〇分継続した場合、アラート発出",null,null,null,null,null,null,null,null,null,null,null,null,null,null,null,"60分"]
[null,"プライマリアップリンクステータスの変更",null,null,null,null,null,null,null,null,null,null,null,null,null,null,null,null,null,"無効",null,null,null,null,null,null,null,null,null,null,"回線冗長時の切り替えやダウン時に通知"]
[null,"DHCPリースプールの枯渇検知",null,null,null,null,null,null,null,null,null,null,null,null,null,null,null,null,null,"無効",null,null,null,null,null,null,null,null,null,null,"構成されたDHCPスコープで使用可能なIPが枯渇した場合に通知"]
[null,"IPの競合検知",null,null,null,null,null,null,null,null,null,null,null,null,null,null,null,null,null,"無効",null,null,null,null,null,null,null,null,null,null,"IP重複を検出した場合に通知"]
[null,"セルラー接続状態の変化",null,null,null,null,null,null,null,null,null,null,null,null,null,null,null,null,null,"無効",null,null,null,null,null,null,null,null,null,null,"LTEプランのみ指定可能　接続のアップ、またはダウン時に通知"]
[null,"ウォームスペアフェイルオーバー検知",null,null,null,null,null,null,null,null,null,null,null,null,null,null,null,null,null,"無効",null,null,null,null,null,null,null,null,null,null,"プライマリからセカンダリに変更、または復旧した場合に通知"]
[null,"マルウェアがブロックされた ※2",null,null,null,null,null,null,null,null,null,null,null,null,null,null,null,null,null,"無効",null,null,null,null,null,null,null,null,null,null,"悪意のあるファイルがブロックされた場合に通知"]
[null,"マルウェアがダウンロードされた ※2",null,null,null,null,null,null,null,null,null,null,null,null,null,null,null,null,null,"無効",null,null,null,null,null,null,null,null,null,null,"過去にダウンロードされたファイルが悪意のあるものと判定された場合に通知"]
[]
[null,null,"※1　ダッシュボード（クラウド）から設定された分数にわたってギガらく装置に到達できない場合にアラートを出します。"]
[null,null,"但し本機能はクラウド側から到達できないことを示しており、機器自体は動作している可能性があることに注意して下さい。"]
[null,null,"※2　マルウェアアラートはAdvanced Security機能を利用されている場合の機能です。同機能のマルウェア監視が有効である必要があります。"]
[]
[]
[null,"【15-2】　ギガらくスイッチ　アラート通知設定"]
[]
[null,"設定項目",null,null,null,null,null,null,null,null,null,null,null,null,null,null,null,null,null,"有効/無効",null,null,null,null,null,null,null,null,null,null,"備考"]
[null,"ギガらくスイッチ装置がオフラインになる※3",null,null,null,null,null,null,null,null,null,null,null,null,null,null,null,null,null,"無効",null,null,null,null,null,null,null,null,null,null,"有効にする場合、検知判定する閾値※を指定⇒\n※オフライン状態が〇〇分継続した場合、アラート発出",null,null,null,null,null,null,null,null,null,null,null,null,null,null,null,"60分"]
[null,"新しいDHCPサーバの検知",null,null,null,null,null,null,null,null,null,null,null,null,null,null,null,null,null,"無効",null,null,null,null,null,null,null,null,null,null,"新しいMACアドレスからDHCP offer ,ACK, NACK検出時に通知"]
[null,"ポートのダウン検知",null,null,null,null,null,null,null,null,null,null,null,null,null,null,null,null,null,"無効",null,null,null,null,null,null,null,null,null,null,"有効にする場合、検知判定する閾値※を指定⇒\n※オフライン状態が〇〇分継続した場合、アラート発出",null,null,null,null,null,null,null,null,null,null,null,null,null,null,null,"60分"]
[null,"ポートのケーブルエラー検知",null,null,null,null,null,null,null,null,null,null,null,null,null,null,null,null,null,"無効",null,null,null,null,null,null,null,null,null,null,"いずれかのポートでケーブルエラーを検知した場合に通知"]
[null,"ポートのリンク速度変更検知",null,null,null,null,null,null,null,null,null,null,null,null,null,null,null,null,null,"無効",null,null,null,null,null,null,null,null,null,null,"いずれかのポートでリンク速度を検知した場合に通知"]
[null,"単方向リンク検知",null,null,null,null,null,null,null,null,null,null,null,null,null,null,null,null,null,"無効",null,null,null,null,null,null,null,null,null,null,"UDLDエラーが発生した場合に通知"]
[null,"スイッチの臨界温度異常検知",null,null,null,null,null,null,null,null,null,null,null,null,null,null,null,null,null,"無効",null,null,null,null,null,null,null,null,null,null,"機器の臨界温度で動作している場合に通知"]
[]
[]
[null,null,"※3　ダッシュボード（クラウド）から設定された分数にわたってギガらく装置に到達できない場合にアラートを出します。"]
[null,null,"但し本機能はクラウド側から到達できないことを示しており、機器自体は動作している可能性があることに注意して下さい。"]
[]
[]
[null,"【15-3】　その他　アラート設定"]
[]
[null,"設定項目",null,null,null,null,null,null,null,null,null,null,null,null,null,null,null,null,null,"有効/無効",null,null,null,null,null,null,null,null,null,null,"備考"]
[null,"拠点間VPNステータス検知",null,null,null,null,null,null,null,null,null,null,null,null,null,null,null,null,null,"無効",null,null,null,null,null,null,null,null,null,null,"ギガらくルーター装置同士の拠点間VPNが切断、\n復旧した際に通知"]
[null,"ネットワーク使用量超過検知",null,null,null,null,null,null,null,null,null,null,null,null,null,null,null,null,null,"無効",null,null,null,null,null,null,null,null,null,null,"ネットワーク使用量が指定した時間で指定量を超えた場合に\n検知以下に閾値を指定"]
[null,null,null,null,null,null,null,null,null,null,null,null,null,null,null,null,null,null,null,null,null,null,null,null,null,null,null,null,null,null,"20分で",null,null,null,null,null,null,100,null,null,null,null,null,null,null,null,"GBを超えた"]
[]
[null,"【15-4】　アラート受信用メールアドレス",null,null,null,null,null,null,null,null,null,null,null,null,null,"アラートを受信するメールアドレスを登録しているアドレスとは別のアドレスに変更したい場合は以下を記載"]
[null,null,null,null,null,null,null,null,null,null,null,null,null,null,null,"登録しているアカウント・・ダッシュボードアカウント"]
[null,"設定項目",null,null,null,null,null,null,null,null,null,null,null,null,null,null,null,null,null,null,null,null,null,null,null,null,null,null,null,null,null,null,null,null,null,null,"備考"]
[null,"フリガナ"]
[null,"メールアドレス"]
[]
[]
[]
[]
[]
[null,"備考欄"]

{"sheet":"【別紙99】その他特殊設定","index":19,"n_rows":60,"n_cols":3,"rows_kept":60,"cut":false,"hidden":true,"merged":[[48,1,55,57],[59,1,60,57],[61,1,68,57],[1,1,4,57],[14,1,15,57],[16,1,23,57],[24,1,31,57],[32,1,39,57],[40,1,47,57]]}
[]
[null,"【様式8C】ギガらくルーター 詳細設定申込書\n【別紙99】特殊設定依頼申込書"]
[]
[]
[]
[]
[]
[]
[]
[]
[null,null,"本様式で設定項目のない設定内容について、ネットワーク機器サポートセンタにて対応可否を確認の上"]
[null,null,"別紙99での設定依頼指示があった場合、以下に設定内容を記載してください。"]
[]
[]
[null,"特殊設定依頼欄"]
[]
[]
[]
[]
[]
[]
[]
[]
[]
[]
[]
[]
[]
[]
[]
[]
[]
[]
[]
[]
[]
[]
[]
[]
[]
[]
[]
[]
[]
[]
[]
[]
[]
[]
[]
[]
[]
[]
[]
[]
[]
[]
[]
[]
[null,"備考欄"]

{"sheet":"⇒複数スイッチ設定有りの場合はこれより右にシート作成願います","index":20,"n_rows":0,"n_cols":0,"rows_kept":0,"cut":false,"hidden":true,"merged":[]}